{"text_format":"1","workbook":"xlsx","n_sheets":11,"sheets":["Introduction","Instructions","Waste calculation","Waste hierarchy calculation","Waste adjustments","Reduction","Data sources","Summary of Results","Checklist","Assessor footprint","Emissions Factors"],"not_rendered":{"charts":0,"images":3,"macros":1,"external_links":0,"defined_names":6,"comments":3,"pivot_tables":0},"unopened":[],"bounds":{"document_bytes":16777216,"sheet_cells":100000,"rows_first":2000,"rows_last":500,"rows_between":2000,"halvings":0,"cell_chars":16384,"cell_head_chars":4096},"cells_cut":0,"cells_raw":0,"read":"whole","date_system":"1900"}

{"sheet":"Introduction","index":0,"n_rows":25,"n_cols":6,"rows_kept":25,"cut":false,"hidden":false,"merged":[[4,4,4,5],[5,4,5,5]]}
[]
[]
[]
[]
[null,null,null,null,"Carbon Trust Waste Calculation - First Certification"]
[null,null,null,null,"Instructions:"]
[]
[null,null,null,null,null,"Please fill in the required information in the BLUE tabs. The ORANGE tab provides information for the assessment form . GREY tabs are for information or assessor use only"]
[null,null,null,null,null,"Within each tab, the cells are colour coded to indicate their function. The colour coding works as follows:"]
[null,null,null,null,null,"Complete"]
[null,null,null,null,null,"Automatic calculation"]
[null,null,null,null,null,"To be completed by assessor"]
[]
[null,null,null,null,null,"The 'Waste calculation' tab should be used to input all common waste arisings."]
[null,null,null,null,null,"The 'Waste Adjustments' tab should be used for data on adjustments which must be made.  "]
[null,null,null,null,null,"The 'Reduction' tab is where the reduction over the assessment period is calculated."]
[null,null,null,null,null,"The 'Data sources' tab should be used to provide references for all of the data you have entered. "]
[]
[]
[null,null,null,null,null,"Version History"]
[null,null,null,null,null,"CTCWaste_spreadsheet_v2_6"]
[null,null,null,null,null,"2014-01-01"]
[]
[null,null,null,null,null,"User agreement"]
[null,null,null,null,null,"© The Carbon Trust 2014. All rights reserved.\nAny trademarks, servicemarks or logos used in this document are the property of the Carbon Trust and copyright is licensed to the Carbon Trust.\n\nNothing in this document shall be construed as granting any licence or right to use or reproduce any of the trademarks, service marks, logos, copyright or any proprietary information in any way without the Carbon Trust’s prior written permission. The Carbon Trust enforces infringements of its intellectual property rights to the full extent permitted by law.\n\nThe Carbon Trust Certification Limited is a subsidiary of the Carbon Trust. \n"]

{"sheet":"Instructions","index":1,"n_rows":45,"n_cols":4,"rows_kept":45,"cut":false,"hidden":true,"merged":[[44,2,44,3],[31,2,31,3],[32,2,32,3],[33,2,33,3],[43,1,43,3],[34,2,34,3],[35,2,35,3],[42,1,42,2],[36,2,36,3],[18,1,18,3],[19,2,19,3],[21,1,21,3],[22,2,22,3],[12,1,12,3],[16,2,16,3],[0,1,1,3],[3,1,3,3],[14,2,14,3],[15,2,15,3],[13,2,13,3],[9,2,9,3],[10,2,10,3],[23,2,23,3],[41,2,41,3],[40,2,40,3],[30,2,30,3],[38,1,38,3],[25,1,25,3],[28,1,28,3],[39,2,39,3],[29,2,29,3],[26,2,26,3]]}
[null,"INSTRUCTIONS"]
[]
[]
[null,"General instructions"]
[null,{"$f":"MAX($B$1:B3)+1","v":1},"Sheets are colour coded:"]
[null,null,null,"Dark blue sheets must be completed"]
[null,null,null,"Light blue sheets may need to be completed"]
[null,null,null,"Grey sheets provide information only"]
[null,null,null,"No data needs to be entered, but sheets are important for checking issues and showing final output"]
[null,{"$f":"MAX($B$1:B5)+1","v":2},"On all sheets, cells are colour coded:\n - Cells required for level 1 and level 2 are pale blue \n - Cells required for level 2 only are pink \n - Orange cells are for optional information\n - Cells that calculate automatically are yellow\nNote that 'level' is a Carbon Trust Standard term, while 'Scope' is a GHG Protocol term. The two are not identical."]
[null,{"$f":"MAX($B$1:B10)+1","v":3},"The 'Comments' column should be used to provide any further information. For example:\n - Details of sources\n - Description of calculation/estimation approach and emissions factors used\n - Any other relevant information\nThe 'Notes' column contains information or instructions to help the user of the spreadsheet, and should not be edited"]
[]
[null,"On 'Footprint Calculation' Sheet:"]
[null,{"$f":"MAX($B$1:B13)+1","v":4},"Insert the end date of the compliance period (DD/MM/YYYY) in cell E9. This is the end date of the most recent year for which the footprint is measured."]
[null,{"$f":"MAX($B$1:B14)+1","v":5},"Input data for different emission sources ensuring units column (column C) is correct and noting the data source in Column I\n - For a level 1 footprint, complete all relevant pale blue cells\n - For a level 2 footprint, complete all relevant pale blue and pink cells\nUse the plus symbol to the left of the sheet for extra rows if required\nFor some sources, the units and emissions factors have been pre-filled with typical values (e.g. kWh and UK grid emissions for electricity). These values can be changed if the company reports in a different unit, but the emissions factor would also have to be changed in this case"]
[null,{"$f":"MAX($B$1:B15)+1","v":6},"Identify relevant emission factors (some common factors are listed on the 'Emissions Factors' sheets, for others use appropriate source e.g. DEFRA's Corporate Reporting Guidelines) and insert in Column D, noting the source in Column I if non-standard"]
[null,{"$f":"MAX($B$1:B16)+1","v":7},"Ensure any exported heat or electricity is reported in rows 71 & 72 (as a positive value) and use DEFRA's guidelines to calculate relevant emission factors to insert in Column D"]
[]
[null,"On 'Other emissions' Sheet:"]
[null,{"$f":"MAX($B$1:B19)+1","v":8},"If there is not enough space on the 'Footprint calculation' sheet, please record any other emissions here"]
[]
[null,"On 'CHP' Sheet:"]
[null,{"$f":"MAX($B$1:B22)+1","v":9},"This sheet should be used if emissions from CHP need to be allocated - i.e. if the organisation has a CHP plant and exports some of the heat or electricity, or if it imports energy produced from CHP elsewhere."]
[null,{"$f":"MAX($B$1:B23)+1","v":10},"Adjustments to the footprint for imports or exports automatically feed through to the 'Footprint calculation' sheet"]
[]
[null,"On 'Adjustments' Sheet:"]
[null,{"$f":"MAX($B$1:B26)+1","v":11},"In order for a like-for-like footprint to be compared across the years, the footprint must be adjusted for any structural changes (such as outsourcing, divestments, acquisitions) over the time period.  Use the 'Adjustments' sheet to calculate the footprint of the section of the organisation to be excluded \ne.g., if subsidiary X of an organisation was divested in Year -1, then the Year -2 footprint and Year -1 footprint must be adjusted downwards as if subsidiary X were never part of the footprint."]
[]
[null,"On 'Reduction' Sheet:"]
[null,{"$f":"MAX($B$1:B29)+1","v":12},"This sheet should be used for all organisations where the reduction requirement will be based on 2 or more years of data"]
[null,{"$f":"MAX($B$1:B30)+1","v":13},"In row 10, report whether a level 1 or level 2 footprint has been measured for each relevant year"]
[null,{"$f":"MAX($B$1:B31)+1","v":14},"In row 15, specify the denominator to be used for the relative benchmark (e.g., FTEs, tonne product, no. of items), the annual data and source of data"]
[null,{"$f":"MAX($B$1:B32)+1","v":15},"In row 16, insert annual turnover figures, ensuring units are correct "]
[null,{"$f":"MAX($B$1:B33)+1","v":16},"If the footprint is adjusted for structural changes (see 12 above), then the benchmark and turnover should also be adjusted using rows 24-26."]
[null,{"$f":"MAX($B$1:B34)+1","v":17},"In row 28, adjust the inflation figures to make relevant for the geographic location(s) of the footprint, using weighted averages of different countries or regions if necessary"]
[null,{"$f":"MAX($B$1:B35)+1","v":18},"Cells D40, D41, D42 should remain unchanged unless the organisation is certifying significant operations outside of the OECD region in which case these numbers should be replaced with relevant economic growth factors for the region (to be agreed with the Carbon Trust Standard Company)"]
[null,{"$f":"MAX($B$1:B36)+1","v":19},"Rows 44-46 will calculate whether the organisation meets the absolute or relative reduction requirements"]
[]
[null,"On 'Reduction - SME' Sheet:"]
[null,{"$f":"MAX($B$1:B39)+1","v":20},"This sheet should be used for small organisations (<50k energy spend) where assessment will be made based on 1 year of data, plus quantified project reductions"]
[null,{"$f":"MAX($B$1:B40)+1","v":21},"Enter details of quantified project CO2 reductions in rows 10 to 17"]
[null,{"$f":"MAX($B$1:B41)+1","v":22},"In Cell D24 enter whether a Level 1 or 2 footprint is being used. Cell D31 will show whether the organisation has met the reduction targets"]
[]
[null,"Completing the Assessment Form"]
[null,{"$f":"MAX($B$1:B44)+1","v":23},"Use the data from 'Data for assessment form' to complete relevant sections of the assessment form"]

{"sheet":"Waste calculation","index":2,"n_rows":915,"n_cols":24,"rows_kept":915,"cut":false,"hidden":false,"merged":[[14,3,14,26],[20,5,22,5],[886,3,886,7],[22,22,23,22],[22,23,23,23],[22,24,23,24],[22,25,23,25]]}
[]
[]
[]
[null,null,null,"Carbon Trust Certification Limited"]
[null,null,null,"Waste Arisings Calculation"]
[]
[]
[]
[]
[]
[null,null,null,"Complete for assessment"]
[null,null,null,"Automatic calculation"]
[null,null,null,"Cells to be completed by assessor"]
[]
[null,null,null,"***PLEASE READ***\nInstructions: Please use this tab to input the organisation's waste arisings data. \nPlease note: This tab includes space for the most common waste types. If the organisation has waste arisings from sources not listed in this tab, please use the 'Other waste' tab to include these."]
[]
[null,null,null,null,null,null,"Organisation name",null,"Assessor name"]
[null,null,null,null,null,null,"Date spreadsheet completed",null,"Type of Service"]
[null,null,null,null,null,null,"Data year end date"]
[null,null,null,null,null,{"$f":"IF(SUM(H19)*SUM(H18)=0,\"\",IF(H18-H19>276,\"Error: Footprint must be completed within 9 months of compliance period end\",\"\"))","v":""}]
[null,null,null,null,null,"Units","Year -2",null,null,null,null,"Year -1",null,null,null,null,"Year 0"]
[null,null,null,null,null,null,"Year end date",null,null,null,null,"Year end date",null,null,null,null,"Year end date",null,null,null,null,null,"Activity Data Source","Assessor Comments"]
[null,null,null,null,null,null,null,null,null,null,null,null,null,null,null,null,null,null,null,null,null,null,"e.g. e.g. from waste transfer notes, software packages, or spreadsheets,  raw data evidence presented in evidence pack","e.g. explanation of data quality, large year-on-year changes,etc."]
[]
[null,null,null,"Waste Code","Waste Type","Unit","Total","Reuse","Recycle","Energy recovery","Disposal","Total","Reuse","Recycle","Energy recovery","Disposal","Total","Reuse","Recycle","Energy recovery","Disposal"]
[null,null,null,"01","WASTES RESULTING FROM EXPLORATION, MINING, QUARRYING, AND PHYSICAL AND CHEMICAL TREATMENT OF MINERALS","Tonnes",{"$f":"IF(SUM(H26:K26)=0,\"-\",SUM(H26:K26))","v":"-"},{"$f":"IF(SUM(H27:H49)=0,\"-\",SUM(H27:H49))","v":"-"},{"$f":"IF(SUM(I27:I49)=0,\"-\",SUM(I27:I49))","v":"-"},"-","-",{"$f":"IF(SUM(M26:P26)=0,\"-\",SUM(M26:P26))","v":"-"},{"$f":"IF(SUM(M27:M49)=0,\"-\",SUM(M27:M49))","v":"-"},{"$f":"IF(SUM(N27:N49)=0,\"-\",SUM(N27:N49))","v":"-"},"-","-",{"$f":"IF(SUM(R26:U26)=0,\"-\",SUM(R26:U26))","v":"-"},{"$f":"IF(SUM(R27:R49)=0,\"-\",SUM(R27:R49))","v":"-"},{"$f":"IF(SUM(S27:S49)=0,\"-\",SUM(S27:S49))","v":"-"},"-","-"]
[null,null,null,"01 01 01 "," wastes from mineral metalliferous excavation","Tonnes",{"$f":"IF(SUM(H27:K27)=0,\"-\",SUM(H27:K27))","v":"-"},null,null,null,null,{"$f":"IF(SUM(M27:P27)=0,\"-\",SUM(M27:P27))","v":"-"},null,null,null,null,{"$f":"IF(SUM(R27:U27)=0,\"-\",SUM(R27:U27))","v":"-"}]
[null,null,null,"01 01 02 ","wastes from mineral non-metalliferous excavation","Tonnes","-",null,null,null,null,"-",null,null,null,null,"-"]
[null,null,null,"01 03 04*  "," acid-generating tailings from processing of sulphide ore","Tonnes","-",null,null,null,null,"-",null,null,null,null,"-"]
[null,null,null,"01 03 05*   ","other tailings containing dangerous substances","Tonnes","-",null,null,null,null,"-",null,null,null,null,"-"]
[null,null,null,"01 03 06  ","tailings other than those mentioned in 01 03 04 and 01 03 05","Tonnes","-",null,null,null,null,"-",null,null,null,null,"-"]
[null,null,null,"01 03 07*   ","other wastes containing dangerous substances from physical and chemical processing of metalliferous minerals","Tonnes","-",null,null,null,null,"-",null,null,null,null,"-"]
[null,null,null,"01 03 08  ","dusty and powdery wastes other than those mentioned in 01 03 07","Tonnes","-",null,null,null,null,"-",null,null,null,null,"-"]
[null,null,null,"01 03 09  ","red mud from alumina production other than the wastes mentioned in 01 03 07","Tonnes","-",null,null,null,null,"-",null,null,null,null,"-"]
[null,null,null,"01 03 99  ","wastes not otherwise specified","Tonnes","-",null,null,null,null,"-",null,null,null,null,"-"]
[null,null,null,"01 04 07*   ","wastes containing dangerous substances from physical and chemical processing of non-metalliferous minerals","Tonnes","-",null,null,null,null,"-",null,null,null,null,"-"]
[null,null,null,"01 04 08  ","waste gravel and crushed rocks other than those mentioned in 01 04 07","Tonnes","-",null,null,null,null,"-",null,null,null,null,"-"]
[null,null,null,"01 04 09  ","waste sand and clays","Tonnes","-",null,null,null,null,"-",null,null,null,null,"-"]
[null,null,null,"01 04 10 "," dusty and powdery wastes other than those mentioned in 01 04 07","Tonnes","-",null,null,null,null,"-",null,null,null,null,"-"]
[null,null,null,"01 04 11 "," wastes from potash and rock salt processing other than those mentioned in 01 04 07","Tonnes","-",null,null,null,null,"-",null,null,null,null,"-"]
[null,null,null,"01 04 12 "," tailings and other wastes from washing and cleaning of minerals other than those mentioned in 01 04 07 and 01 04 11","Tonnes","-",null,null,null,null,"-",null,null,null,null,"-"]
[null,null,null,"01 04 13 "," wastes from stone cutting and sawing other than those mentioned in 01 04 07","Tonnes","-",null,null,null,null,"-",null,null,null,null,"-"]
[null,null,null,"01 04 99 "," wastes not otherwise specified","Tonnes","-",null,null,null,null,"-",null,null,null,null,"-"]
[null,null,null,"01 05 04 "," freshwater drilling muds and wastes","Tonnes","-",null,null,null,null,"-",null,null,null,null,"-"]
[null,null,null,"01 05 05* ","oil-containing drilling muds and wastes","Tonnes","-",null,null,null,null,"-",null,null,null,null,"-"]
[null,null,null,"01 05 06*  "," drilling muds and other drilling wastes containing dangerous substances","Tonnes","-",null,null,null,null,"-",null,null,null,null,"-"]
[null,null,null,"01 05 07 "," barite-containing drilling muds and wastes other than those mentioned in 01 05 05 and 01 05 06","Tonnes","-",null,null,null,null,"-",null,null,null,null,"-"]
[null,null,null,"01 05 08 "," chloride-containing drilling muds and wastes other than those mentioned in 01 05 05 and 01 05 06","Tonnes","-",null,null,null,null,"-",null,null,null,null,"-"]
[null,null,null,"01 05 99 "," wastes not otherwise specified","Tonnes","-",null,null,null,null,"-",null,null,null,null,"-"]
[null,null,null,"02","WASTES FROM AGRICULTURE, HORTICULTURE, AQUACULTURE, FORESTRY, HUNTING AND FISHING, FOOD PREPARATION AND PROCESSING","Tonnes","-",{"$f":"IF(SUM(H51:H88)=0,\"-\",SUM(H51:H89))","v":"-"},{"$f":"IF(SUM(I51:I88)=0,\"-\",SUM(I51:I89))","v":"-"},"-","-","-",{"$f":"IF(SUM(M51:M88)=0,\"-\",SUM(M51:M89))","v":"-"},{"$f":"IF(SUM(N51:N88)=0,\"-\",SUM(N51:N89))","v":"-"},"-","-","-",{"$f":"IF(SUM(R51:R88)=0,\"-\",SUM(R51:R89))","v":"-"},{"$f":"IF(SUM(S51:S88)=0,\"-\",SUM(S51:S89))","v":"-"},"-","-"]
[null,null,null,"02 01 01 "," sludges from washing and cleaning","Tonnes","-",null,null,null,null,"-",null,null,null,null,"-"]
[null,null,null,"02 01 02 "," animal-tissue waste","Tonnes","-",null,null,null,null,"-",null,null,null,null,"-"]
[null,null,null,"02 01 03 "," plant-tissue waste","Tonnes","-",null,null,null,null,"-",null,null,null,null,"-"]
[null,null,null,"02 01 04 "," waste plastics (except packaging)","Tonnes","-",null,null,null,null,"-",null,null,null,null,"-"]
[null,null,null,"02 01 06 "," animal faeces, urine and manure (including spoiled straw), effluent, collected separately and treated off-site","Tonnes","-",null,null,null,null,"-",null,null,null,null,"-"]
[null,null,null,"02 01 07 "," wastes from forestry","Tonnes","-",null,null,null,null,"-",null,null,null,null,"-"]
[null,null,null,"02 01 08* "," agrochemical waste containing dangerous substances","Tonnes","-",null,null,null,null,"-",null,null,null,null,"-"]
[null,null,null,"02 01 09 "," agrochemical waste other than those mentioned in 02 01 08","Tonnes","-",null,null,null,null,"-",null,null,null,null,"-"]
[null,null,null,"02 01 10 "," waste metal","Tonnes","-",null,null,null,null,"-",null,null,null,null,"-"]
[null,null,null,"02 01 99 "," wastes not otherwise specified","Tonnes","-",null,null,null,null,"-",null,null,null,null,"-"]
[null,null,null,"02 02 01 "," sludges from washing and cleaning","Tonnes","-",null,null,null,null,"-",null,null,null,null,"-"]
[null,null,null,"02 02 02 "," animal-tissue waste","Tonnes","-",null,null,null,null,"-",null,null,null,null,"-"]
[null,null,null,"02 02 03 "," materials unsuitable for consumption or processing","Tonnes","-",null,null,null,null,"-",null,null,null,null,"-"]
[null,null,null,"02 02 04 "," sludges from on-site effluent treatment","Tonnes","-",null,null,null,null,"-",null,null,null,null,"-"]
[null,null,null,"02 02 99 "," wastes not otherwise specified","Tonnes","-",null,null,null,null,"-",null,null,null,null,"-"]
[null,null,null,"02 03 01 "," sludges from washing, cleaning, peeling, centrifuging and separation","Tonnes","-",null,null,null,null,"-",null,null,null,null,"-"]
[null,null,null,"02 03 02 "," wastes from preserving agents","Tonnes","-",null,null,null,null,"-",null,null,null,null,"-"]
[null,null,null,"02 03 03 "," wastes from solvent extraction","Tonnes","-",null,null,null,null,"-",null,null,null,null,"-"]
[null,null,null,"02 03 04 "," materials unsuitable for consumption or processing","Tonnes","-",null,null,null,null,"-",null,null,null,null,"-"]
[null,null,null,"02 03 05 "," sludges from on-site effluent treatment","Tonnes","-",null,null,null,null,"-",null,null,null,null,"-"]
[null,null,null,"02 03 99 "," wastes not otherwise specified","Tonnes","-",null,null,null,null,"-",null,null,null,null,"-"]
[null,null,null,"02 04 01 "," soil from cleaning and washing beet","Tonnes","-",null,null,null,null,"-",null,null,null,null,"-"]
[null,null,null,"02 04 02 "," off-specification calcium carbonate","Tonnes","-",null,null,null,null,"-",null,null,null,null,"-"]
[null,null,null,"02 04 03 "," sludges from on-site effluent treatment","Tonnes","-",null,null,null,null,"-",null,null,null,null,"-"]
[null,null,null,"02 04 99 "," wastes not otherwise specified","Tonnes","-",null,null,null,null,"-",null,null,null,null,"-"]
[null,null,null,"02 05 01 "," materials unsuitable for consumption or processing","Tonnes","-",null,null,null,null,"-",null,null,null,null,"-"]
[null,null,null,"02 05 02 "," sludges from on-site effluent treatment","Tonnes","-",null,null,null,null,"-",null,null,null,null,"-"]
[null,null,null,"02 05 99 "," wastes not otherwise specified","Tonnes","-",null,null,null,null,"-",null,null,null,null,"-"]
[null,null,null,"02 06 01 "," materials unsuitable for consumption or processing","Tonnes","-",null,null,null,null,"-",null,null,null,null,"-"]
[null,null,null,"02 06 02 "," wastes from preserving agents","Tonnes","-",null,null,null,null,"-",null,null,null,null,"-"]
[null,null,null,"02 06 03 "," sludges from on-site effluent treatment","Tonnes","-",null,null,null,null,"-",null,null,null,null,"-"]
[null,null,null,"02 06 99 "," wastes not otherwise specified","Tonnes","-",null,null,null,null,"-",null,null,null,null,"-"]
[null,null,null,"02 07 01 "," wastes from washing, cleaning and mechanical reduction of raw materials","Tonnes","-",null,null,null,null,"-",null,null,null,null,"-"]
[null,null,null,"02 07 02 "," wastes from spirits distillation","Tonnes","-",null,null,null,null,"-",null,null,null,null,"-"]
[null,null,null,"02 07 03 "," wastes from chemical treatment","Tonnes","-",null,null,null,null,"-",null,null,null,null,"-"]
[null,null,null,"02 07 04 "," materials unsuitable for consumption or processing","Tonnes","-",null,null,null,null,"-",null,null,null,null,"-"]
[null,null,null,"02 07 05 "," sludges from on-site effluent treatment","Tonnes","-",null,null,null,null,"-",null,null,null,null,"-"]
[null,null,null,"02 07 99 "," wastes not otherwise specified","Tonnes","-",null,null,null,null,"-",null,null,null,null,"-"]
[null,null,null,"03","WASTES FROM WOOD PROCESSING AND THE PRODUCTION OF PANELS AND FURNITURE, PULP, PAPER AND CARDBOARD","Tonnes","-",{"$f":"IF(SUM(H90:H108)=0,\"-\",SUM(H90:H108))","v":"-"},{"$f":"IF(SUM(I90:I108)=0,\"-\",SUM(I90:I108))","v":"-"},"-","-","-",{"$f":"IF(SUM(M90:M108)=0,\"-\",SUM(M90:M108))","v":"-"},{"$f":"IF(SUM(N90:N108)=0,\"-\",SUM(N90:N108))","v":"-"},"-","-","-",{"$f":"IF(SUM(R90:R108)=0,\"-\",SUM(R90:R108))","v":"-"},{"$f":"IF(SUM(S90:S108)=0,\"-\",SUM(S90:S108))","v":"-"},"-","-"]
[null,null,null,"03 01 01 "," waste bark and cork","Tonnes","-",null,null,null,null,"-",null,null,null,null,"-"]
[null,null,null,"03 01 04* "," sawdust, shavings, cuttings, wood, particle board and veneer containing dangerous substances","Tonnes",{"$f":"IF(SUM(H91:K91)=0,\"-\",SUM(H91:K91))","v":"-"},null,null,null,null,{"$f":"IF(SUM(M91:P91)=0,\"-\",SUM(M91:P91))","v":"-"},null,null,null,null,{"$f":"IF(SUM(R91:U91)=0,\"-\",SUM(R91:U91))","v":"-"}]
[null,null,null,"03 01 05 "," sawdust, shavings, cuttings, wood, particle board and veneer other than those mentioned in 03 01 04","Tonnes","-",null,null,null,null,"-",null,null,null,null,"-"]
[null,null,null,"03 01 99 "," wastes not otherwise specified","Tonnes","-",null,null,null,null,"-",null,null,null,null,"-"]
[null,null,null,"03 02 01* "," non-halogenated organic wood preservatives","Tonnes","-",null,null,null,null,"-",null,null,null,null,"-"]
[null,null,null,"03 02 02* "," organochlorinated wood preservatives","Tonnes","-",null,null,null,null,"-",null,null,null,null,"-"]
[null,null,null,"03 02 03* "," organometallic wood preservatives","Tonnes","-",null,null,null,null,"-",null,null,null,null,"-"]
[null,null,null,"03 02 04* "," inorganic wood preservatives","Tonnes","-",null,null,null,null,"-",null,null,null,null,"-"]
[null,null,null,"03 02 05* "," other wood preservatives containing dangerous substances","Tonnes","-",null,null,null,null,"-",null,null,null,null,"-"]
[null,null,null,"03 02 99 "," wood preservatives not otherwise specified","Tonnes","-",null,null,null,null,"-",null,null,null,null,"-"]
[null,null,null,"03 03 01 "," waste bark and wood","Tonnes","-",null,null,null,null,"-",null,null,null,null,"-"]
[null,null,null,"03 03 02  ","green liquor sludge (from recovery of cooking liquor)","Tonnes","-",null,null,null,null,"-",null,null,null,null,"-"]
[null,null,null,"03 03 05 "," de-inking sludges from paper recycling","Tonnes","-",null,null,null,null,"-",null,null,null,null,"-"]
[null,null,null,"03 03 07 "," mechanically separated rejects from pulping of waste paper and cardboard","Tonnes","-",null,null,null,null,"-",null,null,null,null,"-"]
[null,null,null,"03 03 08 "," wastes from sorting of paper and cardboard destined for recycling","Tonnes","-",null,null,null,null,"-",null,null,null,null,"-"]
[null,null,null,"03 03 09 "," lime mud waste","Tonnes","-",null,null,null,null,"-",null,null,null,null,"-"]
[null,null,null,"03 03 10 "," fibre rejects, fibre-, filler- and coating-sludges from mechanical separation","Tonnes","-",null,null,null,null,"-",null,null,null,null,"-"]
[null,null,null,"03 03 11 "," sludges from on-site effluent treatment other than those mentioned in 03 03 10","Tonnes","-",null,null,null,null,"-",null,null,null,null,"-"]
[null,null,null,"03 03 99 "," wastes not otherwise specified","Tonnes","-",null,null,null,null,"-",null,null,null,null,"-"]
[null,null,null,"04","WASTES FROM THE LEATHER, FUR AND TEXTILE INDUSTRIES","Tonnes","-",{"$f":"IF(SUM(H110:H130)=0,\"-\",SUM(H110:H130))","v":"-"},{"$f":"IF(SUM(I110:I130)=0,\"-\",SUM(I110:I130))","v":"-"},"-","-","-",{"$f":"IF(SUM(M110:M130)=0,\"-\",SUM(M110:M130))","v":"-"},{"$f":"IF(SUM(N110:N130)=0,\"-\",SUM(N110:N130))","v":"-"},"-","-","-",{"$f":"IF(SUM(R110:R130)=0,\"-\",SUM(R110:R130))","v":"-"},{"$f":"IF(SUM(S110:S130)=0,\"-\",SUM(S110:S130))","v":"-"},"-","-"]
[null,null,null,"04 01 01 "," fleshings and lime split wastes","Tonnes","-",null,null,null,null,"-",null,null,null,null,"-"]
[null,null,null,"04 01 02 "," liming waste","Tonnes","-",null,null,null,null,"-",null,null,null,null,"-"]
[null,null,null,"04 01 03* "," degreasing wastes containing solvents without a liquid phase","Tonnes","-",null,null,null,null,"-",null,null,null,null,"-"]
[null,null,null,"04 01 04 "," tanning liquor containing chromium","Tonnes","-",null,null,null,null,"-",null,null,null,null,"-"]
[null,null,null,"04 01 05 "," tanning liquor free of chromium","Tonnes","-",null,null,null,null,"-",null,null,null,null,"-"]
[null,null,null,"04 01 06 "," sludges, in particular from on-site effluent treatment containing chromium","Tonnes","-",null,null,null,null,"-",null,null,null,null,"-"]
[null,null,null,"04 01 07 "," sludges, in particular from on-site effluent treatment free of chromium","Tonnes","-",null,null,null,null,"-",null,null,null,null,"-"]
[null,null,null,"04 01 08 "," waste tanned leather (blue sheetings, shavings, cuttings, buffing dust) containing chromium","Tonnes","-",null,null,null,null,"-",null,null,null,null,"-"]
[null,null,null,"04 01 09 "," wastes from dressing and finishing","Tonnes","-",null,null,null,null,"-",null,null,null,null,"-"]
[null,null,null,"04 01 99 "," wastes not otherwise specified","Tonnes","-",null,null,null,null,"-",null,null,null,null,"-"]
[null,null,null,"04 02 09 "," wastes from composite materials (impregnated textile, elastomer, plastomer)","Tonnes","-",null,null,null,null,"-",null,null,null,null,"-"]
[null,null,null,"04 02 10 "," organic matter from natural products (for example grease, wax)","Tonnes","-",null,null,null,null,"-",null,null,null,null,"-"]
[null,null,null,"04 02 14* "," wastes from finishing containing organic solvents","Tonnes","-",null,null,null,null,"-",null,null,null,null,"-"]
[null,null,null,"04 02 15 "," wastes from finishing other than those mentioned in 04 02 14","Tonnes","-",null,null,null,null,"-",null,null,null,null,"-"]
[null,null,null,"04 02 16* "," dyestuffs and pigments containing dangerous substances","Tonnes","-",null,null,null,null,"-",null,null,null,null,"-"]
[null,null,null,"04 02 17 "," dyestuffs and pigments other than those mentioned in 04 02 16","Tonnes","-",null,null,null,null,"-",null,null,null,null,"-"]
[null,null,null,"04 02 19* "," sludges from on-site effluent treatment containing dangerous substances","Tonnes","-",null,null,null,null,"-",null,null,null,null,"-"]
[null,null,null,"04 02 20  ","Sludges from on-site effluent treatment other than those mentioned in 04 02 19","Tonnes","-",null,null,null,null,"-",null,null,null,null,"-"]
[null,null,null,"04 02 21 "," wastes from unprocessed textile fibres","Tonnes","-",null,null,null,null,"-",null,null,null,null,"-"]
[null,null,null,"04 02 22 "," wastes from processed textile fibres","Tonnes","-",null,null,null,null,"-",null,null,null,null,"-"]
[null,null,null,"04 02 99 "," wastes not otherwise specified","Tonnes","-",null,null,null,null,"-",null,null,null,null,"-"]
[null,null,null,"05","WASTES FROM PETROLEUM REFINING, NATURAL GAS PURIFICATION AND PYROLYTIC TREATMENT OF COAL","Tonnes","-",{"$f":"IF(SUM(H132:H155)=0,\"-\",SUM(H132:H155))","v":"-"},{"$f":"IF(SUM(I132:I155)=0,\"-\",SUM(I132:I155))","v":"-"},"-","-","-",{"$f":"IF(SUM(M132:M155)=0,\"-\",SUM(M132:M155))","v":"-"},{"$f":"IF(SUM(N132:N155)=0,\"-\",SUM(N132:N155))","v":"-"},"-","-","-",{"$f":"IF(SUM(R132:R155)=0,\"-\",SUM(R132:R155))","v":"-"},{"$f":"IF(SUM(S132:S155)=0,\"-\",SUM(S132:S155))","v":"-"},"-","-"]
[null,null,null,"05 01 02* "," desalter sludges","Tonnes","-",null,null,null,null,"-",null,null,null,null,"-"]
[null,null,null,"05 01 03* "," tank bottom sludges","Tonnes","-",null,null,null,null,"-",null,null,null,null,"-"]
[null,null,null,"05 01 04* "," acid alkyl sludges","Tonnes","-",null,null,null,null,"-",null,null,null,null,"-"]
[null,null,null,"05 01 05* "," oil spills","Tonnes","-",null,null,null,null,"-",null,null,null,null,"-"]
[null,null,null,"05 01 06* "," oily sludges from maintenance operations of the plant or equipment","Tonnes","-",null,null,null,null,"-",null,null,null,null,"-"]
[null,null,null,"05 01 07* "," acid tars","Tonnes","-",null,null,null,null,"-",null,null,null,null,"-"]
[null,null,null,"05 01 08* "," other tars","Tonnes","-",null,null,null,null,"-",null,null,null,null,"-"]
[null,null,null,"05 01 09* "," sludges from on-site effluent treatment containing dangerous substances","Tonnes","-",null,null,null,null,"-",null,null,null,null,"-"]
[null,null,null,"05 01 10  ","Sludges from on-site effluent treatment other than those mentioned in 05 01 09","Tonnes","-",null,null,null,null,"-",null,null,null,null,"-"]
[null,null,null,"05 01 11* "," wastes from cleaning of fuels with bases","Tonnes","-",null,null,null,null,"-",null,null,null,null,"-"]
[null,null,null,"05 01 12* "," oil containing acids","Tonnes","-",null,null,null,null,"-",null,null,null,null,"-"]
[null,null,null,"05 01 13 "," boiler feedwater sludges","Tonnes","-",null,null,null,null,"-",null,null,null,null,"-"]
[null,null,null,"05 01 14 "," wastes from cooling columns","Tonnes","-",null,null,null,null,"-",null,null,null,null,"-"]
[null,null,null,"05 01 15* "," spent filter clays","Tonnes","-",null,null,null,null,"-",null,null,null,null,"-"]
[null,null,null,"05 01 16 "," sulphur-containing wastes from petroleum desulphurisation","Tonnes","-",null,null,null,null,"-",null,null,null,null,"-"]
[null,null,null,"05 01 17 "," bitumen","Tonnes","-",null,null,null,null,"-",null,null,null,null,"-"]
[null,null,null,"05 01 99 "," wastes not otherwise specified","Tonnes","-",null,null,null,null,"-",null,null,null,null,"-"]
[null,null,null,"05 06 01* "," acid tars","Tonnes","-",null,null,null,null,"-",null,null,null,null,"-"]
[null,null,null,"05 06 03* "," other tars","Tonnes","-",null,null,null,null,"-",null,null,null,null,"-"]
[null,null,null,"05 06 04 "," waste from cooling columns","Tonnes","-",null,null,null,null,"-",null,null,null,null,"-"]
[null,null,null,"05 06 99 "," wastes not otherwise specified","Tonnes","-",null,null,null,null,"-",null,null,null,null,"-"]
[null,null,null,"05 07 01* "," wastes containing mercury","Tonnes","-",null,null,null,null,"-",null,null,null,null,"-"]
[null,null,null,"05 07 02 "," wastes containing sulphur","Tonnes","-",null,null,null,null,"-",null,null,null,null,"-"]
[null,null,null,"05 07 99 "," wastes not otherwise specified","Tonnes",{"$f":"IF(SUM(H155:K155)=0,\"-\",SUM(H155:K155))","v":"-"},null,null,null,null,{"$f":"IF(SUM(M155:P155)=0,\"-\",SUM(M155:P155))","v":"-"},null,null,null,null,{"$f":"IF(SUM(R155:U155)=0,\"-\",SUM(R155:U155))","v":"-"}]
[null,null,null,"06","WASTES FROM INORGANIC CHEMICAL PROCESSES","Tonnes","-",{"$f":"IF(SUM(H157:H204)=0,\"-\",SUM(H157:H204))","v":"-"},{"$f":"IF(SUM(I157:I204)=0,\"-\",SUM(I157:I204))","v":"-"},"-","-","-",{"$f":"IF(SUM(M157:M204)=0,\"-\",SUM(M157:M204))","v":"-"},{"$f":"IF(SUM(N157:N204)=0,\"-\",SUM(N157:N204))","v":"-"},"-","-","-",{"$f":"IF(SUM(R157:R204)=0,\"-\",SUM(R157:R204))","v":"-"},{"$f":"IF(SUM(S157:S204)=0,\"-\",SUM(S157:S204))","v":"-"},"-","-"]
[null,null,null,"06 01 01* "," sulphuric acid and sulphurous acid","Tonnes","-",null,null,null,null,"-",null,null,null,null,"-"]
[null,null,null,"06 01 02* "," hydrochloric acid","Tonnes","-",null,null,null,null,"-",null,null,null,null,"-"]
[null,null,null,"06 01 03* "," hydrofluoric acid","Tonnes","-",null,null,null,null,"-",null,null,null,null,"-"]
[null,null,null,"06 01 04* "," phosphoric and phosphorous acid","Tonnes","-",null,null,null,null,"-",null,null,null,null,"-"]
[null,null,null,"06 01 05* "," nitric acid and nitrous acid","Tonnes","-",null,null,null,null,"-",null,null,null,null,"-"]
[null,null,null,"06 01 06* "," other acids","Tonnes","-",null,null,null,null,"-",null,null,null,null,"-"]
[null,null,null,"06 01 99 "," wastes not otherwise specified","Tonnes","-",null,null,null,null,"-",null,null,null,null,"-"]
[null,null,null,"06 02 01* "," calcium hydroxide","Tonnes","-",null,null,null,null,"-",null,null,null,null,"-"]
[null,null,null,"06 02 03* "," ammonium hydroxide","Tonnes","-",null,null,null,null,"-",null,null,null,null,"-"]
[null,null,null,"06 02 04* "," sodium and potassium hydroxide","Tonnes","-",null,null,null,null,"-",null,null,null,null,"-"]
[null,null,null,"06 02 05* "," other bases","Tonnes","-",null,null,null,null,"-",null,null,null,null,"-"]
[null,null,null,"06 02 99 "," wastes not otherwise specified","Tonnes","-",null,null,null,null,"-",null,null,null,null,"-"]
[null,null,null,"06 03 11* "," solid salts and solutions containing cyanides","Tonnes","-",null,null,null,null,"-",null,null,null,null,"-"]
[null,null,null,"06 03 13* "," solid salts and solutions containing heavy metals","Tonnes","-",null,null,null,null,"-",null,null,null,null,"-"]
[null,null,null,"06 03 14 "," solid salts and solutions other than those mentioned in 06 03 11 and 06 03 13","Tonnes","-",null,null,null,null,"-",null,null,null,null,"-"]
[null,null,null,"06 03 15* "," metallic oxides containing heavy metals","Tonnes","-",null,null,null,null,"-",null,null,null,null,"-"]
[null,null,null,"06 03 16 "," metallic oxides other than those mentioned in 06 03 15","Tonnes","-",null,null,null,null,"-",null,null,null,null,"-"]
[null,null,null,"06 03 99 "," wastes not otherwise specified","Tonnes","-",null,null,null,null,"-",null,null,null,null,"-"]
[null,null,null,"06 04 03* "," wastes containing arsenic","Tonnes","-",null,null,null,null,"-",null,null,null,null,"-"]
[null,null,null,"06 04 04* "," wastes containing mercury","Tonnes","-",null,null,null,null,"-",null,null,null,null,"-"]
[null,null,null,"06 04 05* "," wastes containing other heavy metals","Tonnes","-",null,null,null,null,"-",null,null,null,null,"-"]
[null,null,null,"06 04 99 "," wastes not otherwise specified","Tonnes","-",null,null,null,null,"-",null,null,null,null,"-"]
[null,null,null,"06 05 02* "," sludges from on-site effluent treatment containing dangerous substances","Tonnes","-",null,null,null,null,"-",null,null,null,null,"-"]
[null,null,null,"06 05 03 "," sludges from on-site effluent treatment other than those mentioned in 06 05 02","Tonnes","-",null,null,null,null,"-",null,null,null,null,"-"]
[null,null,null,"06 06 02* "," wastes containing dangerous sulphides","Tonnes","-",null,null,null,null,"-",null,null,null,null,"-"]
[null,null,null,"06 06 03 "," wastes containing sulphides other than those mentioned in 06 06 02","Tonnes","-",null,null,null,null,"-",null,null,null,null,"-"]
[null,null,null,"06 06 99 "," wastes not otherwise specified","Tonnes","-",null,null,null,null,"-",null,null,null,null,"-"]
[null,null,null,"06 07 01* "," wastes containing asbestos from electrolysis","Tonnes","-",null,null,null,null,"-",null,null,null,null,"-"]
[null,null,null,"06 07 02* "," activated carbon from chlorine production","Tonnes","-",null,null,null,null,"-",null,null,null,null,"-"]
[null,null,null,"06 07 03* "," barium sulphate sludge containing mercury","Tonnes","-",null,null,null,null,"-",null,null,null,null,"-"]
[null,null,null,"06 07 04* "," solutions and acids, for example contact acid","Tonnes","-",null,null,null,null,"-",null,null,null,null,"-"]
[null,null,null,"06 07 99 "," wastes not otherwise specified","Tonnes","-",null,null,null,null,"-",null,null,null,null,"-"]
[null,null,null,"06 08 02 "," wastes containing chlorosilanes","Tonnes","-",null,null,null,null,"-",null,null,null,null,"-"]
[null,null,null,"06 08 99 "," wastes not otherwise specified","Tonnes","-",null,null,null,null,"-",null,null,null,null,"-"]
[null,null,null,"06 09 02 "," phosphorous slag","Tonnes","-",null,null,null,null,"-",null,null,null,null,"-"]
[null,null,null,"06 09 03* "," calcium-based reaction wastes containing or contaminated with dangerous substances","Tonnes","-",null,null,null,null,"-",null,null,null,null,"-"]
[null,null,null,"06 09 04 "," calcium-based reaction wastes other than those mentioned in 06 09 03","Tonnes","-",null,null,null,null,"-",null,null,null,null,"-"]
[null,null,null,"06 09 99 "," wastes not otherwise specified","Tonnes","-",null,null,null,null,"-",null,null,null,null,"-"]
[null,null,null,"06 10 02* "," wastes containing dangerous substances","Tonnes","-",null,null,null,null,"-",null,null,null,null,"-"]
[null,null,null,"06 10 99 "," wastes not otherwise specified","Tonnes","-",null,null,null,null,"-",null,null,null,null,"-"]
[null,null,null,"06 11 01 "," calcium-based reaction wastes from titanium dioxide production","Tonnes","-",null,null,null,null,"-",null,null,null,null,"-"]
[null,null,null,"06 11 99 "," wastes not otherwise specified","Tonnes","-",null,null,null,null,"-",null,null,null,null,"-"]
[null,null,null,"06 13 01* "," inorganic plant protection products, wood-preserving agents and other biocides.","Tonnes","-",null,null,null,null,"-",null,null,null,null,"-"]
[null,null,null,"06 13 02* "," spent activated carbon (except 06 07 02)","Tonnes","-",null,null,null,null,"-",null,null,null,null,"-"]
[null,null,null,"06 13 03 "," carbon black","Tonnes","-",null,null,null,null,"-",null,null,null,null,"-"]
[null,null,null,"06 13 04* "," wastes from asbestos processing","Tonnes","-",null,null,null,null,"-",null,null,null,null,"-"]
[null,null,null,"06 13 05* "," soot","Tonnes","-",null,null,null,null,"-",null,null,null,null,"-"]
[null,null,null,"06 13 99 "," wastes not otherwise specified","Tonnes","-",null,null,null,null,"-",null,null,null,null,"-"]
[null,null,null,"07","WASTES FROM ORGANIC CHEMICAL PROCESSES","Tonnes","-",{"$f":"IF(SUM(H206:H282)=0,\"-\",SUM(H206:H282))","v":"-"},{"$f":"IF(SUM(I206:I282)=0,\"-\",SUM(I206:I282))","v":"-"},"-","-","-",{"$f":"IF(SUM(M206:M282)=0,\"-\",SUM(M206:M282))","v":"-"},{"$f":"IF(SUM(N206:N282)=0,\"-\",SUM(N206:N282))","v":"-"},"-","-","-",{"$f":"IF(SUM(R206:R282)=0,\"-\",SUM(R206:R282))","v":"-"},{"$f":"IF(SUM(S206:S282)=0,\"-\",SUM(S206:S282))","v":"-"},"-","-"]
[null,null,null,"07 01 01* "," aqueous washing liquids and mother liquors","Tonnes","-",null,null,null,null,"-",null,null,null,null,"-"]
[null,null,null,"07 01 03* "," organic halogenated solvents, washing liquids and mother liquors","Tonnes","-",null,null,null,null,"-",null,null,null,null,"-"]
[null,null,null,"07 01 04* "," other organic solvents, washing liquids and mother liquors","Tonnes","-",null,null,null,null,"-",null,null,null,null,"-"]
[null,null,null,"07 01 07* "," halogenated still bottoms and reaction residues","Tonnes","-",null,null,null,null,"-",null,null,null,null,"-"]
[null,null,null,"07 01 08* "," other still bottoms and reaction residues","Tonnes","-",null,null,null,null,"-",null,null,null,null,"-"]
[null,null,null,"07 01 09* "," halogenated filter cakes and spent absorbents","Tonnes","-",null,null,null,null,"-",null,null,null,null,"-"]
[null,null,null,"07 01 10* "," other filter cakes and spent absorbents","Tonnes","-",null,null,null,null,"-",null,null,null,null,"-"]
[null,null,null,"07 01 11* "," sludges from on-site effluent treatment containing dangerous substances","Tonnes","-",null,null,null,null,"-",null,null,null,null,"-"]
[null,null,null,"07 01 12 "," sludges from on-site effluent treatment other than those mentioned in 07 01 11","Tonnes","-",null,null,null,null,"-",null,null,null,null,"-"]
[null,null,null,"07 01 99 "," wastes not otherwise specified","Tonnes","-",null,null,null,null,"-",null,null,null,null,"-"]
[null,null,null,"07 02 01* "," aqueous washing liquids and mother liquors","Tonnes","-",null,null,null,null,"-",null,null,null,null,"-"]
[null,null,null,"07 02 03* "," organic halogenated solvents, washing liquids and mother liquors","Tonnes","-",null,null,null,null,"-",null,null,null,null,"-"]
[null,null,null,"07 02 04* "," other organic solvents, washing liquids and mother liquors","Tonnes","-",null,null,null,null,"-",null,null,null,null,"-"]
[null,null,null,"07 02 07* "," halogenated still bottoms and reaction residues","Tonnes",{"$f":"IF(SUM(H219:K219)=0,\"-\",SUM(H219:K219))","v":"-"},null,null,null,null,{"$f":"IF(SUM(M219:P219)=0,\"-\",SUM(M219:P219))","v":"-"},null,null,null,null,{"$f":"IF(SUM(R219:U219)=0,\"-\",SUM(R219:U219))","v":"-"}]
[null,null,null,"07 02 08* "," other still bottoms and reaction residues","Tonnes","-",null,null,null,null,"-",null,null,null,null,"-"]
[null,null,null,"07 02 09* "," halogenated filter cakes and spent absorbents","Tonnes","-",null,null,null,null,"-",null,null,null,null,"-"]
[null,null,null,"07 02 10* "," other filter cakes and spent absorbents","Tonnes","-",null,null,null,null,"-",null,null,null,null,"-"]
[null,null,null,"07 02 11* "," sludges from on-site effluent treatment containing dangerous substances","Tonnes","-",null,null,null,null,"-",null,null,null,null,"-"]
[null,null,null,"07 02 12 "," sludges from on-site effluent treatment other than those mentioned in 07 02 11","Tonnes","-",null,null,null,null,"-",null,null,null,null,"-"]
[null,null,null,"07 02 13 "," waste plastic","Tonnes","-",null,null,null,null,"-",null,null,null,null,"-"]
[null,null,null,"07 02 14* "," wastes from additives containing dangerous substances","Tonnes","-",null,null,null,null,"-",null,null,null,null,"-"]
[null,null,null,"07 02 15 "," wastes from additives other than those mentioned in 07 02 14","Tonnes","-",null,null,null,null,"-",null,null,null,null,"-"]
[null,null,null,"07 02 16 "," wastes containing silicones","Tonnes","-",null,null,null,null,"-",null,null,null,null,"-"]
[null,null,null,"07 02 99 "," wastes not otherwise specified","Tonnes","-",null,null,null,null,"-",null,null,null,null,"-"]
[null,null,null,"07 03 01* "," aqueous washing liquids and mother liquors","Tonnes","-",null,null,null,null,"-",null,null,null,null,"-"]
[null,null,null,"07 03 03* "," organic halogenated solvents, washing liquids and mother liquors","Tonnes","-",null,null,null,null,"-",null,null,null,null,"-"]
[null,null,null,"07 03 04* "," other organic solvents, washing liquids and mother liquors","Tonnes","-",null,null,null,null,"-",null,null,null,null,"-"]
[null,null,null,"07 03 07* "," halogenated still bottoms and reaction residues","Tonnes","-",null,null,null,null,"-",null,null,null,null,"-"]
[null,null,null,"07 03 08* "," other still bottoms and reaction residues","Tonnes","-",null,null,null,null,"-",null,null,null,null,"-"]
[null,null,null,"07 03 09* "," halogenated filter cakes and spent absorbents","Tonnes","-",null,null,null,null,"-",null,null,null,null,"-"]
[null,null,null,"07 03 10* "," other filter cakes and spent absorbents","Tonnes","-",null,null,null,null,"-",null,null,null,null,"-"]
[null,null,null,"07 03 11* "," sludges from on-site effluent treatment containing dangerous substances","Tonnes","-",null,null,null,null,"-",null,null,null,null,"-"]
[null,null,null,"07 03 12 "," sludges from on-site effluent treatment other than those mentioned in 07 03 11","Tonnes","-",null,null,null,null,"-",null,null,null,null,"-"]
[null,null,null,"07 03 99 "," wastes not otherwise specified","Tonnes","-",null,null,null,null,"-",null,null,null,null,"-"]
[null,null,null,"07 04 01* "," aqueous washing liquids and mother liquors","Tonnes","-",null,null,null,null,"-",null,null,null,null,"-"]
[null,null,null,"07 04 03* "," organic halogenated solvents, washing liquids and mother liquors","Tonnes","-",null,null,null,null,"-",null,null,null,null,"-"]
[null,null,null,"07 04 04* "," other organic solvents, washing liquids and mother liquors","Tonnes","-",null,null,null,null,"-",null,null,null,null,"-"]
[null,null,null,"07 04 07* "," halogenated still bottoms and reaction residues","Tonnes","-",null,null,null,null,"-",null,null,null,null,"-"]
[null,null,null,"07 04 08* "," other still bottoms and reaction residues","Tonnes","-",null,null,null,null,"-",null,null,null,null,"-"]
[null,null,null,"07 04 09* "," halogenated filter cakes and spent absorbents","Tonnes","-",null,null,null,null,"-",null,null,null,null,"-"]
[null,null,null,"07 04 10* "," other filter cakes and spent absorbents","Tonnes","-",null,null,null,null,"-",null,null,null,null,"-"]
[null,null,null,"07 04 11* "," sludges from on-site effluent treatment containing dangerous substances","Tonnes","-",null,null,null,null,"-",null,null,null,null,"-"]
[null,null,null,"07 04 12 "," sludges from on-site effluent treatment other than those mentioned in 07 04 11","Tonnes","-",null,null,null,null,"-",null,null,null,null,"-"]
[null,null,null,"07 04 13* "," solid wastes containing dangerous substances","Tonnes","-",null,null,null,null,"-",null,null,null,null,"-"]
[null,null,null,"07 04 99 "," wastes not otherwise specified","Tonnes","-",null,null,null,null,"-",null,null,null,null,"-"]
[null,null,null,"07 05 01* "," aqueous washing liquids and mother liquors","Tonnes","-",null,null,null,null,"-",null,null,null,null,"-"]
[null,null,null,"07 05 03* "," organic halogenated solvents, washing liquids and mother liquors","Tonnes","-",null,null,null,null,"-",null,null,null,null,"-"]
[null,null,null,"07 05 04* "," other organic solvents, washing liquids and mother liquors","Tonnes","-",null,null,null,null,"-",null,null,null,null,"-"]
[null,null,null,"07 05 07* "," halogenated still bottoms and reaction residues","Tonnes","-",null,null,null,null,"-",null,null,null,null,"-"]
[null,null,null,"07 05 08* "," other still bottoms and reaction residues","Tonnes","-",null,null,null,null,"-",null,null,null,null,"-"]
[null,null,null,"07 05 09* "," halogenated filter cakes and spent absorbents","Tonnes","-",null,null,null,null,"-",null,null,null,null,"-"]
[null,null,null,"07 05 10* "," other filter cakes and spent absorbents","Tonnes","-",null,null,null,null,"-",null,null,null,null,"-"]
[null,null,null,"07 05 11* "," sludges from on-site effluent treatment containing dangerous substances","Tonnes","-",null,null,null,null,"-",null,null,null,null,"-"]
[null,null,null,"07 05 12 "," sludges from on-site effluent treatment other than those mentioned in 07 05 11","Tonnes","-",null,null,null,null,"-",null,null,null,null,"-"]
[null,null,null,"07 05 13* "," solid wastes containing dangerous substances","Tonnes","-",null,null,null,null,"-",null,null,null,null,"-"]
[null,null,null,"07 05 14 "," solid wastes other than those mentioned in 07 05 13","Tonnes","-",null,null,null,null,"-",null,null,null,null,"-"]
[null,null,null,"07 05 99 "," wastes not otherwise specified","Tonnes","-",null,null,null,null,"-",null,null,null,null,"-"]
[null,null,null,"07 06 01* "," aqueous washing liquids and mother liquors","Tonnes","-",null,null,null,null,"-",null,null,null,null,"-"]
[null,null,null,"07 06 03* "," organic halogenated solvents, washing liquids and mother liquors","Tonnes","-",null,null,null,null,"-",null,null,null,null,"-"]
[null,null,null,"07 06 04* "," other organic solvents, washing liquids and mother liquors","Tonnes","-",null,null,null,null,"-",null,null,null,null,"-"]
[null,null,null,"07 06 07* "," halogenated still bottoms and reaction residues","Tonnes","-",null,null,null,null,"-",null,null,null,null,"-"]
[null,null,null,"07 06 08* "," other still bottoms and reaction residues","Tonnes","-",null,null,null,null,"-",null,null,null,null,"-"]
[null,null,null,"07 06 09* "," halogenated filter cakes and spent absorbents","Tonnes","-",null,null,null,null,"-",null,null,null,null,"-"]
[null,null,null,"07 06 10* "," other filter cakes and spent absorbents","Tonnes","-",null,null,null,null,"-",null,null,null,null,"-"]
[null,null,null,"07 06 11* "," sludges from on-site effluent treatment containing dangerous substances","Tonnes","-",null,null,null,null,"-",null,null,null,null,"-"]
[null,null,null,"07 06 12 "," sludges from on-site effluent treatment other than those mentioned in 07 06 11","Tonnes","-",null,null,null,null,"-",null,null,null,null,"-"]
[null,null,null,"07 06 99 "," wastes not otherwise specified","Tonnes","-",null,null,null,null,"-",null,null,null,null,"-"]
[null,null,null,"07 07 01* "," aqueous washing liquids and mother liquors","Tonnes","-",null,null,null,null,"-",null,null,null,null,"-"]
[null,null,null,"07 07 03* "," organic halogenated solvents, washing liquids and mother liquors","Tonnes","-",null,null,null,null,"-",null,null,null,null,"-"]
[null,null,null,"07 07 04* "," other organic solvents, washing liquids and mother liquors","Tonnes","-",null,null,null,null,"-",null,null,null,null,"-"]
[null,null,null,"07 07 07* "," halogenated still bottoms and reaction residues","Tonnes","-",null,null,null,null,"-",null,null,null,null,"-"]
[null,null,null,"07 07 08* "," other still bottoms and reaction residues","Tonnes","-",null,null,null,null,"-",null,null,null,null,"-"]
[null,null,null,"07 07 09* "," halogenated filter cakes and spent absorbents","Tonnes","-",null,null,null,null,"-",null,null,null,null,"-"]
[null,null,null,"07 07 10* "," other filter cakes and spent absorbents","Tonnes","-",null,null,null,null,"-",null,null,null,null,"-"]
[null,null,null,"07 07 11* "," sludges from on-site effluent treatment containing dangerous substances","Tonnes","-",null,null,null,null,"-",null,null,null,null,"-"]
[null,null,null,"07 07 12 "," sludges from on-site effluent treatment other than those mentioned in 07 07 11","Tonnes","-",null,null,null,null,"-",null,null,null,null,"-"]
[null,null,null,"07 07 99 "," wastes not otherwise specified","Tonnes","-",null,null,null,null,"-",null,null,null,null,"-"]
[null,null,null,"08","WASTES FROM THE MANUFACTURE, FORMULATION, SUPPLY AND USE (MFSU) OF COATINGS (PAINTS, VARNISHES AND VITREOUS ENAMELS), ADHESIVES, SEALANTS AND PRINTING INKS","Tonnes",{"$f":"IF(SUM(H283:K283)=0,\"-\",SUM(H283:K283))","v":"-"},{"$f":"IF(SUM(H284:H321)=0,\"-\",SUM(H284:H321))","v":"-"},{"$f":"IF(SUM(I284:I321)=0,\"-\",SUM(I284:I321))","v":"-"},"-","-",{"$f":"IF(SUM(M283:P283)=0,\"-\",SUM(M283:P283))","v":"-"},{"$f":"IF(SUM(M284:M321)=0,\"-\",SUM(M284:M321))","v":"-"},{"$f":"IF(SUM(N284:N321)=0,\"-\",SUM(N284:N321))","v":"-"},"-","-",{"$f":"IF(SUM(R283:U283)=0,\"-\",SUM(R283:U283))","v":"-"},{"$f":"IF(SUM(R284:R321)=0,\"-\",SUM(R284:R321))","v":"-"},{"$f":"IF(SUM(S284:S321)=0,\"-\",SUM(S284:S321))","v":"-"},"-","-"]
[null,null,null,"08 01 11* "," waste paint and varnish containing organic solvents or other dangerous substances","Tonnes","-",null,null,null,null,"-",null,null,null,null,"-"]
[null,null,null,"08 01 12 "," waste paint and varnish other than those mentioned in 08 01 11","Tonnes","-",null,null,null,null,"-",null,null,null,null,"-"]
[null,null,null,"08 01 13* "," sludges from paint or varnish containing organic solvents or other dangerous substances","Tonnes","-",null,null,null,null,"-",null,null,null,null,"-"]
[null,null,null,"08 01 14 "," sludges from paint or varnish other than those mentioned in 08 01 13","Tonnes","-",null,null,null,null,"-",null,null,null,null,"-"]
[null,null,null,"08 01 15* "," aqueous sludges containing paint or varnish containing organic solvents or other dangerous substances","Tonnes","-",null,null,null,null,"-",null,null,null,null,"-"]
[null,null,null,"08 01 16 "," aqueous sludges containing paint or varnish other than those mentioned in 08 01 15","Tonnes","-",null,null,null,null,"-",null,null,null,null,"-"]
[null,null,null,"08 01 17* "," wastes from paint or varnish removal containing organic solvents or other dangerous substances","Tonnes","-",null,null,null,null,"-",null,null,null,null,"-"]
[null,null,null,"08 01 18 "," wastes from paint or varnish removal other than those mentioned in 08 01 17","Tonnes","-",null,null,null,null,"-",null,null,null,null,"-"]
[null,null,null,"08 01 19* "," aqueous suspensions containing paint or varnish containing organic solvents or other dangerous substances","Tonnes","-",null,null,null,null,"-",null,null,null,null,"-"]
[null,null,null,"08 01 20 "," aqueous suspensions containing paint or varnish other than those mentioned in 08 01 19","Tonnes","-",null,null,null,null,"-",null,null,null,null,"-"]
[null,null,null,"08 01 21* "," waste paint or varnish remover","Tonnes","-",null,null,null,null,"-",null,null,null,null,"-"]
[null,null,null,"08 01 99 "," wastes not otherwise specified","Tonnes","-",null,null,null,null,"-",null,null,null,null,"-"]
[null,null,null,"08 02 01 "," waste coating powders","Tonnes","-",null,null,null,null,"-",null,null,null,null,"-"]
[null,null,null,"08 02 02 "," aqueous sludges containing ceramic materials","Tonnes","-",null,null,null,null,"-",null,null,null,null,"-"]
[null,null,null,"08 02 03 "," aqueous suspensions containing ceramic materials","Tonnes","-",null,null,null,null,"-",null,null,null,null,"-"]
[null,null,null,"08 02 99 "," wastes not otherwise specified","Tonnes","-",null,null,null,null,"-",null,null,null,null,"-"]
[null,null,null,"08 03 07 "," aqueous sludges containing ink","Tonnes","-",null,null,null,null,"-",null,null,null,null,"-"]
[null,null,null,"08 03 08 "," aqueous liquid waste containing ink","Tonnes","-",null,null,null,null,"-",null,null,null,null,"-"]
[null,null,null,"08 03 12* "," waste ink containing dangerous substances","Tonnes","-",null,null,null,null,"-",null,null,null,null,"-"]
[null,null,null,"08 03 13 "," waste ink other than those mentioned in 08 03 12","Tonnes","-",null,null,null,null,"-",null,null,null,null,"-"]
[null,null,null,"08 03 14* "," ink sludges containing dangerous substances","Tonnes","-",null,null,null,null,"-",null,null,null,null,"-"]
[null,null,null,"08 03 15 "," ink sludges other than those mentioned in 08 03 14","Tonnes","-",null,null,null,null,"-",null,null,null,null,"-"]
[null,null,null,"08 03 16* "," waste etching solutions","Tonnes","-",null,null,null,null,"-",null,null,null,null,"-"]
[null,null,null,"08 03 17* "," waste printing toner containing dangerous substances","Tonnes","-",null,null,null,null,"-",null,null,null,null,"-"]
[null,null,null,"08 03 18 "," waste printing toner other than those mentioned in 08 03 17","Tonnes","-",null,null,null,null,"-",null,null,null,null,"-"]
[null,null,null,"08 03 19* "," disperse oil","Tonnes","-",null,null,null,null,"-",null,null,null,null,"-"]
[null,null,null,"08 03 99 "," wastes not otherwise specified","Tonnes","-",null,null,null,null,"-",null,null,null,null,"-"]
[null,null,null,"08 04 09* "," waste adhesives and sealants containing organic solvents or other dangerous substances","Tonnes","-",null,null,null,null,"-",null,null,null,null,"-"]
[null,null,null,"08 04 10 "," waste adhesives and sealants other than those mentioned in 08 04 09","Tonnes","-",null,null,null,null,"-",null,null,null,null,"-"]
[null,null,null,"08 04 11* "," adhesive and sealant sludges containing organic solvents or other dangerous substances","Tonnes","-",null,null,null,null,"-",null,null,null,null,"-"]
[null,null,null,"08 04 12 "," adhesive and sealant sludges other than those mentioned in 08 04 11","Tonnes","-",null,null,null,null,"-",null,null,null,null,"-"]
[null,null,null,"08 04 13* "," aqueous sludges containing adhesives or sealants containing organic solvents or other dangerous substances","Tonnes","-",null,null,null,null,"-",null,null,null,null,"-"]
[null,null,null,"08 04 14 "," aqueous sludges containing adhesives or sealants other than those mentioned in 08 04 13","Tonnes","-",null,null,null,null,"-",null,null,null,null,"-"]
[null,null,null,"08 04 15* "," aqueous liquid waste containing adhesives or sealants containing organic solvents or other dangerous substances","Tonnes","-",null,null,null,null,"-",null,null,null,null,"-"]
[null,null,null,"08 04 16 "," aqueous liquid waste containing adhesives or sealants other than those mentioned in 08 04 15","Tonnes","-",null,null,null,null,"-",null,null,null,null,"-"]
[null,null,null,"08 04 17* "," rosin oil","Tonnes","-",null,null,null,null,"-",null,null,null,null,"-"]
[null,null,null,"08 04 99 "," wastes not otherwise specified","Tonnes","-",null,null,null,null,"-",null,null,null,null,"-"]
[null,null,null,"08 05 01* "," waste isocyanates","Tonnes","-",null,null,null,null,"-",null,null,null,null,"-"]
[null,null,null,"09","WASTES FROM THE PHOTOGRAPHIC INDUSTRY","Tonnes","-",{"$f":"IF(SUM(H323:H335)=0,\"-\",SUM(H323:H335))","v":"-"},{"$f":"IF(SUM(I323:I335)=0,\"-\",SUM(I323:I335))","v":"-"},"-","-","-",{"$f":"IF(SUM(M323:M335)=0,\"-\",SUM(M323:M335))","v":"-"},{"$f":"IF(SUM(N323:N335)=0,\"-\",SUM(N323:N335))","v":"-"},"-","-","-",{"$f":"IF(SUM(R323:R335)=0,\"-\",SUM(R323:R335))","v":"-"},{"$f":"IF(SUM(S323:S335)=0,\"-\",SUM(S323:S335))","v":"-"},"-","-"]
[null,null,null,"09 01 01* "," water-based developer and activator solutions","Tonnes","-",null,null,null,null,"-",null,null,null,null,"-"]
[null,null,null,"09 01 02* "," water-based offset plate developer solutions","Tonnes","-",null,null,null,null,"-",null,null,null,null,"-"]
[null,null,null,"09 01 03* "," solvent-based developer solutions","Tonnes","-",null,null,null,null,"-",null,null,null,null,"-"]
[null,null,null,"09 01 04* "," fixer solutions","Tonnes","-",null,null,null,null,"-",null,null,null,null,"-"]
[null,null,null,"09 01 05* "," bleach solutions and bleach fixer solutions","Tonnes","-",null,null,null,null,"-",null,null,null,null,"-"]
[null,null,null,"09 01 06* "," wastes containing silver from on-site treatment of photographic wastes","Tonnes","-",null,null,null,null,"-",null,null,null,null,"-"]
[null,null,null,"09 01 07 "," photographic film and paper containing silver or silver compounds","Tonnes","-",null,null,null,null,"-",null,null,null,null,"-"]
[null,null,null,"09 01 08 "," photographic film and paper free of silver or silver compounds","Tonnes","-",null,null,null,null,"-",null,null,null,null,"-"]
[null,null,null,"09 01 10 "," single-use cameras without batteries","Tonnes","-",null,null,null,null,"-",null,null,null,null,"-"]
[null,null,null,"09 01 11* "," single-use cameras containing batteries included in 16 06 01, 16 06 02 or 16 06 03","Tonnes","-",null,null,null,null,"-",null,null,null,null,"-"]
[null,null,null,"09 01 12 "," single-use cameras containing batteries other than those mentioned in 09 01 11","Tonnes","-",null,null,null,null,"-",null,null,null,null,"-"]
[null,null,null,"09 01 13* "," aqueous liquid waste from on-site reclamation of silver other than those mentioned in 09 01 06","Tonnes","-",null,null,null,null,"-",null,null,null,null,"-"]
[null,null,null,"09 01 99 "," wastes not otherwise specified","Tonnes","-",null,null,null,null,"-",null,null,null,null,"-"]
[null,null,null,"10","WASTES FROM THERMAL PROCESSES","Tonnes","-",{"$f":"IF(SUM(H337:H509)=0,\"-\",SUM(H337:H509))","v":"-"},{"$f":"IF(SUM(I337:I509)=0,\"-\",SUM(I337:I509))","v":"-"},"-","-","-",{"$f":"IF(SUM(M337:M509)=0,\"-\",SUM(M337:M509))","v":"-"},{"$f":"IF(SUM(N337:N509)=0,\"-\",SUM(N337:N509))","v":"-"},"-","-","-",{"$f":"IF(SUM(R337:R509)=0,\"-\",SUM(R337:R509))","v":"-"},{"$f":"IF(SUM(S337:S509)=0,\"-\",SUM(S337:S509))","v":"-"},"-",{"$f":"IF(SUM(U337:U509)=0,\"-\",SUM(U337:U509))","v":"-"}]
[null,null,null,"10 01 01 "," bottom ash, slag and boiler dust (excluding boiler dust mentioned in 10 01 04)","Tonnes","-",null,null,null,null,"-",null,null,null,null,"-"]
[null,null,null,"10 01 02 "," coal fly ash","Tonnes","-",null,null,null,null,"-",null,null,null,null,"-"]
[null,null,null,"10 01 03 "," fly ash from peat and untreated wood","Tonnes","-",null,null,null,null,"-",null,null,null,null,"-"]
[null,null,null,"10 01 04* "," oil fly ash and boiler dust","Tonnes","-",null,null,null,null,"-",null,null,null,null,"-"]
[null,null,null,"10 01 05  ","Calcium-based reaction wastes from flue-gas desulphurisation in solid form","Tonnes","-",null,null,null,null,"-",null,null,null,null,"-"]
[null,null,null,"10 01 07 "," calcium-based reaction wastes from flue-gas desulphurisation in sludge form","Tonnes","-",null,null,null,null,"-",null,null,null,null,"-"]
[null,null,null,"10 01 09* "," sulphuric acid","Tonnes","-",null,null,null,null,"-",null,null,null,null,"-"]
[null,null,null,"10 01 13* "," fly ash from emulsified hydrocarbons used as fuel","Tonnes","-",null,null,null,null,"-",null,null,null,null,"-"]
[null,null,null,"10 01 14* "," bottom ash, slag and boiler dust from co-incineration containing dangerous substances","Tonnes","-",null,null,null,null,"-",null,null,null,null,"-"]
[null,null,null,"10 01 15  ","Bottom ash, slag and boiler dust from co-incineration other than those mentioned in 10 01 14","Tonnes","-",null,null,null,null,"-",null,null,null,null,"-"]
[null,null,null,"10 01 16* "," fly ash from co-incineration containing dangerous substances","Tonnes",{"$f":"IF(SUM(H347:K347)=0,\"-\",SUM(H347:K347))","v":"-"},null,null,null,null,{"$f":"IF(SUM(M347:P347)=0,\"-\",SUM(M347:P347))","v":"-"},null,null,null,null,{"$f":"IF(SUM(R347:U347)=0,\"-\",SUM(R347:U347))","v":"-"}]
[null,null,null,"10 01 17 "," fly ash from co-incineration other than those mentioned in 10 01 16","Tonnes","-",null,null,null,null,"-",null,null,null,null,"-"]
[null,null,null,"10 01 18* "," wastes from gas cleaning containing dangerous substances","Tonnes","-",null,null,null,null,"-",null,null,null,null,"-"]
[null,null,null,"10 01 19 "," wastes from gas cleaning other than those mentioned in 10 01 05, 10 01 07 and 10 01 18","Tonnes","-",null,null,null,null,"-",null,null,null,null,"-"]
[null,null,null,"10 01 20* "," sludges from on-site effluent treatment containing dangerous substances","Tonnes","-",null,null,null,null,"-",null,null,null,null,"-"]
[null,null,null,"10 01 21 "," sludges from on-site effluent treatment other than those mentioned in 10 01 20","Tonnes","-",null,null,null,null,"-",null,null,null,null,"-"]
[null,null,null,"10 01 22* "," aqueous sludges from boiler cleansing containing dangerous substances","Tonnes","-",null,null,null,null,"-",null,null,null,null,"-"]
[null,null,null,"10 01 23 "," aqueous sludges from boiler cleansing other than those mentioned in 10 01 22","Tonnes","-",null,null,null,null,"-",null,null,null,null,"-"]
[null,null,null,"10 01 24 "," sands from fluidised beds","Tonnes","-",null,null,null,null,"-",null,null,null,null,"-"]
[null,null,null,"10 01 25 "," wastes from fuel storage and preparation of coal-fired power plants","Tonnes","-",null,null,null,null,"-",null,null,null,null,"-"]
[null,null,null,"10 01 26 "," wastes from cooling-water treatment","Tonnes","-",null,null,null,null,"-",null,null,null,null,"-"]
[null,null,null,"10 01 99 "," wastes not otherwise specified","Tonnes","-",null,null,null,null,"-",null,null,null,null,"-"]
[null,null,null,"10 02 01 "," wastes from the processing of slag","Tonnes","-",null,null,null,null,"-",null,null,null,null,"-"]
[null,null,null,"10 02 02 "," unprocessed slag","Tonnes","-",null,null,null,null,"-",null,null,null,null,"-"]
[null,null,null,"10 02 07* "," solid wastes from gas treatment containing dangerous substances","Tonnes","-",null,null,null,null,"-",null,null,null,null,"-"]
[null,null,null,"10 02 08 "," solid wastes from gas treatment other than those mentioned in 10 02 07","Tonnes","-",null,null,null,null,"-",null,null,null,null,"-"]
[null,null,null,"10 02 10 "," mill scales","Tonnes","-",null,null,null,null,"-",null,null,null,null,"-"]
[null,null,null,"10 02 11* "," wastes from cooling-water treatment containing oil","Tonnes","-",null,null,null,null,"-",null,null,null,null,"-"]
[null,null,null,"10 02 12 "," wastes from cooling-water treatment other than those mentioned in 10 02 11","Tonnes","-",null,null,null,null,"-",null,null,null,null,"-"]
[null,null,null,"10 02 13* "," sludges and filter cakes from gas treatment containing dangerous substances","Tonnes","-",null,null,null,null,"-",null,null,null,null,"-"]
[null,null,null,"10 02 14 "," sludges and filter cakes from gas treatment other than those mentioned in 10 02 13","Tonnes","-",null,null,null,null,"-",null,null,null,null,"-"]
[null,null,null,"10 02 15 "," other sludges and filter cakes","Tonnes","-",null,null,null,null,"-",null,null,null,null,"-"]
[null,null,null,"10 02 99 "," wastes not otherwise specified","Tonnes","-",null,null,null,null,"-",null,null,null,null,"-"]
[null,null,null,"10 03 02 "," anode scraps","Tonnes","-",null,null,null,null,"-",null,null,null,null,"-"]
[null,null,null,"10 03 04* "," primary production slags","Tonnes","-",null,null,null,null,"-",null,null,null,null,"-"]
[null,null,null,"10 03 05 "," waste alumina","Tonnes","-",null,null,null,null,"-",null,null,null,null,"-"]
[null,null,null,"10 03 08* "," salt slags from secondary production","Tonnes","-",null,null,null,null,"-",null,null,null,null,"-"]
[null,null,null,"10 03 09* "," black drosses from secondary production","Tonnes","-",null,null,null,null,"-",null,null,null,null,"-"]
[null,null,null,"10 03 15* "," skimmings that are flammable or emit, upon contact with water, flammable gases in dangerous quantities","Tonnes","-",null,null,null,null,"-",null,null,null,null,"-"]
[null,null,null,"10 03 16 "," skimmings other than those mentioned in 10 03 15","Tonnes","-",null,null,null,null,"-",null,null,null,null,"-"]
[null,null,null,"10 03 17* "," tar-containing wastes from anode manufacture","Tonnes","-",null,null,null,null,"-",null,null,null,null,"-"]
[null,null,null,"10 03 18 "," carbon-containing wastes from anode manufacture other than those mentioned in 10 03 17","Tonnes","-",null,null,null,null,"-",null,null,null,null,"-"]
[null,null,null,"10 03 19* "," flue-gas dust containing dangerous substances","Tonnes","-",null,null,null,null,"-",null,null,null,null,"-"]
[null,null,null,"10 03 20 "," flue-gas dust other than those mentioned in 10 03 19","Tonnes","-",null,null,null,null,"-",null,null,null,null,"-"]
[null,null,null,"10 03 21* "," other particulates and dust (including ball-mill dust) containing dangerous substances","Tonnes","-",null,null,null,null,"-",null,null,null,null,"-"]
[null,null,null,"10 03 22 "," other particulates and dust (including ball-mill dust) other than those mentioned in 10 03 21","Tonnes","-",null,null,null,null,"-",null,null,null,null,"-"]
[null,null,null,"10 03 23* "," solid wastes from gas treatment containing dangerous substances","Tonnes","-",null,null,null,null,"-",null,null,null,null,"-"]
[null,null,null,"10 03 24 "," solid wastes from gas treatment other than those mentioned in 10 03 23","Tonnes","-",null,null,null,null,"-",null,null,null,null,"-"]
[null,null,null,"10 03 25* "," sludges and filter cakes from gas treatment containing dangerous substances","Tonnes","-",null,null,null,null,"-",null,null,null,null,"-"]
[null,null,null,"10 03 26 "," sludges and filter cakes from gas treatment other than those mentioned in 10 03 25","Tonnes","-",null,null,null,null,"-",null,null,null,null,"-"]
[null,null,null,"10 03 27* "," wastes from cooling-water treatment containing oil","Tonnes","-",null,null,null,null,"-",null,null,null,null,"-"]
[null,null,null,"10 03 28 "," wastes from cooling-water treatment other than those mentioned in 10 03 27","Tonnes","-",null,null,null,null,"-",null,null,null,null,"-"]
[null,null,null,"10 03 29* "," wastes from treatment of salt slags and black drosses containing dangerous substances","Tonnes","-",null,null,null,null,"-",null,null,null,null,"-"]
[null,null,null,"10 03 30 "," wastes from treatment of salt slags and black drosses other than those mentioned in 10 03 29","Tonnes","-",null,null,null,null,"-",null,null,null,null,"-"]
[null,null,null,"10 03 99 "," wastes not otherwise specified","Tonnes","-",null,null,null,null,"-",null,null,null,null,"-"]
[null,null,null,"10 04 01* "," slags from primary and secondary production","Tonnes","-",null,null,null,null,"-",null,null,null,null,"-"]
[null,null,null,"10 04 02* "," dross and skimmings from primary and secondary production","Tonnes","-",null,null,null,null,"-",null,null,null,null,"-"]
[null,null,null,"10 04 03* "," calcium arsenate","Tonnes","-",null,null,null,null,"-",null,null,null,null,"-"]
[null,null,null,"10 04 04* "," flue-gas dust","Tonnes","-",null,null,null,null,"-",null,null,null,null,"-"]
[null,null,null,"10 04 05* "," other particulates and dust","Tonnes","-",null,null,null,null,"-",null,null,null,null,"-"]
[null,null,null,"10 04 06* "," solid wastes from gas treatment","Tonnes","-",null,null,null,null,"-",null,null,null,null,"-"]
[null,null,null,"10 04 07* "," sludges and filter cakes from gas treatment","Tonnes","-",null,null,null,null,"-",null,null,null,null,"-"]
[null,null,null,"10 04 09* "," wastes from cooling-water treatment containing oil","Tonnes","-",null,null,null,null,"-",null,null,null,null,"-"]
[null,null,null,"10 04 10 "," wastes from cooling-water treatment other than those mentioned in 10 04 09","Tonnes","-",null,null,null,null,"-",null,null,null,null,"-"]
[null,null,null,"10 04 99 "," wastes not otherwise specified","Tonnes","-",null,null,null,null,"-",null,null,null,null,"-"]
[null,null,null,"10 05 01 "," slags from primary and secondary production","Tonnes","-",null,null,null,null,"-",null,null,null,null,"-"]
[null,null,null,"10 05 03* "," flue-gas dust","Tonnes","-",null,null,null,null,"-",null,null,null,null,"-"]
[null,null,null,"10 05 04 "," other particulates and dust","Tonnes","-",null,null,null,null,"-",null,null,null,null,"-"]
[null,null,null,"10 05 05* "," solid waste from gas treatment","Tonnes","-",null,null,null,null,"-",null,null,null,null,"-"]
[null,null,null,"10 05 06* "," sludges and filter cakes from gas treatment","Tonnes","-",null,null,null,null,"-",null,null,null,null,"-"]
[null,null,null,"10 05 08* "," wastes from cooling-water treatment containing oil","Tonnes","-",null,null,null,null,"-",null,null,null,null,"-"]
[null,null,null,"10 05 09 "," wastes from cooling-water treatment other than those mentioned in 10 05 08","Tonnes","-",null,null,null,null,"-",null,null,null,null,"-"]
[null,null,null,"10 05 10* "," dross and skimmings that are flammable or emit, upon contact with water, flammable gases in dangerous quantities","Tonnes","-",null,null,null,null,"-",null,null,null,null,"-"]
[null,null,null,"10 05 11 "," dross and skimmings other than those mentioned in 10 05 10","Tonnes","-",null,null,null,null,"-",null,null,null,null,"-"]
[null,null,null,"10 05 99 "," wastes not otherwise specified","Tonnes",{"$f":"IF(SUM(H411:K411)=0,\"-\",SUM(H411:K411))","v":"-"},null,null,null,null,{"$f":"IF(SUM(M411:P411)=0,\"-\",SUM(M411:P411))","v":"-"},null,null,null,null,{"$f":"IF(SUM(R411:U411)=0,\"-\",SUM(R411:U411))","v":"-"}]
[null,null,null,"10 06 01 "," slags from primary and secondary production","Tonnes","-",null,null,null,null,"-",null,null,null,null,"-"]
[null,null,null,"10 06 02 "," dross and skimmings from primary and secondary production","Tonnes","-",null,null,null,null,"-",null,null,null,null,"-"]
[null,null,null,"10 06 03* "," flue-gas dust","Tonnes","-",null,null,null,null,"-",null,null,null,null,"-"]
[null,null,null,"10 06 04 "," other particulates and dust","Tonnes","-",null,null,null,null,"-",null,null,null,null,"-"]
[null,null,null,"10 06 06* "," solid wastes from gas treatment","Tonnes","-",null,null,null,null,"-",null,null,null,null,"-"]
[null,null,null,"10 06 07* "," sludges and filter cakes from gas treatment","Tonnes","-",null,null,null,null,"-",null,null,null,null,"-"]
[null,null,null,"10 06 09* "," wastes from cooling-water treatment containing oil","Tonnes","-",null,null,null,null,"-",null,null,null,null,"-"]
[null,null,null,"10 06 10 "," wastes from cooling-water treatment other than those mentioned in 10 06 09","Tonnes","-",null,null,null,null,"-",null,null,null,null,"-"]
[null,null,null,"10 06 99 "," wastes not otherwise specified","Tonnes","-",null,null,null,null,"-",null,null,null,null,"-"]
[null,null,null,"10 07 01 "," slags from primary and secondary production","Tonnes","-",null,null,null,null,"-",null,null,null,null,"-"]
[null,null,null,"10 07 02 "," dross and skimmings from primary and secondary production","Tonnes","-",null,null,null,null,"-",null,null,null,null,"-"]
[null,null,null,"10 07 03 "," solid wastes from gas treatment","Tonnes","-",null,null,null,null,"-",null,null,null,null,"-"]
[null,null,null,"10 07 04 "," other particulates and dust","Tonnes","-",null,null,null,null,"-",null,null,null,null,"-"]
[null,null,null,"10 07 05 "," sludges and filter cakes from gas treatment","Tonnes","-",null,null,null,null,"-",null,null,null,null,"-"]
[null,null,null,"10 07 07* "," wastes from cooling-water treatment containing oil","Tonnes","-",null,null,null,null,"-",null,null,null,null,"-"]
[null,null,null,"10 07 08 "," wastes from cooling-water treatment other than those mentioned in 10 07 07","Tonnes","-",null,null,null,null,"-",null,null,null,null,"-"]
[null,null,null,"10 07 99 "," wastes not otherwise specified","Tonnes","-",null,null,null,null,"-",null,null,null,null,"-"]
[null,null,null,"10 08 04 "," particulates and dust","Tonnes","-",null,null,null,null,"-",null,null,null,null,"-"]
[null,null,null,"10 08 08* "," salt slag from primary and secondary production","Tonnes","-",null,null,null,null,"-",null,null,null,null,"-"]
[null,null,null,"10 08 09 "," other slags","Tonnes","-",null,null,null,null,"-",null,null,null,null,"-"]
[null,null,null,"10 08 10* "," dross and skimmings that are flammable or emit, upon contact with water, flammable gases in dangerous quantities","Tonnes","-",null,null,null,null,"-",null,null,null,null,"-"]
[null,null,null,"10 08 11 "," dross and skimmings other than those mentioned in 10 08 10","Tonnes","-",null,null,null,null,"-",null,null,null,null,"-"]
[null,null,null,"10 08 12* "," tar-containing wastes from anode manufacture","Tonnes","-",null,null,null,null,"-",null,null,null,null,"-"]
[null,null,null,"10 08 13 "," carbon-containing wastes from anode manufacture other than those mentioned in 10 08 12","Tonnes","-",null,null,null,null,"-",null,null,null,null,"-"]
[null,null,null,"10 08 14 "," anode scrap","Tonnes","-",null,null,null,null,"-",null,null,null,null,"-"]
[null,null,null,"10 08 15* "," flue-gas dust containing dangerous substances","Tonnes","-",null,null,null,null,"-",null,null,null,null,"-"]
[null,null,null,"10 08 16 "," flue-gas dust other than those mentioned in 10 08 15","Tonnes","-",null,null,null,null,"-",null,null,null,null,"-"]
[null,null,null,"10 08 17* "," sludges and filter cakes from flue-gas treatment containing dangerous substances","Tonnes","-",null,null,null,null,"-",null,null,null,null,"-"]
[null,null,null,"10 08 18 "," sludges and filter cakes from flue-gas treatment other than those mentioned in 10 08 17","Tonnes","-",null,null,null,null,"-",null,null,null,null,"-"]
[null,null,null,"10 08 19* "," wastes from cooling-water treatment containing oil","Tonnes","-",null,null,null,null,"-",null,null,null,null,"-"]
[null,null,null,"10 08 20 "," wastes from cooling-water treatment other than those mentioned in 10 08 19","Tonnes","-",null,null,null,null,"-",null,null,null,null,"-"]
[null,null,null,"10 08 99 "," wastes not otherwise specified","Tonnes","-",null,null,null,null,"-",null,null,null,null,"-"]
[null,null,null,"10 09 03 "," furnace slag","Tonnes","-",null,null,null,null,"-",null,null,null,null,"-"]
[null,null,null,"10 09 05* "," casting cores and moulds which have not undergone pouring containing dangerous substances","Tonnes","-",null,null,null,null,"-",null,null,null,null,"-"]
[null,null,null,"10 09 06 "," casting cores and moulds which have not undergone pouring other than those mentioned in 10 09 05","Tonnes","-",null,null,null,null,"-",null,null,null,null,"-"]
[null,null,null,"10 09 07* "," casting cores and moulds which have undergone pouring containing dangerous substances","Tonnes","-",null,null,null,null,"-",null,null,null,null,"-"]
[null,null,null,"10 09 08 "," casting cores and moulds which have undergone pouring other than those mentioned in 10 09 07","Tonnes","-",null,null,null,null,"-",null,null,null,null,"-"]
[null,null,null,"10 09 09* "," flue-gas dust containing dangerous substances","Tonnes","-",null,null,null,null,"-",null,null,null,null,"-"]
[null,null,null,"10 09 10 "," flue-gas dust other than those mentioned in 10 09 09","Tonnes","-",null,null,null,null,"-",null,null,null,null,"-"]
[null,null,null,"10 09 11* "," other particulates containing dangerous substances","Tonnes","-",null,null,null,null,"-",null,null,null,null,"-"]
[null,null,null,"10 09 12 "," other particulates other than those mentioned in 10 09 11","Tonnes","-",null,null,null,null,"-",null,null,null,null,"-"]
[null,null,null,"10 09 13* "," waste binders containing dangerous substances","Tonnes","-",null,null,null,null,"-",null,null,null,null,"-"]
[null,null,null,"10 09 14 "," waste binders other than those mentioned in 10 09 13","Tonnes","-",null,null,null,null,"-",null,null,null,null,"-"]
[null,null,null,"10 09 15* "," waste crack-indicating agent containing dangerous substances","Tonnes","-",null,null,null,null,"-",null,null,null,null,"-"]
[null,null,null,"10 09 16 "," waste crack-indicating agent other than those mentioned in 10 09 15","Tonnes","-",null,null,null,null,"-",null,null,null,null,"-"]
[null,null,null,"10 09 99 "," wastes not otherwise specified","Tonnes","-",null,null,null,null,"-",null,null,null,null,"-"]
[null,null,null,"10 10 03 "," furnace slag","Tonnes","-",null,null,null,null,"-",null,null,null,null,"-"]
[null,null,null,"10 10 05* "," casting cores and moulds which have not undergone pouring, containing dangerous substances","Tonnes","-",null,null,null,null,"-",null,null,null,null,"-"]
[null,null,null,"10 10 06 "," casting cores and moulds which have not undergone pouring, other than those mentioned in 10 10 05","Tonnes","-",null,null,null,null,"-",null,null,null,null,"-"]
[null,null,null,"10 10 07* "," casting cores and moulds which have undergone pouring, containing dangerous substances","Tonnes","-",null,null,null,null,"-",null,null,null,null,"-"]
[null,null,null,"10 10 08 "," casting cores and moulds which have undergone pouring, other than those mentioned in 10 10 07","Tonnes","-",null,null,null,null,"-",null,null,null,null,"-"]
[null,null,null,"10 10 09* "," flue-gas dust containing dangerous substances","Tonnes","-",null,null,null,null,"-",null,null,null,null,"-"]
[null,null,null,"10 10 10 "," flue-gas dust other than those mentioned in 10 10 09","Tonnes","-",null,null,null,null,"-",null,null,null,null,"-"]
[null,null,null,"10 10 11* "," other particulates containing dangerous substances","Tonnes","-",null,null,null,null,"-",null,null,null,null,"-"]
[null,null,null,"10 10 12 "," other particulates other than those mentioned in 10 10 11","Tonnes","-",null,null,null,null,"-",null,null,null,null,"-"]
[null,null,null,"10 10 13* "," waste binders containing dangerous substances","Tonnes","-",null,null,null,null,"-",null,null,null,null,"-"]
[null,null,null,"10 10 14 "," waste binders other than those mentioned in 10 10 13","Tonnes","-",null,null,null,null,"-",null,null,null,null,"-"]
[null,null,null,"10 10 15* "," waste crack-indicating agent containing dangerous substances","Tonnes","-",null,null,null,null,"-",null,null,null,null,"-"]
[null,null,null,"10 10 16 "," waste crack-indicating agent other than those mentioned in 10 10 15","Tonnes","-",null,null,null,null,"-",null,null,null,null,"-"]
[null,null,null,"10 10 99 "," wastes not otherwise specified","Tonnes","-",null,null,null,null,"-",null,null,null,null,"-"]
[null,null,null,"10 11 03 "," waste glass-based fibrous materials","Tonnes","-",null,null,null,null,"-",null,null,null,null,"-"]
[null,null,null,"10 11 05 "," particulates and dust","Tonnes","-",null,null,null,null,"-",null,null,null,null,"-"]
[null,null,null,"10 11 09* "," waste preparation mixture before thermal processing, containing dangerous substances","Tonnes","-",null,null,null,null,"-",null,null,null,null,"-"]
[null,null,null,"10 11 10 "," waste preparation mixture before thermal processing, other than those mentioned in 10 11 09","Tonnes",{"$f":"IF(SUM(H475:K475)=0,\"-\",SUM(H475:K475))","v":"-"},null,null,null,null,{"$f":"IF(SUM(M475:P475)=0,\"-\",SUM(M475:P475))","v":"-"},null,null,null,null,{"$f":"IF(SUM(R475:U475)=0,\"-\",SUM(R475:U475))","v":"-"}]
[null,null,null,"10 11 11* "," waste glass in small particles and glass powder containing heavy metals (for example from cathode ray tubes)","Tonnes","-",null,null,null,null,"-",null,null,null,null,"-"]
[null,null,null,"10 11 12 "," waste glass other than those mentioned in 10 11 11","Tonnes","-",null,null,null,null,"-",null,null,null,null,"-"]
[null,null,null,"10 11 13* "," glass-polishing and -grinding sludge containing dangerous substances","Tonnes","-",null,null,null,null,"-",null,null,null,null,"-"]
[null,null,null,"10 11 14 "," glass-polishing and -grinding sludge other than those mentioned in 10 11 13","Tonnes","-",null,null,null,null,"-",null,null,null,null,"-"]
[null,null,null,"10 11 15* "," solid wastes from flue-gas treatment containing dangerous substances","Tonnes","-",null,null,null,null,"-",null,null,null,null,"-"]
[null,null,null,"10 11 16 "," solid wastes from flue-gas treatment other than those mentioned in 10 11 15","Tonnes","-",null,null,null,null,"-",null,null,null,null,"-"]
[null,null,null,"10 11 17* "," sludges and filter cakes from flue-gas treatment containing dangerous substances","Tonnes","-",null,null,null,null,"-",null,null,null,null,"-"]
[null,null,null,"10 11 18 "," sludges and filter cakes from flue-gas treatment other than those mentioned in 10 11 17","Tonnes","-",null,null,null,null,"-",null,null,null,null,"-"]
[null,null,null,"10 11 19* "," solid wastes from on-site effluent treatment containing dangerous substances","Tonnes","-",null,null,null,null,"-",null,null,null,null,"-"]
[null,null,null,"10 11 20 "," solid wastes from on-site effluent treatment other than those mentioned in 10 11 19","Tonnes","-",null,null,null,null,"-",null,null,null,null,"-"]
[null,null,null,"10 11 99 "," wastes not otherwise specified","Tonnes","-",null,null,null,null,"-",null,null,null,null,"-"]
[null,null,null,"10 12 01 "," waste preparation mixture before thermal processing","Tonnes","-",null,null,null,null,"-",null,null,null,null,"-"]
[null,null,null,"10 12 03 "," particulates and dust","Tonnes","-",null,null,null,null,"-",null,null,null,null,"-"]
[null,null,null,"10 12 05 "," sludges and filter cakes from gas treatment","Tonnes","-",null,null,null,null,"-",null,null,null,null,"-"]
[null,null,null,"10 12 06 "," discarded moulds","Tonnes","-",null,null,null,null,"-",null,null,null,null,"-"]
[null,null,null,"10 12 08 "," waste ceramics, bricks, tiles and construction products (after thermal processing)","Tonnes","-",null,null,null,null,"-",null,null,null,null,"-"]
[null,null,null,"10 12 09* "," solid wastes from gas treatment containing dangerous substances","Tonnes","-",null,null,null,null,"-",null,null,null,null,"-"]
[null,null,null,"10 12 10 "," solid wastes from gas treatment other than those mentioned in 10 12 09","Tonnes","-",null,null,null,null,"-",null,null,null,null,"-"]
[null,null,null,"10 12 11* "," wastes from glazing containing heavy metals","Tonnes","-",null,null,null,null,"-",null,null,null,null,"-"]
[null,null,null,"10 12 12 "," wastes from glazing other than those mentioned in 10 12 11","Tonnes","-",null,null,null,null,"-",null,null,null,null,"-"]
[null,null,null,"10 12 13 "," sludge from on-site effluent treatment","Tonnes","-",null,null,null,null,"-",null,null,null,null,"-"]
[null,null,null,"10 12 99 "," wastes not otherwise specified","Tonnes","-",null,null,null,null,"-",null,null,null,null,"-"]
[null,null,null,"10 13 01 "," waste preparation mixture before thermal processing","Tonnes","-",null,null,null,null,"-",null,null,null,null,"-"]
[null,null,null,"10 13 04 "," wastes from calcination and hydration of lime","Tonnes","-",null,null,null,null,"-",null,null,null,null,"-"]
[null,null,null,"10 13 06 "," particulates and dust (except 10 13 12 and 10 13 13)","Tonnes","-",null,null,null,null,"-",null,null,null,null,"-"]
[null,null,null,"10 13 07 "," sludges and filter cakes from gas treatment","Tonnes","-",null,null,null,null,"-",null,null,null,null,"-"]
[null,null,null,"10 13 09* "," wastes from asbestos-cement manufacture containing asbestos","Tonnes","-",null,null,null,null,"-",null,null,null,null,"-"]
[null,null,null,"10 13 10 "," wastes from asbestos-cement manufacture other than those mentioned in 10 13 09","Tonnes","-",null,null,null,null,"-",null,null,null,null,"-"]
[null,null,null,"10 13 11 "," wastes from cement-based composite materials other than those mentioned in 10 13 09 and 10 13 10","Tonnes","-",null,null,null,null,"-",null,null,null,null,"-"]
[null,null,null,"10 13 12* "," solid wastes from gas treatment containing dangerous substances","Tonnes","-",null,null,null,null,"-",null,null,null,null,"-"]
[null,null,null,"10 13 13 "," solid wastes from gas treatment other than those mentioned in 10 13 12","Tonnes","-",null,null,null,null,"-",null,null,null,null,"-"]
[null,null,null,"10 13 14 "," waste concrete and concrete sludge","Tonnes","-",null,null,null,null,"-",null,null,null,null,"-"]
[null,null,null,"10 13 99 "," wastes not otherwise specified","Tonnes","-",null,null,null,null,"-",null,null,null,null,"-"]
[null,null,null,"10 14 01* "," waste from gas cleaning containing mercury","Tonnes","-",null,null,null,null,"-",null,null,null,null,"-"]
[null,null,null,11,"WASTES FROM CHEMICAL SURFACE TREATMENT AND COATING OF METALS AND OTHER MATERIALS; NON-FERROUS HYDRO-METALLURGY","Tonnes","-",{"$f":"IF(SUM(H511:H537)=0,\"-\",SUM(H511:H537))","v":"-"},{"$f":"IF(SUM(I511:I537)=0,\"-\",SUM(I511:I537))","v":"-"},"-","-","-",{"$f":"IF(SUM(M511:M537)=0,\"-\",SUM(M511:M537))","v":"-"},{"$f":"IF(SUM(N511:N537)=0,\"-\",SUM(N511:N537))","v":"-"},"-","-","-",{"$f":"IF(SUM(R511:R537)=0,\"-\",SUM(R511:R537))","v":"-"},{"$f":"IF(SUM(S511:S537)=0,\"-\",SUM(S511:S537))","v":"-"},"-","-"]
[null,null,null,"11 01 05* "," pickling acids","Tonnes","-",null,null,null,null,"-",null,null,null,null,"-"]
[null,null,null,"11 01 06* "," acids not otherwise specified","Tonnes","-",null,null,null,null,"-",null,null,null,null,"-"]
[null,null,null,"11 01 07* "," pickling bases","Tonnes","-",null,null,null,null,"-",null,null,null,null,"-"]
[null,null,null,"11 01 08* "," phosphatising sludges","Tonnes","-",null,null,null,null,"-",null,null,null,null,"-"]
[null,null,null,"11 01 09* "," sludges and filter cakes containing dangerous substances","Tonnes","-",null,null,null,null,"-",null,null,null,null,"-"]
[null,null,null,"11 01 10 "," sludges and filter cakes other than those mentioned in 11 01 09","Tonnes","-",null,null,null,null,"-",null,null,null,null,"-"]
[null,null,null,"11 01 11* "," aqueous rinsing liquids containing dangerous substances","Tonnes","-",null,null,null,null,"-",null,null,null,null,"-"]
[null,null,null,"11 01 12 "," aqueous rinsing liquids other than those mentioned in 11 01 11","Tonnes","-",null,null,null,null,"-",null,null,null,null,"-"]
[null,null,null,"11 01 13* "," degreasing wastes containing dangerous substances","Tonnes","-",null,null,null,null,"-",null,null,null,null,"-"]
[null,null,null,"11 01 14 "," degreasing wastes other than those mentioned in 11 01 13","Tonnes","-",null,null,null,null,"-",null,null,null,null,"-"]
[null,null,null,"11 01 15* "," eluate and sludges from membrane systems or ion exchange systems containing dangerous substances","Tonnes","-",null,null,null,null,"-",null,null,null,null,"-"]
[null,null,null,"11 01 16* "," saturated or spent ion exchange resins","Tonnes","-",null,null,null,null,"-",null,null,null,null,"-"]
[null,null,null,"11 01 98* "," other wastes containing dangerous substances","Tonnes","-",null,null,null,null,"-",null,null,null,null,"-"]
[null,null,null,"11 01 99 "," wastes not otherwise specified","Tonnes","-",null,null,null,null,"-",null,null,null,null,"-"]
[null,null,null,"11 02 02* "," sludges from zinc hydrometallurgy (including jarosite, goethite)","Tonnes","-",null,null,null,null,"-",null,null,null,null,"-"]
[null,null,null,"11 02 03 "," wastes from the production of anodes for aqueous electrolytical processes","Tonnes","-",null,null,null,null,"-",null,null,null,null,"-"]
[null,null,null,"11 02 05* "," wastes from copper hydrometallurgical processes containing dangerous substances","Tonnes","-",null,null,null,null,"-",null,null,null,null,"-"]
[null,null,null,"11 02 06 "," wastes from copper hydrometallurgical processes other than those mentioned in 11 02 05","Tonnes","-",null,null,null,null,"-",null,null,null,null,"-"]
[null,null,null,"11 02 07* "," other wastes containing dangerous substances","Tonnes","-",null,null,null,null,"-",null,null,null,null,"-"]
[null,null,null,"11 02 99 "," wastes not otherwise specified","Tonnes","-",null,null,null,null,"-",null,null,null,null,"-"]
[null,null,null,"11 03 01* "," wastes containing cyanide","Tonnes","-",null,null,null,null,"-",null,null,null,null,"-"]
[null,null,null,"11 03 02* "," other wastes","Tonnes","-",null,null,null,null,"-",null,null,null,null,"-"]
[null,null,null,"11 05 01 "," hard zinc","Tonnes","-",null,null,null,null,"-",null,null,null,null,"-"]
[null,null,null,"11 05 02 "," zinc ash","Tonnes","-",null,null,null,null,"-",null,null,null,null,"-"]
[null,null,null,"11 05 03* "," solid wastes from gas treatment","Tonnes","-",null,null,null,null,"-",null,null,null,null,"-"]
[null,null,null,"11 05 04* "," spent flux","Tonnes","-",null,null,null,null,"-",null,null,null,null,"-"]
[null,null,null,"11 05 99 "," wastes not otherwise specified","Tonnes","-",null,null,null,null,"-",null,null,null,null,"-"]
[null,null,null,12,"WASTES FROM SHAPING AND PHYSICAL AND MECHANICAL SURFACE TREATMENT OF METALS AND PLASTICS","Tonnes","-",{"$f":"IF(SUM(H539:H561)=0,\"-\",SUM(H539:H561))","v":"-"},{"$f":"IF(SUM(I539:I561)=0,\"-\",SUM(I539:I561))","v":"-"},"-","-","-",{"$f":"IF(SUM(M539:M561)=0,\"-\",SUM(M539:M561))","v":"-"},{"$f":"IF(SUM(N539:N561)=0,\"-\",SUM(N539:N561))","v":"-"},"-","-","-",{"$f":"IF(SUM(R539:R561)=0,\"-\",SUM(R539:R561))","v":"-"},{"$f":"IF(SUM(S539:S561)=0,\"-\",SUM(S539:S561))","v":"-"},"-","-"]
[null,null,null,"12 01 01 "," ferrous metal filings and turnings","Tonnes",{"$f":"IF(SUM(H539:K539)=0,\"-\",SUM(H539:K539))","v":"-"},null,null,null,null,{"$f":"IF(SUM(M539:P539)=0,\"-\",SUM(M539:P539))","v":"-"},null,null,null,null,{"$f":"IF(SUM(R539:U539)=0,\"-\",SUM(R539:U539))","v":"-"}]
[null,null,null,"12 01 02 "," ferrous metal dust and particles","Tonnes","-",null,null,null,null,"-",null,null,null,null,"-"]
[null,null,null,"12 01 03 "," non-ferrous metal filings and turnings","Tonnes","-",null,null,null,null,"-",null,null,null,null,"-"]
[null,null,null,"12 01 04 "," non-ferrous metal dust and particles","Tonnes","-",null,null,null,null,"-",null,null,null,null,"-"]
[null,null,null,"12 01 05 "," plastics shavings and turnings","Tonnes","-",null,null,null,null,"-",null,null,null,null,"-"]
[null,null,null,"12 01 06* "," mineral-based machining oils containing halogens (except emulsions and solutions)","Tonnes","-",null,null,null,null,"-",null,null,null,null,"-"]
[null,null,null,"12 01 07* "," mineral-based machining oils free of halogens (except emulsions and solutions)","Tonnes","-",null,null,null,null,"-",null,null,null,null,"-"]
[null,null,null,"12 01 08* "," machining emulsions and solutions containing halogens","Tonnes","-",null,null,null,null,"-",null,null,null,null,"-"]
[null,null,null,"12 01 09* "," machining emulsions and solutions free of halogens","Tonnes","-",null,null,null,null,"-",null,null,null,null,"-"]
[null,null,null,"12 01 10* "," synthetic machining oils","Tonnes","-",null,null,null,null,"-",null,null,null,null,"-"]
[null,null,null,"12 01 12* "," spent waxes and fats","Tonnes","-",null,null,null,null,"-",null,null,null,null,"-"]
[null,null,null,"12 01 13 "," welding wastes","Tonnes","-",null,null,null,null,"-",null,null,null,null,"-"]
[null,null,null,"12 01 14* "," machining sludges containing dangerous substances","Tonnes","-",null,null,null,null,"-",null,null,null,null,"-"]
[null,null,null,"12 01 15 "," machining sludges other than those mentioned in 12 01 14","Tonnes","-",null,null,null,null,"-",null,null,null,null,"-"]
[null,null,null,"12 01 16* "," waste blasting material containing dangerous substances","Tonnes","-",null,null,null,null,"-",null,null,null,null,"-"]
[null,null,null,"12 01 17 "," waste blasting material other than those mentioned in 12 01 16","Tonnes","-",null,null,null,null,"-",null,null,null,null,"-"]
[null,null,null,"12 01 18* "," metal sludge (grinding, honing and lapping sludge) containing oil","Tonnes","-",null,null,null,null,"-",null,null,null,null,"-"]
[null,null,null,"12 01 19* "," readily biodegradable machining oil","Tonnes","-",null,null,null,null,"-",null,null,null,null,"-"]
[null,null,null,"12 01 20* "," spent grinding bodies and grinding materials containing dangerous substances","Tonnes","-",null,null,null,null,"-",null,null,null,null,"-"]
[null,null,null,"12 01 21 "," spent grinding bodies and grinding materials other than those mentioned in 12 01 20","Tonnes","-",null,null,null,null,"-",null,null,null,null,"-"]
[null,null,null,"12 01 99 "," wastes not otherwise specified","Tonnes","-",null,null,null,null,"-",null,null,null,null,"-"]
[null,null,null,"12 03 01* "," aqueous washing liquids","Tonnes","-",null,null,null,null,"-",null,null,null,null,"-"]
[null,null,null,"12 03 02* "," steam degreasing wastes","Tonnes","-",null,null,null,null,"-",null,null,null,null,"-"]
[null,null,null,13,"OIL WASTES AND WASTES OF LIQUID FUELS (except edible oils, and those in chapters 05, 12 and 19)","Tonnes","-",{"$f":"IF(SUM(H563:H596)=0,\"-\",SUM(H563:H596))","v":"-"},{"$f":"IF(SUM(I563:I596)=0,\"-\",SUM(I563:I596))","v":"-"},"-","-","-",{"$f":"IF(SUM(M563:M596)=0,\"-\",SUM(M563:M596))","v":"-"},{"$f":"IF(SUM(N563:N596)=0,\"-\",SUM(N563:N596))","v":"-"},"-","-","-",{"$f":"IF(SUM(R563:R596)=0,\"-\",SUM(R563:R596))","v":"-"},{"$f":"IF(SUM(S563:S596)=0,\"-\",SUM(S563:S596))","v":"-"},"-","-"]
[null,null,null,"13 01 01* "," hydraulic oils, containing PCBs (1)","Tonnes","-",null,null,null,null,"-",null,null,null,null,"-"]
[null,null,null,"13 01 04* "," chlorinated emulsions","Tonnes","-",null,null,null,null,"-",null,null,null,null,"-"]
[null,null,null,"13 01 05* "," non-chlorinated emulsions","Tonnes","-",null,null,null,null,"-",null,null,null,null,"-"]
[null,null,null,"13 01 09* "," mineral-based chlorinated hydraulic oils","Tonnes","-",null,null,null,null,"-",null,null,null,null,"-"]
[null,null,null,"13 01 10* "," mineral based non-chlorinated hydraulic oils","Tonnes","-",null,null,null,null,"-",null,null,null,null,"-"]
[null,null,null,"13 01 11* "," synthetic hydraulic oils","Tonnes","-",null,null,null,null,"-",null,null,null,null,"-"]
[null,null,null,"13 01 12* "," readily biodegradable hydraulic oils","Tonnes","-",null,null,null,null,"-",null,null,null,null,"-"]
[null,null,null,"13 01 13* "," other hydraulic oils","Tonnes","-",null,null,null,null,"-",null,null,null,null,"-"]
[null,null,null,"13 02 04* "," mineral-based chlorinated engine, gear and lubricating oils","Tonnes","-",null,null,null,null,"-",null,null,null,null,"-"]
[null,null,null,"13 02 05* "," mineral-based non-chlorinated engine, gear and lubricating oils","Tonnes","-",null,null,null,null,"-",null,null,null,null,"-"]
[null,null,null,"13 02 06* "," synthetic engine, gear and lubricating oils","Tonnes","-",null,null,null,null,"-",null,null,null,null,"-"]
[null,null,null,"13 02 07* "," readily biodegradable engine, gear and lubricating oils","Tonnes","-",null,null,null,null,"-",null,null,null,null,"-"]
[null,null,null,"13 02 08* "," other engine, gear and lubricating oils","Tonnes","-",null,null,null,null,"-",null,null,null,null,"-"]
[null,null,null,"13 03 01* "," insulating or heat transmission oils containing PCBs","Tonnes","-",null,null,null,null,"-",null,null,null,null,"-"]
[null,null,null,"13 03 06* "," mineral-based chlorinated insulating and heat transmission oils other than those mentioned in 13 03 01","Tonnes","-",null,null,null,null,"-",null,null,null,null,"-"]
[null,null,null,"13 03 07* "," mineral-based non-chlorinated insulating and heat transmission oils","Tonnes","-",null,null,null,null,"-",null,null,null,null,"-"]
[null,null,null,"13 03 08* "," synthetic insulating and heat transmission oils","Tonnes","-",null,null,null,null,"-",null,null,null,null,"-"]
[null,null,null,"13 03 09* "," readily biodegradable insulating and heat transmission oils","Tonnes","-",null,null,null,null,"-",null,null,null,null,"-"]
[null,null,null,"13 03 10* "," other insulating and heat transmission oils","Tonnes","-",null,null,null,null,"-",null,null,null,null,"-"]
[null,null,null,"13 04 01* "," bilge oils from inland navigation","Tonnes","-",null,null,null,null,"-",null,null,null,null,"-"]
[null,null,null,"13 04 02* "," bilge oils from jetty sewers","Tonnes","-",null,null,null,null,"-",null,null,null,null,"-"]
[null,null,null,"13 04 03* "," bilge oils from other navigation","Tonnes","-",null,null,null,null,"-",null,null,null,null,"-"]
[null,null,null,"13 05 01* "," solids from grit chambers and oil/water separators","Tonnes","-",null,null,null,null,"-",null,null,null,null,"-"]
[null,null,null,"13 05 02* "," sludges from oil/water separators","Tonnes","-",null,null,null,null,"-",null,null,null,null,"-"]
[null,null,null,"13 05 03* "," interceptor sludges","Tonnes","-",null,null,null,null,"-",null,null,null,null,"-"]
[null,null,null,"13 05 06* "," oil from oil/water separators","Tonnes","-",null,null,null,null,"-",null,null,null,null,"-"]
[null,null,null,"13 05 07* "," oily water from oil/water separators","Tonnes","-",null,null,null,null,"-",null,null,null,null,"-"]
[null,null,null,"13 05 08* "," mixtures of wastes from grit chambers and oil/water separators","Tonnes","-",null,null,null,null,"-",null,null,null,null,"-"]
[null,null,null,"13 07 01* "," fuel oil and diesel","Tonnes","-",null,null,null,null,"-",null,null,null,null,"-"]
[null,null,null,"13 07 02* "," petrol","Tonnes","-",null,null,null,null,"-",null,null,null,null,"-"]
[null,null,null,"13 07 03* "," other fuels (including mixtures)","Tonnes","-",null,null,null,null,"-",null,null,null,null,"-"]
[null,null,null,"13 08 01* "," desalter sludges or emulsions","Tonnes","-",null,null,null,null,"-",null,null,null,null,"-"]
[null,null,null,"13 08 02* "," other emulsions","Tonnes","-",null,null,null,null,"-",null,null,null,null,"-"]
[null,null,null,"13 08 99* "," wastes not otherwise specified","Tonnes","-",null,null,null,null,"-",null,null,null,null,"-"]
[null,null,null,14,"WASTE ORGANIC SOLVENTS, REFRIGERANTS AND PROPELLANTS (except 07 and 08)","Tonnes","-",{"$f":"IF(SUM(H598:H602)=0,\"-\",SUM(H598:H602))","v":"-"},{"$f":"IF(SUM(I598:I602)=0,\"-\",SUM(I598:I602))","v":"-"},"-","-","-",{"$f":"IF(SUM(M598:M602)=0,\"-\",SUM(M598:M602))","v":"-"},{"$f":"IF(SUM(N598:N602)=0,\"-\",SUM(N598:N602))","v":"-"},"-","-","-",{"$f":"IF(SUM(R598:R602)=0,\"-\",SUM(R598:R602))","v":"-"},{"$f":"IF(SUM(S598:S602)=0,\"-\",SUM(S598:S602))","v":"-"},"-","-"]
[null,null,null,"14 06 01* "," chlorofluorocarbons, HCFC, HFC","Tonnes","-",null,null,null,null,"-",null,null,null,null,"-"]
[null,null,null,"14 06 02* "," other halogenated solvents and solvent mixtures","Tonnes","-",null,null,null,null,"-",null,null,null,null,"-"]
[null,null,null,"14 06 03* "," other solvents and solvent mixtures","Tonnes","-",null,null,null,null,"-",null,null,null,null,"-"]
[null,null,null,"14 06 04* "," sludges or solid wastes containing halogenated solvents","Tonnes","-",null,null,null,null,"-",null,null,null,null,"-"]
[null,null,null,"14 06 05* "," sludges or solid wastes containing other solvents","Tonnes","-",null,null,null,null,"-",null,null,null,null,"-"]
[null,null,null,15,"WASTE PACKAGING; ABSORBENTS, WIPING CLOTHS, FILTER MATERIALS AND PROTECTIVE CLOTHING NOT OTHERWISE SPECIFIED","Tonnes",{"$f":"IF(SUM(H603:K603)=0,\"-\",SUM(H603:K603))","v":"-"},{"$f":"IF(SUM(H604:H615)=0,\"-\",SUM(H604:H615))","v":"-"},{"$f":"IF(SUM(I604:I615)=0,\"-\",SUM(I604:I615))","v":"-"},"-","-",{"$f":"IF(SUM(M603:P603)=0,\"-\",SUM(M603:P603))","v":"-"},{"$f":"IF(SUM(M604:M615)=0,\"-\",SUM(M604:M615))","v":"-"},{"$f":"IF(SUM(N604:N615)=0,\"-\",SUM(N604:N615))","v":"-"},"-","-",{"$f":"IF(SUM(R603:U603)=0,\"-\",SUM(R603:U603))","v":"-"},{"$f":"IF(SUM(R604:R615)=0,\"-\",SUM(R604:R615))","v":"-"},{"$f":"IF(SUM(S604:S615)=0,\"-\",SUM(S604:S615))","v":"-"},"-","-"]
[null,null,null,"15 01 01 "," paper and cardboard packaging","Tonnes","-",null,null,null,null,"-",null,null,null,null,"-"]
[null,null,null,"15 01 02 "," plastic packaging","Tonnes","-",null,null,null,null,"-",null,null,null,null,"-"]
[null,null,null,"15 01 03 "," wooden packaging","Tonnes","-",null,null,null,null,"-",null,null,null,null,"-"]
[null,null,null,"15 01 04  ","metallic packaging","Tonnes","-",null,null,null,null,"-",null,null,null,null,"-"]
[null,null,null,"15 01 05 "," composite packaging","Tonnes","-",null,null,null,null,"-",null,null,null,null,"-"]
[null,null,null,"15 01 06 "," mixed packaging","Tonnes","-",null,null,null,null,"-",null,null,null,null,"-"]
[null,null,null,"15 01 07 "," glass packaging","Tonnes","-",null,null,null,null,"-",null,null,null,null,"-"]
[null,null,null,"15 01 09 "," textile packaging","Tonnes","-",null,null,null,null,"-",null,null,null,null,"-"]
[null,null,null,"15 01 10* "," packaging containing residues of or contaminated by dangerous substances","Tonnes","-",null,null,null,null,"-",null,null,null,null,"-"]
[null,null,null,"15 01 11* "," metallic packaging containing a dangerous solid porous matrix (for example asbestos), including empty pressure containers","Tonnes","-",null,null,null,null,"-",null,null,null,null,"-"]
[null,null,null,"15 02 02* "," absorbents, filter materials (including oil filters not otherwise specified), wiping cloths, protective clothing contaminated by dangerous substances","Tonnes","-",null,null,null,null,"-",null,null,null,null,"-"]
[null,null,null,"15 02 03 "," absorbents, filter materials, wiping cloths and protective clothing other than those mentioned in 15 02 02","Tonnes","-",null,null,null,null,"-",null,null,null,null,"-"]
[null,null,null,16,"WASTES NOT OTHERWISE SPECIFIED IN THE LIST","Tonnes",{"$f":"IF(SUM(H616:K616)=0,\"-\",SUM(H616:K616))","v":"-"},"-",{"$f":"IF(SUM(I617:I687)=0,\"-\",SUM(I617:I687))","v":"-"},"-","-","-",{"$f":"IF(SUM(M617:M687)=0,\"-\",SUM(M617:M687))","v":"-"},{"$f":"IF(SUM(N617:N687)=0,\"-\",SUM(N617:N687))","v":"-"},"-","-","-",{"$f":"IF(SUM(R617:R687)=0,\"-\",SUM(R617:R687))","v":"-"},{"$f":"IF(SUM(S617:S687)=0,\"-\",SUM(S617:S687))","v":"-"},"-","-"]
[null,null,null,"16 01 03 "," end-of-life tyres","Tonnes","-",null,null,null,null,"-",null,null,null,null,"-"]
[null,null,null,"16 01 04 "," discarded vehicles; NB: This entry is not part of the proposal submitted for opinion to the Committee. The necessary changes to this entry will be made on the basis of the outcome of the procedure in Council on the proposal included in document COM(2000) 546","Tonnes","-",null,null,null,null,"-",null,null,null,null,"-"]
[null,null,null,"16 01 06 "," end-of-life vehicles, containing neither liquids nor other hazardous components","Tonnes","-",null,null,null,null,"-",null,null,null,null,"-"]
[null,null,null,"16 01 07* "," oil filters","Tonnes","-",null,null,null,null,"-",null,null,null,null,"-"]
[null,null,null,"16 01 08* "," components containing mercury","Tonnes","-",null,null,null,null,"-",null,null,null,null,"-"]
[null,null,null,"16 01 09* "," components containing PCBs","Tonnes","-",null,null,null,null,"-",null,null,null,null,"-"]
[null,null,null,"16 01 10* "," explosive components (for example air bags)","Tonnes","-",null,null,null,null,"-",null,null,null,null,"-"]
[null,null,null,"16 01 11* "," brake pads containing asbestos","Tonnes","-",null,null,null,null,"-",null,null,null,null,"-"]
[null,null,null,"16 01 12 "," brake pads other than those mentioned in 16 01 11","Tonnes","-",null,null,null,null,"-",null,null,null,null,"-"]
[null,null,null,"16 01 13* "," brake fluids","Tonnes","-",null,null,null,null,"-",null,null,null,null,"-"]
[null,null,null,"16 01 14* "," antifreeze fluids containing dangerous substances","Tonnes","-",null,null,null,null,"-",null,null,null,null,"-"]
[null,null,null,"16 01 15 "," antifreeze fluids other than those mentioned in 16 01 14","Tonnes","-",null,null,null,null,"-",null,null,null,null,"-"]
[null,null,null,"16 01 16 "," tanks for liquefied gas","Tonnes","-",null,null,null,null,"-",null,null,null,null,"-"]
[null,null,null,"16 01 17 "," ferrous metal","Tonnes","-",null,null,null,null,"-",null,null,null,null,"-"]
[null,null,null,"16 01 18 "," non-ferrous metal","Tonnes","-",null,null,null,null,"-",null,null,null,null,"-"]
[null,null,null,"16 01 19 "," plastic","Tonnes","-",null,null,null,null,"-",null,null,null,null,"-"]
[null,null,null,"16 01 20 "," glass","Tonnes","-",null,null,null,null,"-",null,null,null,null,"-"]
[null,null,null,"16 01 21* "," hazardous components other than those mentioned in 16 01 07 to 16 01 11 and 16 01 13 and 16 01 14","Tonnes","-",null,null,null,null,"-",null,null,null,null,"-"]
[null,null,null,"16 01 22 "," components not otherwise specified","Tonnes","-",null,null,null,null,"-",null,null,null,null,"-"]
[null,null,null,"16 01 99 "," wastes not otherwise specified","Tonnes","-",null,null,null,null,"-",null,null,null,null,"-"]
[null,null,null,"16 02 09* "," transformers and capacitors containing PCBs","Tonnes","-",null,null,null,null,"-",null,null,null,null,"-"]
[null,null,null,"16 02 10* "," discarded equipment containing or contaminated by PCBs other than those mentioned in 16 02 09","Tonnes","-",null,null,null,null,"-",null,null,null,null,"-"]
[null,null,null,"16 02 11* "," discarded equipment containing chlorofluorocarbons, HCFC, HFC","Tonnes","-",null,null,null,null,"-",null,null,null,null,"-"]
[null,null,null,"16 02 12* "," discarded equipment containing free asbestos","Tonnes","-",null,null,null,null,"-",null,null,null,null,"-"]
[null,null,null,"16 02 13* "," discarded equipment containing hazardous components (2) other than those mentioned in 16 02 09 to 16 02 12","Tonnes","-",null,null,null,null,"-",null,null,null,null,"-"]
[null,null,null,"16 02 14 "," discarded equipment other than those mentioned in 16 02 09 to 16 02 13","Tonnes","-",null,null,null,null,"-",null,null,null,null,"-"]
[null,null,null,"16 02 15* "," hazardous components removed from discarded equipment","Tonnes","-",null,null,null,null,"-",null,null,null,null,"-"]
[null,null,null,"16 02 16 "," components removed from discarded equipment other than those mentioned in 16 02 15","Tonnes","-",null,null,null,null,"-",null,null,null,null,"-"]
[null,null,null,"16 03 03* "," inorganic wastes containing dangerous substances","Tonnes","-",null,null,null,null,"-",null,null,null,null,"-"]
[null,null,null,"16 03 04 "," inorganic wastes other than those mentioned in 16 03 03","Tonnes","-",null,null,null,null,"-",null,null,null,null,"-"]
[null,null,null,"16 03 05* "," organic wastes containing dangerous substances","Tonnes","-",null,null,null,null,"-",null,null,null,null,"-"]
[null,null,null,"16 03 06 "," organic wastes other than those mentioned in 16 03 05","Tonnes","-",null,null,null,null,"-",null,null,null,null,"-"]
[null,null,null,"16 04 01* "," waste ammunition","Tonnes","-",null,null,null,null,"-",null,null,null,null,"-"]
[null,null,null,"16 04 02* "," fireworks wastes","Tonnes","-",null,null,null,null,"-",null,null,null,null,"-"]
[null,null,null,"16 04 03* "," other waste explosives","Tonnes","-",null,null,null,null,"-",null,null,null,null,"-"]
[null,null,null,"16 05 04* "," gases in pressure containers (including halons) containing dangerous substances","Tonnes","-",null,null,null,null,"-",null,null,null,null,"-"]
[null,null,null,"16 05 05 "," gases in pressure containers other than those mentioned in 16 05 04","Tonnes","-",null,null,null,null,"-",null,null,null,null,"-"]
[null,null,null,"16 05 06* "," laboratory chemicals, consisting of or containing dangerous substances, including mixtures of laboratory chemicals","Tonnes","-",null,null,null,null,"-",null,null,null,null,"-"]
[null,null,null,"16 05 07* "," discarded inorganic chemicals consisting of or containing dangerous substances","Tonnes","-",null,null,null,null,"-",null,null,null,null,"-"]
[null,null,null,"16 05 08* "," discarded organic chemicals consisting of or containing dangerous substances","Tonnes","-",null,null,null,null,"-",null,null,null,null,"-"]
[null,null,null,"16 05 09 "," discarded chemicals other than those mentioned in 16 05 06, 16 05 07 or 16 05 08","Tonnes","-",null,null,null,null,"-",null,null,null,null,"-"]
[null,null,null,"16 06 01* "," lead batteries","Tonnes","-",null,null,null,null,"-",null,null,null,null,"-"]
[null,null,null,"16 06 02* "," Ni-Cd batteries","Tonnes","-",null,null,null,null,"-",null,null,null,null,"-"]
[null,null,null,"16 06 03* "," mercury-containing batteries","Tonnes","-",null,null,null,null,"-",null,null,null,null,"-"]
[null,null,null,"16 06 04 "," alkaline batteries (except 16 06 03)","Tonnes","-",null,null,null,null,"-",null,null,null,null,"-"]
[null,null,null,"16 06 05 "," other batteries and accumulators","Tonnes","-",null,null,null,null,"-",null,null,null,null,"-"]
[null,null,null,"16 06 06* "," separately collected electrolyte from batteries and accumulators","Tonnes","-",null,null,null,null,"-",null,null,null,null,"-"]
[null,null,null,"16 07 08* "," wastes containing oil","Tonnes","-",null,null,null,null,"-",null,null,null,null,"-"]
[null,null,null,"16 07 09* "," wastes containing other dangerous substances","Tonnes","-",null,null,null,null,"-",null,null,null,null,"-"]
[null,null,null,"16 07 99 "," wastes not otherwise specified","Tonnes","-",null,null,null,null,"-",null,null,null,null,"-"]
[null,null,null,"16 08 01 "," spent catalysts containing gold, silver, rhenium, rhodium, palladium, iridium or platinum (except 16 08 07)","Tonnes",{"$f":"IF(SUM(H667:K667)=0,\"-\",SUM(H667:K667))","v":"-"},null,null,null,null,{"$f":"IF(SUM(M667:P667)=0,\"-\",SUM(M667:P667))","v":"-"},null,null,null,null,{"$f":"IF(SUM(R667:U667)=0,\"-\",SUM(R667:U667))","v":"-"}]
[null,null,null,"16 08 02* "," spent catalysts containing dangerous transition metals (3) or dangerous transition metal compounds","Tonnes","-",null,null,null,null,"-",null,null,null,null,"-"]
[null,null,null,"16 08 03 "," spent catalysts containing transition metals or transition metal compounds not otherwise specified","Tonnes","-",null,null,null,null,"-",null,null,null,null,"-"]
[null,null,null,"16 08 04 "," spent fluid catalytic cracking catalysts (except 16 08 07)","Tonnes","-",null,null,null,null,"-",null,null,null,null,"-"]
[null,null,null,"16 08 05* "," spent catalysts containing phosphoric acid","Tonnes","-",null,null,null,null,"-",null,null,null,null,"-"]
[null,null,null,"16 08 06* "," spent liquids used as catalysts","Tonnes","-",null,null,null,null,"-",null,null,null,null,"-"]
[null,null,null,"16 08 07* "," spent catalysts contaminated with dangerous substances","Tonnes","-",null,null,null,null,"-",null,null,null,null,"-"]
[null,null,null,"16 09 01* "," permanganates, for example potassium permanganate","Tonnes","-",null,null,null,null,"-",null,null,null,null,"-"]
[null,null,null,"16 09 02* "," chromates, for example potassium chromate, potassium or sodium dichromate","Tonnes","-",null,null,null,null,"-",null,null,null,null,"-"]
[null,null,null,"16 09 03* "," peroxides, for example hydrogen peroxide","Tonnes","-",null,null,null,null,"-",null,null,null,null,"-"]
[null,null,null,"16 09 04* "," oxidising substances, not otherwise specified","Tonnes","-",null,null,null,null,"-",null,null,null,null,"-"]
[null,null,null,"16 10 01* "," aqueous liquid wastes containing dangerous substances","Tonnes","-",null,null,null,null,"-",null,null,null,null,"-"]
[null,null,null,"16 10 02 "," aqueous liquid wastes other than those mentioned in 16 10 01","Tonnes","-",null,null,null,null,"-",null,null,null,null,"-"]
[null,null,null,"16 10 03* "," aqueous concentrates containing dangerous substances","Tonnes","-",null,null,null,null,"-",null,null,null,null,"-"]
[null,null,null,"16 10 04 "," aqueous concentrates other than those mentioned in 16 10 03","Tonnes","-",null,null,null,null,"-",null,null,null,null,"-"]
[null,null,null,"16 11 01* "," carbon-based linings and refractories from metallurgical processes containing dangerous substances","Tonnes","-",null,null,null,null,"-",null,null,null,null,"-"]
[null,null,null,"16 11 02 "," carbon-based linings and refractories from metallurgical processes others than those mentioned in 16 11 01,","Tonnes","-",null,null,null,null,"-",null,null,null,null,"-"]
[null,null,null,"16 11 03* "," other linings and refractories from metallurgical processes containing dangerous substances","Tonnes","-",null,null,null,null,"-",null,null,null,null,"-"]
[null,null,null,"16 11 04 "," other linings and refractories from metallurgical processes other than those mentioned in 16 11 03","Tonnes","-",null,null,null,null,"-",null,null,null,null,"-"]
[null,null,null,"16 11 05* "," linings and refractories from non-metallurgical processes containing dangerous substances","Tonnes","-",null,null,null,null,"-",null,null,null,null,"-"]
[null,null,null,"16 11 06 "," linings and refractories from non-metallurgical processes others than those mentioned in 16 11 05","Tonnes","-",null,null,null,null,"-",null,null,null,null,"-"]
[null,null,null,17,"CONSTRUCTION AND DEMOLITION WASTES (INCLUDING EXCAVATED SOIL FROM CONTAMINATED SITES)","Tonnes","-",{"$f":"IF(SUM(H689:H726)=0,\"-\",SUM(H689:H726))","v":"-"},{"$f":"IF(SUM(I689:I726)=0,\"-\",SUM(I689:I726))","v":"-"},"-","-","-",{"$f":"IF(SUM(M689:M726)=0,\"-\",SUM(M689:M726))","v":"-"},{"$f":"IF(SUM(N689:N726)=0,\"-\",SUM(N689:N726))","v":"-"},"-","-","-",{"$f":"IF(SUM(R689:R726)=0,\"-\",SUM(R689:R726))","v":"-"},{"$f":"IF(SUM(S689:S726)=0,\"-\",SUM(S689:S726))","v":"-"},"-","-"]
[null,null,null,"17 01 01 "," concrete","Tonnes","-",null,null,null,null,"-",null,null,null,null,"-"]
[null,null,null,"17 01 02 "," bricks","Tonnes","-",null,null,null,null,"-",null,null,null,null,"-"]
[null,null,null,"17 01 03 "," tiles and ceramics","Tonnes","-",null,null,null,null,"-",null,null,null,null,"-"]
[null,null,null,"17 01 06* "," mixtures of, or separate fractions of concrete, bricks, tiles and ceramics containing dangerous substances","Tonnes","-",null,null,null,null,"-",null,null,null,null,"-"]
[null,null,null,"17 01 07 "," mixtures of concrete, bricks, tiles and ceramics other than those mentioned in 17 01 06","Tonnes","-",null,null,null,null,"-",null,null,null,null,"-"]
[null,null,null,"17 02 01 "," wood","Tonnes","-",null,null,null,null,"-",null,null,null,null,"-"]
[null,null,null,"17 02 02 "," glass","Tonnes","-",null,null,null,null,"-",null,null,null,null,"-"]
[null,null,null,"17 02 03 "," plastic","Tonnes","-",null,null,null,null,"-",null,null,null,null,"-"]
[null,null,null,"17 02 04* "," glass, plastic and wood containing or contaminated with dangerous substances","Tonnes","-",null,null,null,null,"-",null,null,null,null,"-"]
[null,null,null,"17 03 01* "," bituminous mixtures containing coal tar","Tonnes","-",null,null,null,null,"-",null,null,null,null,"-"]
[null,null,null,"17 03 02 "," bituminous mixtures other than those mentioned in 17 03 01","Tonnes","-",null,null,null,null,"-",null,null,null,null,"-"]
[null,null,null,"17 03 03* "," coal tar and tarred products","Tonnes","-",null,null,null,null,"-",null,null,null,null,"-"]
[null,null,null,"17 04 01 "," copper, bronze, brass","Tonnes","-",null,null,null,null,"-",null,null,null,null,"-"]
[null,null,null,"17 04 02 "," aluminium","Tonnes","-",null,null,null,null,"-",null,null,null,null,"-"]
[null,null,null,"17 04 03 "," lead","Tonnes","-",null,null,null,null,"-",null,null,null,null,"-"]
[null,null,null,"17 04 04 "," zinc","Tonnes","-",null,null,null,null,"-",null,null,null,null,"-"]
[null,null,null,"17 04 05 "," iron and steel","Tonnes","-",null,null,null,null,"-",null,null,null,null,"-"]
[null,null,null,"17 04 06 "," tin","Tonnes","-",null,null,null,null,"-",null,null,null,null,"-"]
[null,null,null,"17 04 07 "," mixed metals","Tonnes","-",null,null,null,null,"-",null,null,null,null,"-"]
[null,null,null,"17 04 09* "," metal waste contaminated with dangerous substances","Tonnes","-",null,null,null,null,"-",null,null,null,null,"-"]
[null,null,null,"17 04 10* "," cables containing oil, coal tar and other dangerous substances","Tonnes","-",null,null,null,null,"-",null,null,null,null,"-"]
[null,null,null,"17 04 11 "," cables other than those mentioned in 17 04 10","Tonnes","-",null,null,null,null,"-",null,null,null,null,"-"]
[null,null,null,"17 05 03* "," soil and stones containing dangerous substances","Tonnes","-",null,null,null,null,"-",null,null,null,null,"-"]
[null,null,null,"17 05 04 "," soil and stones other than those mentioned in 17 05 03","Tonnes","-",null,null,null,null,"-",null,null,null,null,"-"]
[null,null,null,"17 05 05* "," dredging spoil containing dangerous substances","Tonnes","-",null,null,null,null,"-",null,null,null,null,"-"]
[null,null,null,"17 05 06 "," dredging spoil other than those mentioned in 17 05 05","Tonnes","-",null,null,null,null,"-",null,null,null,null,"-"]
[null,null,null,"17 05 07* "," track ballast containing dangerous substances","Tonnes","-",null,null,null,null,"-",null,null,null,null,"-"]
[null,null,null,"17 05 08 "," track ballast other than those mentioned in 17 05 07","Tonnes","-",null,null,null,null,"-",null,null,null,null,"-"]
[null,null,null,"17 06 01* "," insulation materials containing asbestos","Tonnes","-",null,null,null,null,"-",null,null,null,null,"-"]
[null,null,null,"17 06 03* "," other insulation materials consisting of or containing dangerous substances","Tonnes","-",null,null,null,null,"-",null,null,null,null,"-"]
[null,null,null,"17 06 04 "," insulation materials other than those mentioned in 17 06 01 and 17 06 03","Tonnes","-",null,null,null,null,"-",null,null,null,null,"-"]
[null,null,null,"17 06 05*"," construction materials containing asbestos","Tonnes","-",null,null,null,null,"-",null,null,null,null,"-"]
[null,null,null,"17 08 01* "," gypsum-based construction materials contaminated with dangerous substances","Tonnes","-",null,null,null,null,"-",null,null,null,null,"-"]
[null,null,null,"17 08 02 "," gypsum-based construction materials other than those mentioned in 17 08 01","Tonnes","-",null,null,null,null,"-",null,null,null,null,"-"]
[null,null,null,"17 09 01* "," construction and demolition wastes containing mercury","Tonnes","-",null,null,null,null,"-",null,null,null,null,"-"]
[null,null,null,"17 09 02* "," construction and demolition wastes containing PCB (for example PCB-containing sealants, PCB-containing resin-based floorings, PCB-containing sealed glazing units, PCB-containing capacitors)","Tonnes","-",null,null,null,null,"-",null,null,null,null,"-"]
[null,null,null,"17 09 03* "," other construction and demolition wastes (including mixed wastes) containing dangerous substances","Tonnes","-",null,null,null,null,"-",null,null,null,null,"-"]
[null,null,null,"17 09 04 "," mixed construction and demolition wastes other than those mentioned in 17 09 01, 17 09 02 and 17 09 03","Tonnes","-",null,null,null,null,"-",null,null,null,null,"-"]
[null,null,null,18,"WASTES FROM HUMAN OR ANIMAL HEALTH CARE AND/OR RELATED RESEARCH (except kitchen and restaurant wastes not arising from immediate health care)","Tonnes","-",{"$f":"IF(SUM(H728:H743)=0,\"-\",SUM(H728:H743))","v":"-"},{"$f":"IF(SUM(I728:I743)=0,\"-\",SUM(I728:I743))","v":"-"},"-","-","-",{"$f":"IF(SUM(M728:M743)=0,\"-\",SUM(M728:M743))","v":"-"},{"$f":"IF(SUM(N728:N743)=0,\"-\",SUM(N728:N743))","v":"-"},"-","-","-",{"$f":"IF(SUM(R728:R743)=0,\"-\",SUM(R728:R743))","v":"-"},{"$f":"IF(SUM(S728:S743)=0,\"-\",SUM(S728:S743))","v":"-"},"-","-"]
[null,null,null,"18 01 01 "," sharps (except 18 01 03)","Tonnes","-",null,null,null,null,"-",null,null,null,null,"-"]
[null,null,null,"18 01 02 "," body parts and organs including blood bags and blood preserves (except 18 01 03)","Tonnes","-",null,null,null,null,"-",null,null,null,null,"-"]
[null,null,null,"18 01 03* "," wastes whose collection and disposal is subject to special requirements in order to prevent infection","Tonnes","-",null,null,null,null,"-",null,null,null,null,"-"]
[null,null,null,"18 01 04 "," wastes whose collection and disposal is not subject to special requirements in order to prevent infection (for example dressings, plaster casts, linen, disposable clothing, diapers)","Tonnes",{"$f":"IF(SUM(H731:K731)=0,\"-\",SUM(H731:K731))","v":"-"},null,null,null,null,{"$f":"IF(SUM(M731:P731)=0,\"-\",SUM(M731:P731))","v":"-"},null,null,null,null,{"$f":"IF(SUM(R731:U731)=0,\"-\",SUM(R731:U731))","v":"-"}]
[null,null,null,"18 01 06* "," chemicals consisting of or containing dangerous substances","Tonnes","-",null,null,null,null,"-",null,null,null,null,"-"]
[null,null,null,"18 01 07 "," chemicals other than those mentioned in 18 01 06","Tonnes","-",null,null,null,null,"-",null,null,null,null,"-"]
[null,null,null,"18 01 08* "," cytotoxic and cytostatic medicines","Tonnes","-",null,null,null,null,"-",null,null,null,null,"-"]
[null,null,null,"18 01 09 "," medicines other than those mentioned in 18 01 08","Tonnes","-",null,null,null,null,"-",null,null,null,null,"-"]
[null,null,null,"18 01 10* "," amalgam waste from dental care","Tonnes","-",null,null,null,null,"-",null,null,null,null,"-"]
[null,null,null,"18 02 01 "," sharps (except 18 02 02)","Tonnes","-",null,null,null,null,"-",null,null,null,null,"-"]
[null,null,null,"18 02 02* "," wastes whose collection and disposal is subject to special requirements in order to prevent infection","Tonnes","-",null,null,null,null,"-",null,null,null,null,"-"]
[null,null,null,"18 02 03 "," wastes whose collection and disposal is not subject to special requirements in order to prevent infection","Tonnes","-",null,null,null,null,"-",null,null,null,null,"-"]
[null,null,null,"18 02 05* "," chemicals consisting of or containing dangerous substances","Tonnes","-",null,null,null,null,"-",null,null,null,null,"-"]
[null,null,null,"18 02 06 "," chemicals other than those mentioned in 18 02 05","Tonnes","-",null,null,null,null,"-",null,null,null,null,"-"]
[null,null,null,"18 02 07* "," cytotoxic and cytostatic medicines","Tonnes","-",null,null,null,null,"-",null,null,null,null,"-"]
[null,null,null,"18 02 08 "," medicines other than those mentioned in 18 02 07","Tonnes","-",null,null,null,null,"-",null,null,null,null,"-"]
[null,null,null,19,"WASTES FROM WASTE MANAGEMENT FACILITIES, OFF-SITE WASTE WATER TREATMENT PLANTS AND THE PREPARATION OF WATER INTENDED FOR HUMAN CONSUMPTION AND WATER FOR INDUSTRIAL USE","Tonnes","-",{"$f":"IF(SUM(H745:H842)=0,\"-\",SUM(H745:H842))","v":"-"},{"$f":"IF(SUM(I745:I842)=0,\"-\",SUM(I745:I842))","v":"-"},"-","-","-",{"$f":"IF(SUM(M745:M842)=0,\"-\",SUM(M745:M842))","v":"-"},{"$f":"IF(SUM(N745:N842)=0,\"-\",SUM(N745:N842))","v":"-"},"-","-","-",{"$f":"IF(SUM(R745:R842)=0,\"-\",SUM(R745:R842))","v":"-"},{"$f":"IF(SUM(S745:S842)=0,\"-\",SUM(S745:S842))","v":"-"},"-","-"]
[null,null,null,"19 01 02 "," ferrous materials removed from bottom ash","Tonnes","-",null,null,null,null,"-",null,null,null,null,"-"]
[null,null,null,"19 01 05* "," filter cake from gas treatment","Tonnes","-",null,null,null,null,"-",null,null,null,null,"-"]
[null,null,null,"19 01 06* "," aqueous liquid wastes from gas treatment and other aqueous liquid wastes","Tonnes","-",null,null,null,null,"-",null,null,null,null,"-"]
[null,null,null,"19 01 07* "," solid wastes from gas treatment","Tonnes","-",null,null,null,null,"-",null,null,null,null,"-"]
[null,null,null,"19 01 10* "," spent activated carbon from flue-gas treatment","Tonnes","-",null,null,null,null,"-",null,null,null,null,"-"]
[null,null,null,"19 01 11* "," bottom ash and slag containing dangerous substances","Tonnes","-",null,null,null,null,"-",null,null,null,null,"-"]
[null,null,null,"19 01 12 "," bottom ash and slag other than those mentioned in 19 01 11","Tonnes","-",null,null,null,null,"-",null,null,null,null,"-"]
[null,null,null,"19 01 13* "," fly ash containing dangerous substances","Tonnes","-",null,null,null,null,"-",null,null,null,null,"-"]
[null,null,null,"19 01 14 "," fly ash other than those mentioned in 19 01 13","Tonnes","-",null,null,null,null,"-",null,null,null,null,"-"]
[null,null,null,"19 01 15* "," boiler dust containing dangerous substances","Tonnes","-",null,null,null,null,"-",null,null,null,null,"-"]
[null,null,null,"19 01 16 "," boiler dust other than those mentioned in 19 01 15","Tonnes","-",null,null,null,null,"-",null,null,null,null,"-"]
[null,null,null,"19 01 17* "," pyrolysis wastes containing dangerous substances","Tonnes","-",null,null,null,null,"-",null,null,null,null,"-"]
[null,null,null,"19 01 18 "," pyrolysis wastes other than those mentioned in 19 01 17","Tonnes","-",null,null,null,null,"-",null,null,null,null,"-"]
[null,null,null,"19 01 19 "," sands from fluidised beds","Tonnes","-",null,null,null,null,"-",null,null,null,null,"-"]
[null,null,null,"19 01 99 "," wastes not otherwise specified","Tonnes","-",null,null,null,null,"-",null,null,null,null,"-"]
[null,null,null,"19 02 03 "," premixed wastes composed only of non-hazardous wastes","Tonnes","-",null,null,null,null,"-",null,null,null,null,"-"]
[null,null,null,"19 02 04* "," premixed wastes composed of at least one hazardous waste","Tonnes","-",null,null,null,null,"-",null,null,null,null,"-"]
[null,null,null,"19 02 05* "," sludges from physico/chemical treatment containing dangerous substances","Tonnes","-",null,null,null,null,"-",null,null,null,null,"-"]
[null,null,null,"19 02 06 "," sludges from physico/chemical treatment other than those mentioned in 19 02 05","Tonnes","-",null,null,null,null,"-",null,null,null,null,"-"]
[null,null,null,"19 02 07* "," oil and concentrates from separation","Tonnes","-",null,null,null,null,"-",null,null,null,null,"-"]
[null,null,null,"19 02 08* "," liquid combustible wastes containing dangerous substances","Tonnes","-",null,null,null,null,"-",null,null,null,null,"-"]
[null,null,null,"19 02 09* "," solid combustible wastes containing dangerous substances","Tonnes","-",null,null,null,null,"-",null,null,null,null,"-"]
[null,null,null,"19 02 10 "," combustible wastes other than those mentioned in 19 02 08 and 19 02 09","Tonnes","-",null,null,null,null,"-",null,null,null,null,"-"]
[null,null,null,"19 02 11* "," other wastes containing dangerous substances","Tonnes","-",null,null,null,null,"-",null,null,null,null,"-"]
[null,null,null,"19 02 99 "," wastes not otherwise specified","Tonnes","-",null,null,null,null,"-",null,null,null,null,"-"]
[null,null,null,"19 03 04* "," wastes marked as hazardous, partly (5) stabilised","Tonnes","-",null,null,null,null,"-",null,null,null,null,"-"]
[null,null,null,"19 03 05 "," stabilised wastes other than those mentioned in 19 03 04","Tonnes","-",null,null,null,null,"-",null,null,null,null,"-"]
[null,null,null,"19 03 06* "," wastes marked as hazardous, solidified","Tonnes","-",null,null,null,null,"-",null,null,null,null,"-"]
[null,null,null,"19 03 07 "," solidified wastes other than those mentioned in 19 03 06","Tonnes","-",null,null,null,null,"-",null,null,null,null,"-"]
[null,null,null,"19 04 01 "," vitrified waste","Tonnes","-",null,null,null,null,"-",null,null,null,null,"-"]
[null,null,null,"19 04 02* "," fly ash and other flue-gas treatment wastes","Tonnes","-",null,null,null,null,"-",null,null,null,null,"-"]
[null,null,null,"19 04 03* "," non-vitrified solid phase","Tonnes","-",null,null,null,null,"-",null,null,null,null,"-"]
[null,null,null,"19 04 04 "," aqueous liquid wastes from vitrified waste tempering","Tonnes","-",null,null,null,null,"-",null,null,null,null,"-"]
[null,null,null,"19 05 01 "," non-composted fraction of municipal and similar wastes","Tonnes","-",null,null,null,null,"-",null,null,null,null,"-"]
[null,null,null,"19 05 02 "," non-composted fraction of animal and vegetable waste","Tonnes","-",null,null,null,null,"-",null,null,null,null,"-"]
[null,null,null,"19 05 03 "," off-specification compost","Tonnes","-",null,null,null,null,"-",null,null,null,null,"-"]
[null,null,null,"19 05 99 "," wastes not otherwise specified","Tonnes","-",null,null,null,null,"-",null,null,null,null,"-"]
[null,null,null,"19 06 03 "," liquor from anaerobic treatment of municipal waste","Tonnes","-",null,null,null,null,"-",null,null,null,null,"-"]
[null,null,null,"19 06 04 "," digestate from anaerobic treatment of municipal waste","Tonnes","-",null,null,null,null,"-",null,null,null,null,"-"]
[null,null,null,"19 06 05 "," liquor from anaerobic treatment of animal and vegetable waste","Tonnes","-",null,null,null,null,"-",null,null,null,null,"-"]
[null,null,null,"19 06 06 "," digestate from anaerobic treatment of animal and vegetable waste","Tonnes","-",null,null,null,null,"-",null,null,null,null,"-"]
[null,null,null,"19 06 99 "," wastes not otherwise specified","Tonnes","-",null,null,null,null,"-",null,null,null,null,"-"]
[null,null,null,"19 07 02* "," landfill leachate containing dangerous substances","Tonnes","-",null,null,null,null,"-",null,null,null,null,"-"]
[null,null,null,"19 07 03 "," landfill leachate other than those mentioned in 19 07 02","Tonnes","-",null,null,null,null,"-",null,null,null,null,"-"]
[null,null,null,"19 08 01 "," screenings","Tonnes","-",null,null,null,null,"-",null,null,null,null,"-"]
[null,null,null,"19 08 02 "," waste from desanding","Tonnes","-",null,null,null,null,"-",null,null,null,null,"-"]
[null,null,null,"19 08 05 "," sludges from treatment of urban waste water","Tonnes","-",null,null,null,null,"-",null,null,null,null,"-"]
[null,null,null,"19 08 06* "," saturated or spent ion exchange resins","Tonnes","-",null,null,null,null,"-",null,null,null,null,"-"]
[null,null,null,"19 08 07* "," solutions and sludges from regeneration of ion exchangers","Tonnes","-",null,null,null,null,"-",null,null,null,null,"-"]
[null,null,null,"19 08 08* "," membrane system waste containing heavy metals","Tonnes","-",null,null,null,null,"-",null,null,null,null,"-"]
[null,null,null,"19 08 09* "," grease and oil mixture from oil/water separation containing edible oil and fats","Tonnes",{"$f":"IF(SUM(H795:K795)=0,\"-\",SUM(H795:K795))","v":"-"},null,null,null,null,{"$f":"IF(SUM(M795:P795)=0,\"-\",SUM(M795:P795))","v":"-"},null,null,null,null,{"$f":"IF(SUM(R795:U795)=0,\"-\",SUM(R795:U795))","v":"-"}]
[null,null,null,"19 08 10* "," grease and oil mixture from oil/water separation other than those mentioned in 19 08 09","Tonnes","-",null,null,null,null,"-",null,null,null,null,"-"]
[null,null,null,"19 08 11* "," sludges containing dangerous substances from biological treatment of industrial waste water","Tonnes","-",null,null,null,null,"-",null,null,null,null,"-"]
[null,null,null,"19 08 12 "," sludges from biological treatment of industrial waste water other than those mentioned in 19 08 11","Tonnes","-",null,null,null,null,"-",null,null,null,null,"-"]
[null,null,null,"19 08 13* "," sludges containing dangerous substances from other treatment of industrial waste water","Tonnes","-",null,null,null,null,"-",null,null,null,null,"-"]
[null,null,null,"19 08 14 "," sludges from other treatment of industrial waste water other than those mentioned in 19 08 13","Tonnes","-",null,null,null,null,"-",null,null,null,null,"-"]
[null,null,null,"19 08 99 "," wastes not otherwise specified","Tonnes","-",null,null,null,null,"-",null,null,null,null,"-"]
[null,null,null,"19 09 01 "," solid waste from primary filtration and screenings","Tonnes","-",null,null,null,null,"-",null,null,null,null,"-"]
[null,null,null,"19 09 02 "," sludges from water clarification","Tonnes","-",null,null,null,null,"-",null,null,null,null,"-"]
[null,null,null,"19 09 03 "," sludges from decarbonation","Tonnes","-",null,null,null,null,"-",null,null,null,null,"-"]
[null,null,null,"19 09 04 "," spent activated carbon","Tonnes","-",null,null,null,null,"-",null,null,null,null,"-"]
[null,null,null,"19 09 05 "," saturated or spent ion exchange resins","Tonnes","-",null,null,null,null,"-",null,null,null,null,"-"]
[null,null,null,"19 09 06 "," solutions and sludges from regeneration of ion exchangers","Tonnes","-",null,null,null,null,"-",null,null,null,null,"-"]
[null,null,null,"19 09 99 "," wastes not otherwise specified","Tonnes","-",null,null,null,null,"-",null,null,null,null,"-"]
[null,null,null,"19 10 01 "," iron and steel waste","Tonnes","-",null,null,null,null,"-",null,null,null,null,"-"]
[null,null,null,"19 10 02 "," non-ferrous waste","Tonnes","-",null,null,null,null,"-",null,null,null,null,"-"]
[null,null,null,"19 10 03* "," fluff-light fraction and dust containing dangerous substances","Tonnes","-",null,null,null,null,"-",null,null,null,null,"-"]
[null,null,null,"19 10 04 "," fluff-light fraction and dust other than those mentioned in 19 10 03","Tonnes","-",null,null,null,null,"-",null,null,null,null,"-"]
[null,null,null,"19 10 05* "," other fractions containing dangerous substances","Tonnes","-",null,null,null,null,"-",null,null,null,null,"-"]
[null,null,null,"19 10 06 "," other fractions other than those mentioned in 19 10 05","Tonnes","-",null,null,null,null,"-",null,null,null,null,"-"]
[null,null,null,"19 11 01* "," spent filter clays","Tonnes","-",null,null,null,null,"-",null,null,null,null,"-"]
[null,null,null,"19 11 02* "," acid tars","Tonnes","-",null,null,null,null,"-",null,null,null,null,"-"]
[null,null,null,"19 11 03* "," aqueous liquid wastes","Tonnes","-",null,null,null,null,"-",null,null,null,null,"-"]
[null,null,null,"19 11 04* "," wastes from cleaning of fuel with bases","Tonnes","-",null,null,null,null,"-",null,null,null,null,"-"]
[null,null,null,"19 11 05* "," sludges from on-site effluent treatment containing dangerous substances","Tonnes","-",null,null,null,null,"-",null,null,null,null,"-"]
[null,null,null," 19 11 06 "," sludges from on-site effluent treatment other than those mentioned in 19 11 05","Tonnes","-",null,null,null,null,"-",null,null,null,null,"-"]
[null,null,null,"19 11 07* "," wastes from flue-gas cleaning","Tonnes","-",null,null,null,null,"-",null,null,null,null,"-"]
[null,null,null,"19 11 99 "," wastes not otherwise specified","Tonnes","-",null,null,null,null,"-",null,null,null,null,"-"]
[null,null,null,"19 12 01 "," paper and cardboard","Tonnes","-",null,null,null,null,"-",null,null,null,null,"-"]
[null,null,null,"19 12 02 "," ferrous metal","Tonnes","-",null,null,null,null,"-",null,null,null,null,"-"]
[null,null,null,"19 12 03 "," non-ferrous metal","Tonnes","-",null,null,null,null,"-",null,null,null,null,"-"]
[null,null,null,"19 12 04 "," plastic and rubber","Tonnes","-",null,null,null,null,"-",null,null,null,null,"-"]
[null,null,null,"19 12 05 "," glass","Tonnes","-",null,null,null,null,"-",null,null,null,null,"-"]
[null,null,null,"19 12 06* "," wood containing dangerous substances","Tonnes","-",null,null,null,null,"-",null,null,null,null,"-"]
[null,null,null,"19 12 07 "," wood other than that mentioned in 19 12 06","Tonnes","-",null,null,null,null,"-",null,null,null,null,"-"]
[null,null,null,"19 12 08 "," textiles","Tonnes","-",null,null,null,null,"-",null,null,null,null,"-"]
[null,null,null,"19 12 09 "," minerals (for example sand, stones)","Tonnes","-",null,null,null,null,"-",null,null,null,null,"-"]
[null,null,null,"19 12 10 "," combustible waste (refuse derived fuel)","Tonnes","-",null,null,null,null,"-",null,null,null,null,"-"]
[null,null,null,"19 12 11* "," other wastes (including mixtures of materials) from mechanical treatment of waste containing dangerous substances","Tonnes","-",null,null,null,null,"-",null,null,null,null,"-"]
[null,null,null,"19 12 12 "," other wastes (including mixtures of materials) from mechanical treatment of wastes other than those mentioned in 19 12 11","Tonnes","-",null,null,null,null,"-",null,null,null,null,"-"]
[null,null,null,"19 13 01* "," solid wastes from soil remediation containing dangerous substances","Tonnes","-",null,null,null,null,"-",null,null,null,null,"-"]
[null,null,null,"19 13 02 "," solid wastes from soil remediation other than those mentioned in 19 13 01","Tonnes","-",null,null,null,null,"-",null,null,null,null,"-"]
[null,null,null,"19 13 03* "," sludges from soil remediation containing dangerous substances","Tonnes","-",null,null,null,null,"-",null,null,null,null,"-"]
[null,null,null,"19 13 04 "," sludges from soil remediation other than those mentioned in 19 13 03","Tonnes","-",null,null,null,null,"-",null,null,null,null,"-"]
[null,null,null,"19 13 05* "," sludges from groundwater remediation containing dangerous substances","Tonnes","-",null,null,null,null,"-",null,null,null,null,"-"]
[null,null,null,"19 13 06 "," sludges from groundwater remediation other than those mentioned in 19 13 05","Tonnes","-",null,null,null,null,"-",null,null,null,null,"-"]
[null,null,null,"19 13 07* "," aqueous liquid wastes and aqueous concentrates from groundwater remediation containing dangerous substances","Tonnes","-",null,null,null,null,"-",null,null,null,null,"-"]
[null,null,null,"19 13 08 "," aqueous liquid wastes and aqueous concentrates from groundwater remediation other than those mentioned in 19 13 07","Tonnes","-",null,null,null,null,"-",null,null,null,null,"-"]
[null,null,null,20,"MUNICIPAL WASTES (HOUSEHOLD WASTE AND SIMILAR COMMERCIAL, INDUSTRIAL AND INSTITUTIONAL WASTES) INCLUDING SEPARATELY COLLECTED FRACTIONS","Tonnes","-",{"$f":"IF(SUM(H844:H883)=0,\"-\",SUM(H844:H883))","v":"-"},{"$f":"IF(SUM(I844:I883)=0,\"-\",SUM(I844:I883))","v":"-"},"-","-","-",{"$f":"IF(SUM(M844:M883)=0,\"-\",SUM(M844:M883))","v":"-"},{"$f":"IF(SUM(N844:N883)=0,\"-\",SUM(N844:N883))","v":"-"},"-","-","-",{"$f":"IF(SUM(R844:R883)=0,\"-\",SUM(R844:R883))","v":"-"},{"$f":"IF(SUM(S844:S883)=0,\"-\",SUM(S844:S883))","v":"-"},"-","-"]
[null,null,null,"20 01 01 "," paper and cardboard","Tonnes","-",null,null,null,null,"-",null,null,null,null,"-"]
[null,null,null,"20 01 02 "," glass","Tonnes","-",null,null,null,null,"-",null,null,null,null,"-"]
[null,null,null,"20 01 08 "," biodegradable kitchen and canteen waste","Tonnes","-",null,null,null,null,"-",null,null,null,null,"-"]
[null,null,null,"20 01 10 "," clothes","Tonnes","-",null,null,null,null,"-",null,null,null,null,"-"]
[null,null,null,"20 01 11 "," textiles","Tonnes","-",null,null,null,null,"-",null,null,null,null,"-"]
[null,null,null,"20 01 13* "," solvents","Tonnes","-",null,null,null,null,"-",null,null,null,null,"-"]
[null,null,null,"20 01 14* "," acids","Tonnes","-",null,null,null,null,"-",null,null,null,null,"-"]
[null,null,null,"20 01 15* "," alkalines","Tonnes","-",null,null,null,null,"-",null,null,null,null,"-"]
[null,null,null,"20 01 17* "," photochemicals","Tonnes","-",null,null,null,null,"-",null,null,null,null,"-"]
[null,null,null,"20 01 19* "," pesticides","Tonnes","-",null,null,null,null,"-",null,null,null,null,"-"]
[null,null,null,"20 01 21* "," fluorescent tubes and other mercury-containing waste","Tonnes","-",null,null,null,null,"-",null,null,null,null,"-"]
[null,null,null,"20 01 23* "," discarded equipment containing chlorofluorocarbons","Tonnes","-",null,null,null,null,"-",null,null,null,null,"-"]
[null,null,null,"20 01 25 "," edible oil and fat","Tonnes","-",null,null,null,null,"-",null,null,null,null,"-"]
[null,null,null,"20 01 26* "," oil and fat other than those mentioned in 20 01 25","Tonnes","-",null,null,null,null,"-",null,null,null,null,"-"]
[null,null,null,"20 01 27* "," paint, inks, adhesives and resins containing dangerous substances","Tonnes","-",null,null,null,null,"-",null,null,null,null,"-"]
[null,null,null,"20 01 28 "," paint, inks, adhesives and resins other than those mentioned in 20 01 27","Tonnes",{"$f":"IF(SUM(H859:K859)=0,\"-\",SUM(H859:K859))","v":"-"},null,null,null,null,{"$f":"IF(SUM(M859:P859)=0,\"-\",SUM(M859:P859))","v":"-"},null,null,null,null,{"$f":"IF(SUM(R859:U859)=0,\"-\",SUM(R859:U859))","v":"-"}]
[null,null,null,"20 01 29* "," detergents containing dangerous substances","Tonnes","-",null,null,null,null,"-",null,null,null,null,"-"]
[null,null,null,"20 01 30 "," detergents other than those mentioned in 20 01 29","Tonnes","-",null,null,null,null,"-",null,null,null,null,"-"]
[null,null,null,"20 01 31* "," cytotoxic and cytostatic medicines","Tonnes","-",null,null,null,null,"-",null,null,null,null,"-"]
[null,null,null,"20 01 32 "," medicines other than those mentioned in 20 01 31","Tonnes","-",null,null,null,null,"-",null,null,null,null,"-"]
[null,null,null,"20 01 33* "," batteries and accumulators included in 16 06 01, 16 06 02 or 16 06 03 and unsorted batteries and accumulators containing these batteries","Tonnes","-",null,null,null,null,"-",null,null,null,null,"-"]
[null,null,null,"20 01 34 "," batteries and accumulators other than those mentioned in 20 01 33","Tonnes","-",null,null,null,null,"-",null,null,null,null,"-"]
[null,null,null,"20 01 35* "," discarded electrical and electronic equipment other than those mentioned in 20 01 21 and 20 01 23 containing hazardous components (6)","Tonnes","-",null,null,null,null,"-",null,null,null,null,"-"]
[null,null,null,"20 01 36 "," discarded electrical and electronic equipment other than those mentioned in 20 01 21, 20 01 23 and 20 01 35","Tonnes","-",null,null,null,null,"-",null,null,null,null,"-"]
[null,null,null,"20 01 37* "," wood containing dangerous substances","Tonnes","-",null,null,null,null,"-",null,null,null,null,"-"]
[null,null,null,"20 01 38 "," wood other than that mentioned in 20 01 37","Tonnes","-",null,null,null,null,"-",null,null,null,null,"-"]
[null,null,null,"20 01 39 "," plastics","Tonnes","-",null,null,null,null,"-",null,null,null,null,"-"]
[null,null,null,"20 01 40 "," metals","Tonnes","-",null,null,null,null,"-",null,null,null,null,"-"]
[null,null,null,"20 01 41 "," wastes from chimney sweeping","Tonnes","-",null,null,null,null,"-",null,null,null,null,"-"]
[null,null,null,"20 01 99 "," other fractions not otherwise specified","Tonnes","-",null,null,null,null,"-",null,null,null,null,"-"]
[null,null,null,"20 02 01 "," biodegradable waste","Tonnes","-",null,null,null,null,"-",null,null,null,null,"-"]
[null,null,null,"20 02 02 "," soil and stones","Tonnes","-",null,null,null,null,"-",null,null,null,null,"-"]
[null,null,null,"20 02 03 "," other non-biodegradable wastes","Tonnes","-",null,null,null,null,"-",null,null,null,null,"-"]
[null,null,null,"20 03 01 "," mixed municipal waste","Tonnes","-",null,null,null,null,"-",null,null,null,null,"-"]
[null,null,null,"20 03 02 ","waste from markets","Tonnes","-",null,null,null,null,"-",null,null,null,null,"-"]
[null,null,null,"20 03 03 ","street-cleaning residues","Tonnes","-",null,null,null,null,"-",null,null,null,null,"-"]
[null,null,null,"20 03 04 ","septic tank sludge","Tonnes","-",null,null,null,null,"-",null,null,null,null,"-"]
[null,null,null,"20 03 06 ","waste from sewage cleaning","Tonnes","-",null,null,null,null,"-",null,null,null,null,"-"]
[null,null,null,"20 03 07 ","bulky waste","Tonnes","-",null,null,null,null,"-",null,null,null,null,"-"]
[null,null,null,"20 03 99 ","municipal wastes not otherwise specified","Tonnes","-",null,null,null,null,"-",null,null,null,null,"-"]
[]
[]
[null,null,null,"Any other comments:"]
[]
[]
[null,null,null,"01","WASTES RESULTING FROM EXPLORATION, MINING, QUARRYING, AND PHYSICAL AND CHEMICAL TREATMENT OF MINERALS","Tonnes",{"$f":"IF(G26=0,\"-\",G26)","v":"-"},{"$f":"IF(H26=0,\"-\",H26)","v":"-"},"-","-","-","-","-","-","-","-","-","-","-","-","-"]
[null,null,null,"02","WASTES FROM AGRICULTURE, HORTICULTURE, AQUACULTURE, FORESTRY, HUNTING AND FISHING, FOOD PREPARATION AND PROCESSING","Tonnes",{"$f":"IF(G50=0,\"-\",G50)","v":"-"},{"$f":"IF(H50=0,\"-\",H50)","v":"-"},"-","-","-","-","-","-","-","-","-","-","-","-","-"]
[null,null,null,"03","WASTES FROM WOOD PROCESSING AND THE PRODUCTION OF PANELS AND FURNITURE, PULP, PAPER AND CARDBOARD","Tonnes",{"$f":"IF(G89=0,\"-\",G89)","v":"-"},{"$f":"IF(H89=0,\"-\",H89)","v":"-"},"-","-","-","-","-","-","-","-","-","-","-","-","-"]
[null,null,null,"04","WASTES FROM THE LEATHER, FUR AND TEXTILE INDUSTRIES","Tonnes",{"$f":"IF(G109=0,\"-\",G109)","v":"-"},{"$f":"IF(H109=0,\"-\",H109)","v":"-"},"-","-","-","-","-","-","-","-","-","-","-","-","-"]
[null,null,null,"05","WASTES FROM PETROLEUM REFINING, NATURAL GAS PURIFICATION AND PYROLYTIC TREATMENT OF COAL","Tonnes",{"$f":"IF(G131=0,\"-\",G131)","v":"-"},{"$f":"IF(H131=0,\"-\",H131)","v":"-"},"-","-","-","-","-","-","-","-","-","-","-","-","-"]
[null,null,null,"06","WASTES FROM INORGANIC CHEMICAL PROCESSES","Tonnes",{"$f":"IF(G156=0,\"-\",G156)","v":"-"},{"$f":"IF(H156=0,\"-\",H156)","v":"-"},"-","-","-","-","-","-","-","-","-","-","-","-","-"]
[null,null,null,"07","WASTES FROM ORGANIC CHEMICAL PROCESSES","Tonnes",{"$f":"IF(G205=0,\"-\",G205)","v":"-"},{"$f":"IF(H205=0,\"-\",H205)","v":"-"},"-","-","-","-","-","-","-","-","-","-","-","-","-"]
[null,null,null,"08","WASTES FROM THE MANUFACTURE, FORMULATION, SUPPLY AND USE (MFSU) OF COATINGS (PAINTS, VARNISHES AND VITREOUS ENAMELS), ADHESIVES, SEALANTS AND PRINTING INKS","Tonnes",{"$f":"IF(G283=0,\"-\",G283)","v":"-"},{"$f":"IF(H283=0,\"-\",H283)","v":"-"},"-","-","-","-","-","-","-","-","-","-","-","-","-"]
[null,null,null,"09","WASTES FROM THE PHOTOGRAPHIC INDUSTRY","Tonnes",{"$f":"IF(G322=0,\"-\",G322)","v":"-"},{"$f":"IF(H322=0,\"-\",H322)","v":"-"},"-","-","-","-","-","-","-","-","-","-","-","-","-"]
[null,null,null,"10","WASTES FROM THERMAL PROCESSES","Tonnes",{"$f":"IF(G336=0,\"-\",G336)","v":"-"},{"$f":"IF(H336=0,\"-\",H336)","v":"-"},"-","-","-","-","-","-","-","-","-","-","-","-","-"]
[null,null,null,11,"WASTES FROM CHEMICAL SURFACE TREATMENT AND COATING OF METALS AND OTHER MATERIALS; NON-FERROUS HYDRO-METALLURGY","Tonnes",{"$f":"IF(G510=0,\"-\",G510)","v":"-"},{"$f":"IF(H510=0,\"-\",H510)","v":"-"},"-","-","-","-","-","-","-","-","-","-","-","-","-"]
[null,null,null,12,"WASTES FROM SHAPING AND PHYSICAL AND MECHANICAL SURFACE TREATMENT OF METALS AND PLASTICS","Tonnes",{"$f":"IF(G538=0,\"-\",G538)","v":"-"},{"$f":"IF(H538=0,\"-\",H538)","v":"-"},"-","-","-","-","-","-","-","-","-","-","-","-","-"]
[null,null,null,13,"OIL WASTES AND WASTES OF LIQUID FUELS (except edible oils, and those in chapters 05, 12 and 19)","Tonnes",{"$f":"IF(G562=0,\"-\",G562)","v":"-"},{"$f":"IF(H562=0,\"-\",H562)","v":"-"},"-","-","-","-","-","-","-","-","-","-","-","-","-"]
[null,null,null,14,"WASTE ORGANIC SOLVENTS, REFRIGERANTS AND PROPELLANTS (except 07 and 08)","Tonnes",{"$f":"IF(G597=0,\"-\",G597)","v":"-"},{"$f":"IF(H597=0,\"-\",H597)","v":"-"},"-","-","-","-","-","-","-","-","-","-","-","-","-"]
[null,null,null,15,"WASTE PACKAGING; ABSORBENTS, WIPING CLOTHS, FILTER MATERIALS AND PROTECTIVE CLOTHING NOT OTHERWISE SPECIFIED","Tonnes",{"$f":"IF(G603=0,\"-\",G603)","v":"-"},{"$f":"IF(H603=0,\"-\",H603)","v":"-"},"-","-","-","-","-","-","-","-","-","-","-","-","-"]
[null,null,null,16,"WASTES NOT OTHERWISE SPECIFIED IN THE LIST","Tonnes",{"$f":"IF(G616=0,\"-\",G616)","v":"-"},{"$f":"IF(H616=0,\"-\",H616)","v":"-"},"-","-","-","-","-","-","-","-","-","-","-","-","-"]
[null,null,null,17,"CONSTRUCTION AND DEMOLITION WASTES (INCLUDING EXCAVATED SOIL FROM CONTAMINATED SITES)","Tonnes",{"$f":"IF(G688=0,\"-\",G688)","v":"-"},{"$f":"IF(H688=0,\"-\",H688)","v":"-"},"-","-","-","-","-","-","-","-","-","-","-","-","-"]
[null,null,null,18,"WASTES FROM HUMAN OR ANIMAL HEALTH CARE AND/OR RELATED RESEARCH (except kitchen and restaurant wastes not arising from immediate health care)","Tonnes",{"$f":"IF(G727=0,\"-\",G727)","v":"-"},{"$f":"IF(H727=0,\"-\",H727)","v":"-"},"-","-","-","-","-","-","-","-","-","-","-","-","-"]
[null,null,null,19,"WASTES FROM WASTE MANAGEMENT FACILITIES, OFF-SITE WASTE WATER TREATMENT PLANTS AND THE PREPARATION OF WATER INTENDED FOR HUMAN CONSUMPTION AND WATER FOR INDUSTRIAL USE","Tonnes",{"$f":"IF(G744=0,\"-\",G744)","v":"-"},{"$f":"IF(H744=0,\"-\",H744)","v":"-"},"-","-","-","-","-","-","-","-","-","-","-","-","-"]
[null,null,null,20,"MUNICIPAL WASTES (HOUSEHOLD WASTE AND SIMILAR COMMERCIAL, INDUSTRIAL AND INSTITUTIONAL WASTES) INCLUDING SEPARATELY COLLECTED FRACTIONS","Tonnes",{"$f":"IF(G843=0,\"-\",G843)","v":"-"},{"$f":"IF(H843=0,\"-\",H843)","v":"-"},"-","-","-","-","-","-","-","-","-","-","-","-","-"]
[]
[null,null,null,null,null,null,"Year -2",null,null,null,null,"Year -1",null,null,null,null,"Year 0"]
[null,null,null,null,null,null,"Year end date",null,null,null,null,"Year end date",null,null,null,null,"Year end date"]
[null,null,null,null,null,null,{"$f":"IF(G23=\"\",\"\",G23)","v":""},null,null,null,null,{"$f":"IF(L23=\"\",\"\",L23)","v":""},null,null,null,null,{"$f":"IF(Q23=\"\",\"\",Q23)","v":""}]
[]
[null,null,null,null,null,"Tonnes","Total","Reuse","Recycle","Energy recovery","Disposal","Total","Reuse","Recycle","Energy recovery","Disposal","Total","Reuse","Recycle","Energy recovery","Disposal"]
[null,null,null,null,null,"Total",{"$f":"IF(SUM(G889:G908)=0,\"-\",SUM(G889:G908))","v":"-"},{"$f":"IF(SUM(H889:H908)=0,\"-\",SUM(H889:H908))","v":"-"},"-","-","-","-","-","-","-","-","-","-","-","-","-"]

{"sheet":"Waste hierarchy calculation","index":3,"n_rows":24,"n_cols":11,"rows_kept":24,"cut":false,"hidden":false,"merged":[]}
[]
[]
[]
[null,null,null,"Carbon Trust Certification Limited"]
[null,null,null,"Waste Hierarchy Calculation"]
[]
[]
[null,null,null,null,"Total","Reuse","Recycle","Energy recovery","Disposal"]
[null,null,null,"Year -2",{"$f":"IF('Waste calculation'!G915=\"-\",\"-\",('Waste calculation'!G915))","v":"-"},{"$f":"IF('Waste calculation'!H915=\"-\",\"-\",('Waste calculation'!H915))","v":"-"},{"$f":"IF('Waste calculation'!I915=\"-\",\"-\",('Waste calculation'!I915))","v":"-"},{"$f":"IF('Waste calculation'!J915=\"-\",\"-\",('Waste calculation'!J915))","v":"-"},{"$f":"IF('Waste calculation'!K915=\"-\",\"-\",('Waste calculation'!K915))","v":"-"}]
[null,null,null,"Year -1",{"$f":"IF('Waste calculation'!L915=\"-\",\"-\",('Waste calculation'!L915))","v":"-"},{"$f":"IF('Waste calculation'!M915=\"-\",\"-\",('Waste calculation'!M915))","v":"-"},{"$f":"IF('Waste calculation'!N915=\"-\",\"-\",('Waste calculation'!N915))","v":"-"},{"$f":"IF('Waste calculation'!O915=\"-\",\"-\",('Waste calculation'!O915))","v":"-"},{"$f":"IF('Waste calculation'!P915=\"-\",\"-\",('Waste calculation'!P915))","v":"-"}]
[null,null,null,"Year 0",{"$f":"IF('Waste calculation'!Q915=\"-\",\"-\",('Waste calculation'!Q915))","v":"-"},{"$f":"IF('Waste calculation'!R915=\"-\",\"-\",('Waste calculation'!R915))","v":"-"},{"$f":"IF('Waste calculation'!S915=\"-\",\"-\",('Waste calculation'!S915))","v":"-"},{"$f":"IF('Waste calculation'!T915=\"-\",\"-\",('Waste calculation'!T915))","v":"-"},{"$f":"IF('Waste calculation'!U915=\"-\",\"-\",('Waste calculation'!U915))","v":"-"}]
[]
[null,null,null,null,"Total","Reuse","Recycle","Energy recovery","Disposal"]
[null,null,null,"Year -2",{"$f":"E9","v":"-"},5,3,2,1]
[null,null,null,"Year -1",{"$f":"E10","v":"-"},5,3,2,1]
[null,null,null,"Year 0","-",5,3,2,1]
[]
[null,null,null,null,"Total","Reuse","Recycle","Energy recovery","Disposal","Weighted sum","Weighted score"]
[null,null,null,"Year -2",{"$f":"E9","v":"-"},{"$f":"IF(ISERROR(F9*F14),\"-\",F9*F14)","v":"-"},{"$f":"IF(ISERROR(G9*G14),\"-\",G9*G14)","v":"-"},"-","-",{"$f":"IF(SUM(F19:I19)=0,\"-\",SUM(F19:I19))","v":"-"},{"$f":"IF(ISERROR(E19/J19),\"-\",E19/J19)","v":"-"}]
[null,null,null,"Year -1",{"$f":"E10","v":"-"},{"$f":"IF(ISERROR(F10*F15),\"-\",F10*F15)","v":"-"},"-","-","-",{"$f":"IF(SUM(F20:I20)=0,\"-\",SUM(F20:I20))","v":"-"},{"$f":"IF(ISERROR(E20/J20),\"-\",E20/J20)","v":"-"}]
[null,null,null,"Year 0","-","-","-","-","-","-","-"]
[]
[null,null,null,"Average Y-2 to Y-1","Year 0","Historical vs baseline score","Waste hierarchy score"]
[null,null,null,{"$f":"IF(ISERROR(AVERAGE(K19:K20)),\"-\",AVERAGE(K19:K20))","v":"-"},{"$f":"K21","v":"-"},{"$f":"IF(ISERROR(D24-E24),\"-\",D24-E24)","v":"-"},{"$f":"IF(ISERROR(F24/D24),\"-\",F24/D24)","v":"-"}]

{"sheet":"Waste adjustments","index":4,"n_rows":919,"n_cols":24,"rows_kept":919,"cut":false,"hidden":false,"merged":[[890,3,890,7],[14,3,14,26],[24,5,26,5],[26,22,27,22],[26,23,27,23],[26,24,27,24],[26,25,27,25]]}
[]
[]
[]
[null,null,null,"Carbon Trust Certification Limited"]
[null,null,null,"Waste Arisings Calculation"]
[]
[]
[]
[]
[]
[null,null,null,"Complete for assessment"]
[null,null,null,"Automatic calculation"]
[null,null,null,"Cells to be completed by assessor"]
[]
[null,null,null,"***PLEASE READ***\nInstructions: Please use this tab to input the organisation's waste arisings data. \nPlease note: This tab includes space for the most common waste types. If the organisation has waste arisings from sources not listed in this tab, please use the 'Other waste' tab to include these."]
[]
[null,null,null,null,null,null,"Organisation name",null,"Assessor name"]
[null,null,null,null,null,null,"Date spreadsheet completed",null,"Type of Service"]
[null,null,null,null,null,null,"Data year end date"]
[null,null,null,null,null,{"$f":"IF(SUM(H19)*SUM(H18)=0,\"\",IF(H18-H19>276,\"Error: Footprint must be completed within 9 months of compliance period end\",\"\"))","v":""}]
[null,null,null,null,null,"Adjustments to benchmark for structural changes",{"$f":"IF(G10=0,\"\",G10)","v":""}]
[null,null,null,null,null,"Adjustments to turnover for structural changes",{"$f":"G11","v":0}]
[]
[]
[null,null,null,null,null,"Units","Year -2",null,null,null,null,"Year -1",null,null,null,null,"Year 0"]
[null,null,null,null,null,null,"Year end date",null,null,null,null,"Year end date",null,null,null,null,"Year end date",null,null,null,null,null,"Activity Data Source","Assessor Comments"]
[null,null,null,null,null,null,{"$f":"IF($H$19=\"\",\"\",DATE(YEAR($H$19)-2,MONTH($H$19),DAY($H$19)))","v":""},null,null,null,null,{"$f":"IF($H$19=\"\",\"\",DATE(YEAR($H$19)-1,MONTH($H$19),DAY($H$19)))","v":""},null,null,null,null,{"$f":"IF($H$19=0,\"\",$H$19)","v":""},null,null,null,null,null,"e.g. e.g. from waste transfer notes, software packages, or spreadsheets,  raw data evidence presented in evidence pack","e.g. explanation of data quality, large year-on-year changes,etc."]
[]
[null,null,null,"Waste Code","Waste Type","Unit","Total","Reuse","Recycle","Energy recovery","Disposal","Total","Reuse","Recycle","Energy recovery","Disposal","Total","Reuse","Recycle","Energy recovery","Disposal"]
[null,null,null,"01","WASTES RESULTING FROM EXPLORATION, MINING, QUARRYING, AND PHYSICAL AND CHEMICAL TREATMENT OF MINERALS","Tonnes",{"$f":"IF(SUM(H30:K30)=0,\"-\",SUM(H30:K30))","v":"-"},{"$f":"IF(SUM(H31:H53)=0,\"-\",SUM(H31:H53))","v":"-"},{"$f":"IF(SUM(I31:I53)=0,\"-\",SUM(I31:I53))","v":"-"},"-","-",{"$f":"IF(SUM(M30:P30)=0,\"-\",SUM(M30:P30))","v":"-"},{"$f":"IF(SUM(M31:M53)=0,\"-\",SUM(M31:M53))","v":"-"},{"$f":"IF(SUM(N31:N53)=0,\"-\",SUM(N31:N53))","v":"-"},"-","-",{"$f":"IF(SUM(R30:U30)=0,\"-\",SUM(R30:U30))","v":"-"},{"$f":"IF(SUM(R31:R53)=0,\"-\",SUM(R31:R53))","v":"-"},{"$f":"IF(SUM(S31:S53)=0,\"-\",SUM(S31:S53))","v":"-"},"-","-"]
[null,null,null,"01 01 01 "," wastes from mineral metalliferous excavation","Tonnes",{"$f":"IF(SUM(H31:K31)=0,\"-\",SUM(H31:K31))","v":"-"},null,null,null,null,{"$f":"IF(SUM(M31:P31)=0,\"-\",SUM(M31:P31))","v":"-"},null,null,null,null,{"$f":"IF(SUM(R31:U31)=0,\"-\",SUM(R31:U31))","v":"-"}]
[null,null,null,"01 01 02 ","wastes from mineral non-metalliferous excavation","Tonnes","-",null,null,null,null,"-",null,null,null,null,"-"]
[null,null,null,"01 03 04*  "," acid-generating tailings from processing of sulphide ore","Tonnes","-",null,null,null,null,"-",null,null,null,null,"-"]
[null,null,null,"01 03 05*   ","other tailings containing dangerous substances","Tonnes","-",null,null,null,null,"-",null,null,null,null,"-"]
[null,null,null,"01 03 06  ","tailings other than those mentioned in 01 03 04 and 01 03 05","Tonnes","-",null,null,null,null,"-",null,null,null,null,"-"]
[null,null,null,"01 03 07*   ","other wastes containing dangerous substances from physical and chemical processing of metalliferous minerals","Tonnes","-",null,null,null,null,"-",null,null,null,null,"-"]
[null,null,null,"01 03 08  ","dusty and powdery wastes other than those mentioned in 01 03 07","Tonnes","-",null,null,null,null,"-",null,null,null,null,"-"]
[null,null,null,"01 03 09  ","red mud from alumina production other than the wastes mentioned in 01 03 07","Tonnes","-",null,null,null,null,"-",null,null,null,null,"-"]
[null,null,null,"01 03 99  ","wastes not otherwise specified","Tonnes","-",null,null,null,null,"-",null,null,null,null,"-"]
[null,null,null,"01 04 07*   ","wastes containing dangerous substances from physical and chemical processing of non-metalliferous minerals","Tonnes","-",null,null,null,null,"-",null,null,null,null,"-"]
[null,null,null,"01 04 08  ","waste gravel and crushed rocks other than those mentioned in 01 04 07","Tonnes","-",null,null,null,null,"-",null,null,null,null,"-"]
[null,null,null,"01 04 09  ","waste sand and clays","Tonnes","-",null,null,null,null,"-",null,null,null,null,"-"]
[null,null,null,"01 04 10 "," dusty and powdery wastes other than those mentioned in 01 04 07","Tonnes","-",null,null,null,null,"-",null,null,null,null,"-"]
[null,null,null,"01 04 11 "," wastes from potash and rock salt processing other than those mentioned in 01 04 07","Tonnes","-",null,null,null,null,"-",null,null,null,null,"-"]
[null,null,null,"01 04 12 "," tailings and other wastes from washing and cleaning of minerals other than those mentioned in 01 04 07 and 01 04 11","Tonnes","-",null,null,null,null,"-",null,null,null,null,"-"]
[null,null,null,"01 04 13 "," wastes from stone cutting and sawing other than those mentioned in 01 04 07","Tonnes","-",null,null,null,null,"-",null,null,null,null,"-"]
[null,null,null,"01 04 99 "," wastes not otherwise specified","Tonnes","-",null,null,null,null,"-",null,null,null,null,"-"]
[null,null,null,"01 05 04 "," freshwater drilling muds and wastes","Tonnes","-",null,null,null,null,"-",null,null,null,null,"-"]
[null,null,null,"01 05 05* ","oil-containing drilling muds and wastes","Tonnes","-",null,null,null,null,"-",null,null,null,null,"-"]
[null,null,null,"01 05 06*  "," drilling muds and other drilling wastes containing dangerous substances","Tonnes","-",null,null,null,null,"-",null,null,null,null,"-"]
[null,null,null,"01 05 07 "," barite-containing drilling muds and wastes other than those mentioned in 01 05 05 and 01 05 06","Tonnes","-",null,null,null,null,"-",null,null,null,null,"-"]
[null,null,null,"01 05 08 "," chloride-containing drilling muds and wastes other than those mentioned in 01 05 05 and 01 05 06","Tonnes","-",null,null,null,null,"-",null,null,null,null,"-"]
[null,null,null,"01 05 99 "," wastes not otherwise specified","Tonnes","-",null,null,null,null,"-",null,null,null,null,"-"]
[null,null,null,"02","WASTES FROM AGRICULTURE, HORTICULTURE, AQUACULTURE, FORESTRY, HUNTING AND FISHING, FOOD PREPARATION AND PROCESSING","Tonnes","-",{"$f":"IF(SUM(H55:H92)=0,\"-\",SUM(H55:H93))","v":"-"},{"$f":"IF(SUM(I55:I92)=0,\"-\",SUM(I55:I93))","v":"-"},"-","-","-",{"$f":"IF(SUM(M55:M92)=0,\"-\",SUM(M55:M93))","v":"-"},{"$f":"IF(SUM(N55:N92)=0,\"-\",SUM(N55:N93))","v":"-"},"-","-","-",{"$f":"IF(SUM(R55:R92)=0,\"-\",SUM(R55:R93))","v":"-"},{"$f":"IF(SUM(S55:S92)=0,\"-\",SUM(S55:S93))","v":"-"},"-","-"]
[null,null,null,"02 01 01 "," sludges from washing and cleaning","Tonnes","-",null,null,null,null,"-",null,null,null,null,"-"]
[null,null,null,"02 01 02 "," animal-tissue waste","Tonnes","-",null,null,null,null,"-",null,null,null,null,"-"]
[null,null,null,"02 01 03 "," plant-tissue waste","Tonnes","-",null,null,null,null,"-",null,null,null,null,"-"]
[null,null,null,"02 01 04 "," waste plastics (except packaging)","Tonnes","-",null,null,null,null,"-",null,null,null,null,"-"]
[null,null,null,"02 01 06 "," animal faeces, urine and manure (including spoiled straw), effluent, collected separately and treated off-site","Tonnes","-",null,null,null,null,"-",null,null,null,null,"-"]
[null,null,null,"02 01 07 "," wastes from forestry","Tonnes","-",null,null,null,null,"-",null,null,null,null,"-"]
[null,null,null,"02 01 08* "," agrochemical waste containing dangerous substances","Tonnes","-",null,null,null,null,"-",null,null,null,null,"-"]
[null,null,null,"02 01 09 "," agrochemical waste other than those mentioned in 02 01 08","Tonnes","-",null,null,null,null,"-",null,null,null,null,"-"]
[null,null,null,"02 01 10 "," waste metal","Tonnes","-",null,null,null,null,"-",null,null,null,null,"-"]
[null,null,null,"02 01 99 "," wastes not otherwise specified","Tonnes","-",null,null,null,null,"-",null,null,null,null,"-"]
[null,null,null,"02 02 01 "," sludges from washing and cleaning","Tonnes","-",null,null,null,null,"-",null,null,null,null,"-"]
[null,null,null,"02 02 02 "," animal-tissue waste","Tonnes","-",null,null,null,null,"-",null,null,null,null,"-"]
[null,null,null,"02 02 03 "," materials unsuitable for consumption or processing","Tonnes","-",null,null,null,null,"-",null,null,null,null,"-"]
[null,null,null,"02 02 04 "," sludges from on-site effluent treatment","Tonnes","-",null,null,null,null,"-",null,null,null,null,"-"]
[null,null,null,"02 02 99 "," wastes not otherwise specified","Tonnes","-",null,null,null,null,"-",null,null,null,null,"-"]
[null,null,null,"02 03 01 "," sludges from washing, cleaning, peeling, centrifuging and separation","Tonnes","-",null,null,null,null,"-",null,null,null,null,"-"]
[null,null,null,"02 03 02 "," wastes from preserving agents","Tonnes","-",null,null,null,null,"-",null,null,null,null,"-"]
[null,null,null,"02 03 03 "," wastes from solvent extraction","Tonnes","-",null,null,null,null,"-",null,null,null,null,"-"]
[null,null,null,"02 03 04 "," materials unsuitable for consumption or processing","Tonnes","-",null,null,null,null,"-",null,null,null,null,"-"]
[null,null,null,"02 03 05 "," sludges from on-site effluent treatment","Tonnes","-",null,null,null,null,"-",null,null,null,null,"-"]
[null,null,null,"02 03 99 "," wastes not otherwise specified","Tonnes","-",null,null,null,null,"-",null,null,null,null,"-"]
[null,null,null,"02 04 01 "," soil from cleaning and washing beet","Tonnes","-",null,null,null,null,"-",null,null,null,null,"-"]
[null,null,null,"02 04 02 "," off-specification calcium carbonate","Tonnes","-",null,null,null,null,"-",null,null,null,null,"-"]
[null,null,null,"02 04 03 "," sludges from on-site effluent treatment","Tonnes","-",null,null,null,null,"-",null,null,null,null,"-"]
[null,null,null,"02 04 99 "," wastes not otherwise specified","Tonnes","-",null,null,null,null,"-",null,null,null,null,"-"]
[null,null,null,"02 05 01 "," materials unsuitable for consumption or processing","Tonnes","-",null,null,null,null,"-",null,null,null,null,"-"]
[null,null,null,"02 05 02 "," sludges from on-site effluent treatment","Tonnes","-",null,null,null,null,"-",null,null,null,null,"-"]
[null,null,null,"02 05 99 "," wastes not otherwise specified","Tonnes","-",null,null,null,null,"-",null,null,null,null,"-"]
[null,null,null,"02 06 01 "," materials unsuitable for consumption or processing","Tonnes","-",null,null,null,null,"-",null,null,null,null,"-"]
[null,null,null,"02 06 02 "," wastes from preserving agents","Tonnes","-",null,null,null,null,"-",null,null,null,null,"-"]
[null,null,null,"02 06 03 "," sludges from on-site effluent treatment","Tonnes","-",null,null,null,null,"-",null,null,null,null,"-"]
[null,null,null,"02 06 99 "," wastes not otherwise specified","Tonnes","-",null,null,null,null,"-",null,null,null,null,"-"]
[null,null,null,"02 07 01 "," wastes from washing, cleaning and mechanical reduction of raw materials","Tonnes","-",null,null,null,null,"-",null,null,null,null,"-"]
[null,null,null,"02 07 02 "," wastes from spirits distillation","Tonnes","-",null,null,null,null,"-",null,null,null,null,"-"]
[null,null,null,"02 07 03 "," wastes from chemical treatment","Tonnes","-",null,null,null,null,"-",null,null,null,null,"-"]
[null,null,null,"02 07 04 "," materials unsuitable for consumption or processing","Tonnes","-",null,null,null,null,"-",null,null,null,null,"-"]
[null,null,null,"02 07 05 "," sludges from on-site effluent treatment","Tonnes","-",null,null,null,null,"-",null,null,null,null,"-"]
[null,null,null,"02 07 99 "," wastes not otherwise specified","Tonnes","-",null,null,null,null,"-",null,null,null,null,"-"]
[null,null,null,"03","WASTES FROM WOOD PROCESSING AND THE PRODUCTION OF PANELS AND FURNITURE, PULP, PAPER AND CARDBOARD","Tonnes","-",{"$f":"IF(SUM(H94:H112)=0,\"-\",SUM(H94:H112))","v":"-"},{"$f":"IF(SUM(I94:I112)=0,\"-\",SUM(I94:I112))","v":"-"},"-","-","-",{"$f":"IF(SUM(M94:M112)=0,\"-\",SUM(M94:M112))","v":"-"},{"$f":"IF(SUM(N94:N112)=0,\"-\",SUM(N94:N112))","v":"-"},"-","-","-",{"$f":"IF(SUM(R94:R112)=0,\"-\",SUM(R94:R112))","v":"-"},{"$f":"IF(SUM(S94:S112)=0,\"-\",SUM(S94:S112))","v":"-"},"-","-"]
[null,null,null,"03 01 01 "," waste bark and cork","Tonnes","-",null,null,null,null,"-",null,null,null,null,"-"]
[null,null,null,"03 01 04* "," sawdust, shavings, cuttings, wood, particle board and veneer containing dangerous substances","Tonnes",{"$f":"IF(SUM(H95:K95)=0,\"-\",SUM(H95:K95))","v":"-"},null,null,null,null,{"$f":"IF(SUM(M95:P95)=0,\"-\",SUM(M95:P95))","v":"-"},null,null,null,null,{"$f":"IF(SUM(R95:U95)=0,\"-\",SUM(R95:U95))","v":"-"}]
[null,null,null,"03 01 05 "," sawdust, shavings, cuttings, wood, particle board and veneer other than those mentioned in 03 01 04","Tonnes","-",null,null,null,null,"-",null,null,null,null,"-"]
[null,null,null,"03 01 99 "," wastes not otherwise specified","Tonnes","-",null,null,null,null,"-",null,null,null,null,"-"]
[null,null,null,"03 02 01* "," non-halogenated organic wood preservatives","Tonnes","-",null,null,null,null,"-",null,null,null,null,"-"]
[null,null,null,"03 02 02* "," organochlorinated wood preservatives","Tonnes","-",null,null,null,null,"-",null,null,null,null,"-"]
[null,null,null,"03 02 03* "," organometallic wood preservatives","Tonnes","-",null,null,null,null,"-",null,null,null,null,"-"]
[null,null,null,"03 02 04* "," inorganic wood preservatives","Tonnes","-",null,null,null,null,"-",null,null,null,null,"-"]
[null,null,null,"03 02 05* "," other wood preservatives containing dangerous substances","Tonnes","-",null,null,null,null,"-",null,null,null,null,"-"]
[null,null,null,"03 02 99 "," wood preservatives not otherwise specified","Tonnes","-",null,null,null,null,"-",null,null,null,null,"-"]
[null,null,null,"03 03 01 "," waste bark and wood","Tonnes","-",null,null,null,null,"-",null,null,null,null,"-"]
[null,null,null,"03 03 02  ","green liquor sludge (from recovery of cooking liquor)","Tonnes","-",null,null,null,null,"-",null,null,null,null,"-"]
[null,null,null,"03 03 05 "," de-inking sludges from paper recycling","Tonnes","-",null,null,null,null,"-",null,null,null,null,"-"]
[null,null,null,"03 03 07 "," mechanically separated rejects from pulping of waste paper and cardboard","Tonnes","-",null,null,null,null,"-",null,null,null,null,"-"]
[null,null,null,"03 03 08 "," wastes from sorting of paper and cardboard destined for recycling","Tonnes","-",null,null,null,null,"-",null,null,null,null,"-"]
[null,null,null,"03 03 09 "," lime mud waste","Tonnes","-",null,null,null,null,"-",null,null,null,null,"-"]
[null,null,null,"03 03 10 "," fibre rejects, fibre-, filler- and coating-sludges from mechanical separation","Tonnes","-",null,null,null,null,"-",null,null,null,null,"-"]
[null,null,null,"03 03 11 "," sludges from on-site effluent treatment other than those mentioned in 03 03 10","Tonnes","-",null,null,null,null,"-",null,null,null,null,"-"]
[null,null,null,"03 03 99 "," wastes not otherwise specified","Tonnes","-",null,null,null,null,"-",null,null,null,null,"-"]
[null,null,null,"04","WASTES FROM THE LEATHER, FUR AND TEXTILE INDUSTRIES","Tonnes","-",{"$f":"IF(SUM(H114:H134)=0,\"-\",SUM(H114:H134))","v":"-"},{"$f":"IF(SUM(I114:I134)=0,\"-\",SUM(I114:I134))","v":"-"},"-","-","-",{"$f":"IF(SUM(M114:M134)=0,\"-\",SUM(M114:M134))","v":"-"},{"$f":"IF(SUM(N114:N134)=0,\"-\",SUM(N114:N134))","v":"-"},"-","-","-",{"$f":"IF(SUM(R114:R134)=0,\"-\",SUM(R114:R134))","v":"-"},{"$f":"IF(SUM(S114:S134)=0,\"-\",SUM(S114:S134))","v":"-"},"-","-"]
[null,null,null,"04 01 01 "," fleshings and lime split wastes","Tonnes","-",null,null,null,null,"-",null,null,null,null,"-"]
[null,null,null,"04 01 02 "," liming waste","Tonnes","-",null,null,null,null,"-",null,null,null,null,"-"]
[null,null,null,"04 01 03* "," degreasing wastes containing solvents without a liquid phase","Tonnes","-",null,null,null,null,"-",null,null,null,null,"-"]
[null,null,null,"04 01 04 "," tanning liquor containing chromium","Tonnes","-",null,null,null,null,"-",null,null,null,null,"-"]
[null,null,null,"04 01 05 "," tanning liquor free of chromium","Tonnes","-",null,null,null,null,"-",null,null,null,null,"-"]
[null,null,null,"04 01 06 "," sludges, in particular from on-site effluent treatment containing chromium","Tonnes","-",null,null,null,null,"-",null,null,null,null,"-"]
[null,null,null,"04 01 07 "," sludges, in particular from on-site effluent treatment free of chromium","Tonnes","-",null,null,null,null,"-",null,null,null,null,"-"]
[null,null,null,"04 01 08 "," waste tanned leather (blue sheetings, shavings, cuttings, buffing dust) containing chromium","Tonnes","-",null,null,null,null,"-",null,null,null,null,"-"]
[null,null,null,"04 01 09 "," wastes from dressing and finishing","Tonnes","-",null,null,null,null,"-",null,null,null,null,"-"]
[null,null,null,"04 01 99 "," wastes not otherwise specified","Tonnes","-",null,null,null,null,"-",null,null,null,null,"-"]
[null,null,null,"04 02 09 "," wastes from composite materials (impregnated textile, elastomer, plastomer)","Tonnes","-",null,null,null,null,"-",null,null,null,null,"-"]
[null,null,null,"04 02 10 "," organic matter from natural products (for example grease, wax)","Tonnes","-",null,null,null,null,"-",null,null,null,null,"-"]
[null,null,null,"04 02 14* "," wastes from finishing containing organic solvents","Tonnes","-",null,null,null,null,"-",null,null,null,null,"-"]
[null,null,null,"04 02 15 "," wastes from finishing other than those mentioned in 04 02 14","Tonnes","-",null,null,null,null,"-",null,null,null,null,"-"]
[null,null,null,"04 02 16* "," dyestuffs and pigments containing dangerous substances","Tonnes","-",null,null,null,null,"-",null,null,null,null,"-"]
[null,null,null,"04 02 17 "," dyestuffs and pigments other than those mentioned in 04 02 16","Tonnes","-",null,null,null,null,"-",null,null,null,null,"-"]
[null,null,null,"04 02 19* "," sludges from on-site effluent treatment containing dangerous substances","Tonnes","-",null,null,null,null,"-",null,null,null,null,"-"]
[null,null,null,"04 02 20  ","Sludges from on-site effluent treatment other than those mentioned in 04 02 19","Tonnes","-",null,null,null,null,"-",null,null,null,null,"-"]
[null,null,null,"04 02 21 "," wastes from unprocessed textile fibres","Tonnes","-",null,null,null,null,"-",null,null,null,null,"-"]
[null,null,null,"04 02 22 "," wastes from processed textile fibres","Tonnes","-",null,null,null,null,"-",null,null,null,null,"-"]
[null,null,null,"04 02 99 "," wastes not otherwise specified","Tonnes","-",null,null,null,null,"-",null,null,null,null,"-"]
[null,null,null,"05","WASTES FROM PETROLEUM REFINING, NATURAL GAS PURIFICATION AND PYROLYTIC TREATMENT OF COAL","Tonnes","-",{"$f":"IF(SUM(H136:H159)=0,\"-\",SUM(H136:H159))","v":"-"},{"$f":"IF(SUM(I136:I159)=0,\"-\",SUM(I136:I159))","v":"-"},"-","-","-",{"$f":"IF(SUM(M136:M159)=0,\"-\",SUM(M136:M159))","v":"-"},{"$f":"IF(SUM(N136:N159)=0,\"-\",SUM(N136:N159))","v":"-"},"-","-","-",{"$f":"IF(SUM(R136:R159)=0,\"-\",SUM(R136:R159))","v":"-"},{"$f":"IF(SUM(S136:S159)=0,\"-\",SUM(S136:S159))","v":"-"},"-","-"]
[null,null,null,"05 01 02* "," desalter sludges","Tonnes","-",null,null,null,null,"-",null,null,null,null,"-"]
[null,null,null,"05 01 03* "," tank bottom sludges","Tonnes","-",null,null,null,null,"-",null,null,null,null,"-"]
[null,null,null,"05 01 04* "," acid alkyl sludges","Tonnes","-",null,null,null,null,"-",null,null,null,null,"-"]
[null,null,null,"05 01 05* "," oil spills","Tonnes","-",null,null,null,null,"-",null,null,null,null,"-"]
[null,null,null,"05 01 06* "," oily sludges from maintenance operations of the plant or equipment","Tonnes","-",null,null,null,null,"-",null,null,null,null,"-"]
[null,null,null,"05 01 07* "," acid tars","Tonnes","-",null,null,null,null,"-",null,null,null,null,"-"]
[null,null,null,"05 01 08* "," other tars","Tonnes","-",null,null,null,null,"-",null,null,null,null,"-"]
[null,null,null,"05 01 09* "," sludges from on-site effluent treatment containing dangerous substances","Tonnes","-",null,null,null,null,"-",null,null,null,null,"-"]
[null,null,null,"05 01 10  ","Sludges from on-site effluent treatment other than those mentioned in 05 01 09","Tonnes","-",null,null,null,null,"-",null,null,null,null,"-"]
[null,null,null,"05 01 11* "," wastes from cleaning of fuels with bases","Tonnes","-",null,null,null,null,"-",null,null,null,null,"-"]
[null,null,null,"05 01 12* "," oil containing acids","Tonnes","-",null,null,null,null,"-",null,null,null,null,"-"]
[null,null,null,"05 01 13 "," boiler feedwater sludges","Tonnes","-",null,null,null,null,"-",null,null,null,null,"-"]
[null,null,null,"05 01 14 "," wastes from cooling columns","Tonnes","-",null,null,null,null,"-",null,null,null,null,"-"]
[null,null,null,"05 01 15* "," spent filter clays","Tonnes","-",null,null,null,null,"-",null,null,null,null,"-"]
[null,null,null,"05 01 16 "," sulphur-containing wastes from petroleum desulphurisation","Tonnes","-",null,null,null,null,"-",null,null,null,null,"-"]
[null,null,null,"05 01 17 "," bitumen","Tonnes","-",null,null,null,null,"-",null,null,null,null,"-"]
[null,null,null,"05 01 99 "," wastes not otherwise specified","Tonnes","-",null,null,null,null,"-",null,null,null,null,"-"]
[null,null,null,"05 06 01* "," acid tars","Tonnes","-",null,null,null,null,"-",null,null,null,null,"-"]
[null,null,null,"05 06 03* "," other tars","Tonnes","-",null,null,null,null,"-",null,null,null,null,"-"]
[null,null,null,"05 06 04 "," waste from cooling columns","Tonnes","-",null,null,null,null,"-",null,null,null,null,"-"]
[null,null,null,"05 06 99 "," wastes not otherwise specified","Tonnes","-",null,null,null,null,"-",null,null,null,null,"-"]
[null,null,null,"05 07 01* "," wastes containing mercury","Tonnes","-",null,null,null,null,"-",null,null,null,null,"-"]
[null,null,null,"05 07 02 "," wastes containing sulphur","Tonnes","-",null,null,null,null,"-",null,null,null,null,"-"]
[null,null,null,"05 07 99 "," wastes not otherwise specified","Tonnes",{"$f":"IF(SUM(H159:K159)=0,\"-\",SUM(H159:K159))","v":"-"},null,null,null,null,{"$f":"IF(SUM(M159:P159)=0,\"-\",SUM(M159:P159))","v":"-"},null,null,null,null,{"$f":"IF(SUM(R159:U159)=0,\"-\",SUM(R159:U159))","v":"-"}]
[null,null,null,"06","WASTES FROM INORGANIC CHEMICAL PROCESSES","Tonnes","-",{"$f":"IF(SUM(H161:H208)=0,\"-\",SUM(H161:H208))","v":"-"},{"$f":"IF(SUM(I161:I208)=0,\"-\",SUM(I161:I208))","v":"-"},"-","-","-",{"$f":"IF(SUM(M161:M208)=0,\"-\",SUM(M161:M208))","v":"-"},{"$f":"IF(SUM(N161:N208)=0,\"-\",SUM(N161:N208))","v":"-"},"-","-","-",{"$f":"IF(SUM(R161:R208)=0,\"-\",SUM(R161:R208))","v":"-"},{"$f":"IF(SUM(S161:S208)=0,\"-\",SUM(S161:S208))","v":"-"},"-","-"]
[null,null,null,"06 01 01* "," sulphuric acid and sulphurous acid","Tonnes","-",null,null,null,null,"-",null,null,null,null,"-"]
[null,null,null,"06 01 02* "," hydrochloric acid","Tonnes","-",null,null,null,null,"-",null,null,null,null,"-"]
[null,null,null,"06 01 03* "," hydrofluoric acid","Tonnes","-",null,null,null,null,"-",null,null,null,null,"-"]
[null,null,null,"06 01 04* "," phosphoric and phosphorous acid","Tonnes","-",null,null,null,null,"-",null,null,null,null,"-"]
[null,null,null,"06 01 05* "," nitric acid and nitrous acid","Tonnes","-",null,null,null,null,"-",null,null,null,null,"-"]
[null,null,null,"06 01 06* "," other acids","Tonnes","-",null,null,null,null,"-",null,null,null,null,"-"]
[null,null,null,"06 01 99 "," wastes not otherwise specified","Tonnes","-",null,null,null,null,"-",null,null,null,null,"-"]
[null,null,null,"06 02 01* "," calcium hydroxide","Tonnes","-",null,null,null,null,"-",null,null,null,null,"-"]
[null,null,null,"06 02 03* "," ammonium hydroxide","Tonnes","-",null,null,null,null,"-",null,null,null,null,"-"]
[null,null,null,"06 02 04* "," sodium and potassium hydroxide","Tonnes","-",null,null,null,null,"-",null,null,null,null,"-"]
[null,null,null,"06 02 05* "," other bases","Tonnes","-",null,null,null,null,"-",null,null,null,null,"-"]
[null,null,null,"06 02 99 "," wastes not otherwise specified","Tonnes","-",null,null,null,null,"-",null,null,null,null,"-"]
[null,null,null,"06 03 11* "," solid salts and solutions containing cyanides","Tonnes","-",null,null,null,null,"-",null,null,null,null,"-"]
[null,null,null,"06 03 13* "," solid salts and solutions containing heavy metals","Tonnes","-",null,null,null,null,"-",null,null,null,null,"-"]
[null,null,null,"06 03 14 "," solid salts and solutions other than those mentioned in 06 03 11 and 06 03 13","Tonnes","-",null,null,null,null,"-",null,null,null,null,"-"]
[null,null,null,"06 03 15* "," metallic oxides containing heavy metals","Tonnes","-",null,null,null,null,"-",null,null,null,null,"-"]
[null,null,null,"06 03 16 "," metallic oxides other than those mentioned in 06 03 15","Tonnes","-",null,null,null,null,"-",null,null,null,null,"-"]
[null,null,null,"06 03 99 "," wastes not otherwise specified","Tonnes","-",null,null,null,null,"-",null,null,null,null,"-"]
[null,null,null,"06 04 03* "," wastes containing arsenic","Tonnes","-",null,null,null,null,"-",null,null,null,null,"-"]
[null,null,null,"06 04 04* "," wastes containing mercury","Tonnes","-",null,null,null,null,"-",null,null,null,null,"-"]
[null,null,null,"06 04 05* "," wastes containing other heavy metals","Tonnes","-",null,null,null,null,"-",null,null,null,null,"-"]
[null,null,null,"06 04 99 "," wastes not otherwise specified","Tonnes","-",null,null,null,null,"-",null,null,null,null,"-"]
[null,null,null,"06 05 02* "," sludges from on-site effluent treatment containing dangerous substances","Tonnes","-",null,null,null,null,"-",null,null,null,null,"-"]
[null,null,null,"06 05 03 "," sludges from on-site effluent treatment other than those mentioned in 06 05 02","Tonnes","-",null,null,null,null,"-",null,null,null,null,"-"]
[null,null,null,"06 06 02* "," wastes containing dangerous sulphides","Tonnes","-",null,null,null,null,"-",null,null,null,null,"-"]
[null,null,null,"06 06 03 "," wastes containing sulphides other than those mentioned in 06 06 02","Tonnes","-",null,null,null,null,"-",null,null,null,null,"-"]
[null,null,null,"06 06 99 "," wastes not otherwise specified","Tonnes","-",null,null,null,null,"-",null,null,null,null,"-"]
[null,null,null,"06 07 01* "," wastes containing asbestos from electrolysis","Tonnes","-",null,null,null,null,"-",null,null,null,null,"-"]
[null,null,null,"06 07 02* "," activated carbon from chlorine production","Tonnes","-",null,null,null,null,"-",null,null,null,null,"-"]
[null,null,null,"06 07 03* "," barium sulphate sludge containing mercury","Tonnes","-",null,null,null,null,"-",null,null,null,null,"-"]
[null,null,null,"06 07 04* "," solutions and acids, for example contact acid","Tonnes","-",null,null,null,null,"-",null,null,null,null,"-"]
[null,null,null,"06 07 99 "," wastes not otherwise specified","Tonnes","-",null,null,null,null,"-",null,null,null,null,"-"]
[null,null,null,"06 08 02 "," wastes containing chlorosilanes","Tonnes","-",null,null,null,null,"-",null,null,null,null,"-"]
[null,null,null,"06 08 99 "," wastes not otherwise specified","Tonnes","-",null,null,null,null,"-",null,null,null,null,"-"]
[null,null,null,"06 09 02 "," phosphorous slag","Tonnes","-",null,null,null,null,"-",null,null,null,null,"-"]
[null,null,null,"06 09 03* "," calcium-based reaction wastes containing or contaminated with dangerous substances","Tonnes","-",null,null,null,null,"-",null,null,null,null,"-"]
[null,null,null,"06 09 04 "," calcium-based reaction wastes other than those mentioned in 06 09 03","Tonnes","-",null,null,null,null,"-",null,null,null,null,"-"]
[null,null,null,"06 09 99 "," wastes not otherwise specified","Tonnes","-",null,null,null,null,"-",null,null,null,null,"-"]
[null,null,null,"06 10 02* "," wastes containing dangerous substances","Tonnes","-",null,null,null,null,"-",null,null,null,null,"-"]
[null,null,null,"06 10 99 "," wastes not otherwise specified","Tonnes","-",null,null,null,null,"-",null,null,null,null,"-"]
[null,null,null,"06 11 01 "," calcium-based reaction wastes from titanium dioxide production","Tonnes","-",null,null,null,null,"-",null,null,null,null,"-"]
[null,null,null,"06 11 99 "," wastes not otherwise specified","Tonnes","-",null,null,null,null,"-",null,null,null,null,"-"]
[null,null,null,"06 13 01* "," inorganic plant protection products, wood-preserving agents and other biocides.","Tonnes","-",null,null,null,null,"-",null,null,null,null,"-"]
[null,null,null,"06 13 02* "," spent activated carbon (except 06 07 02)","Tonnes","-",null,null,null,null,"-",null,null,null,null,"-"]
[null,null,null,"06 13 03 "," carbon black","Tonnes","-",null,null,null,null,"-",null,null,null,null,"-"]
[null,null,null,"06 13 04* "," wastes from asbestos processing","Tonnes","-",null,null,null,null,"-",null,null,null,null,"-"]
[null,null,null,"06 13 05* "," soot","Tonnes","-",null,null,null,null,"-",null,null,null,null,"-"]
[null,null,null,"06 13 99 "," wastes not otherwise specified","Tonnes","-",null,null,null,null,"-",null,null,null,null,"-"]
[null,null,null,"07","WASTES FROM ORGANIC CHEMICAL PROCESSES","Tonnes","-",{"$f":"IF(SUM(H210:H286)=0,\"-\",SUM(H210:H286))","v":"-"},{"$f":"IF(SUM(I210:I286)=0,\"-\",SUM(I210:I286))","v":"-"},"-","-","-",{"$f":"IF(SUM(M210:M286)=0,\"-\",SUM(M210:M286))","v":"-"},{"$f":"IF(SUM(N210:N286)=0,\"-\",SUM(N210:N286))","v":"-"},"-","-","-",{"$f":"IF(SUM(R210:R286)=0,\"-\",SUM(R210:R286))","v":"-"},{"$f":"IF(SUM(S210:S286)=0,\"-\",SUM(S210:S286))","v":"-"},"-","-"]
[null,null,null,"07 01 01* "," aqueous washing liquids and mother liquors","Tonnes","-",null,null,null,null,"-",null,null,null,null,"-"]
[null,null,null,"07 01 03* "," organic halogenated solvents, washing liquids and mother liquors","Tonnes","-",null,null,null,null,"-",null,null,null,null,"-"]
[null,null,null,"07 01 04* "," other organic solvents, washing liquids and mother liquors","Tonnes","-",null,null,null,null,"-",null,null,null,null,"-"]
[null,null,null,"07 01 07* "," halogenated still bottoms and reaction residues","Tonnes","-",null,null,null,null,"-",null,null,null,null,"-"]
[null,null,null,"07 01 08* "," other still bottoms and reaction residues","Tonnes","-",null,null,null,null,"-",null,null,null,null,"-"]
[null,null,null,"07 01 09* "," halogenated filter cakes and spent absorbents","Tonnes","-",null,null,null,null,"-",null,null,null,null,"-"]
[null,null,null,"07 01 10* "," other filter cakes and spent absorbents","Tonnes","-",null,null,null,null,"-",null,null,null,null,"-"]
[null,null,null,"07 01 11* "," sludges from on-site effluent treatment containing dangerous substances","Tonnes","-",null,null,null,null,"-",null,null,null,null,"-"]
[null,null,null,"07 01 12 "," sludges from on-site effluent treatment other than those mentioned in 07 01 11","Tonnes","-",null,null,null,null,"-",null,null,null,null,"-"]
[null,null,null,"07 01 99 "," wastes not otherwise specified","Tonnes","-",null,null,null,null,"-",null,null,null,null,"-"]
[null,null,null,"07 02 01* "," aqueous washing liquids and mother liquors","Tonnes","-",null,null,null,null,"-",null,null,null,null,"-"]
[null,null,null,"07 02 03* "," organic halogenated solvents, washing liquids and mother liquors","Tonnes","-",null,null,null,null,"-",null,null,null,null,"-"]
[null,null,null,"07 02 04* "," other organic solvents, washing liquids and mother liquors","Tonnes","-",null,null,null,null,"-",null,null,null,null,"-"]
[null,null,null,"07 02 07* "," halogenated still bottoms and reaction residues","Tonnes",{"$f":"IF(SUM(H223:K223)=0,\"-\",SUM(H223:K223))","v":"-"},null,null,null,null,{"$f":"IF(SUM(M223:P223)=0,\"-\",SUM(M223:P223))","v":"-"},null,null,null,null,{"$f":"IF(SUM(R223:U223)=0,\"-\",SUM(R223:U223))","v":"-"}]
[null,null,null,"07 02 08* "," other still bottoms and reaction residues","Tonnes","-",null,null,null,null,"-",null,null,null,null,"-"]
[null,null,null,"07 02 09* "," halogenated filter cakes and spent absorbents","Tonnes","-",null,null,null,null,"-",null,null,null,null,"-"]
[null,null,null,"07 02 10* "," other filter cakes and spent absorbents","Tonnes","-",null,null,null,null,"-",null,null,null,null,"-"]
[null,null,null,"07 02 11* "," sludges from on-site effluent treatment containing dangerous substances","Tonnes","-",null,null,null,null,"-",null,null,null,null,"-"]
[null,null,null,"07 02 12 "," sludges from on-site effluent treatment other than those mentioned in 07 02 11","Tonnes","-",null,null,null,null,"-",null,null,null,null,"-"]
[null,null,null,"07 02 13 "," waste plastic","Tonnes","-",null,null,null,null,"-",null,null,null,null,"-"]
[null,null,null,"07 02 14* "," wastes from additives containing dangerous substances","Tonnes","-",null,null,null,null,"-",null,null,null,null,"-"]
[null,null,null,"07 02 15 "," wastes from additives other than those mentioned in 07 02 14","Tonnes","-",null,null,null,null,"-",null,null,null,null,"-"]
[null,null,null,"07 02 16 "," wastes containing silicones","Tonnes","-",null,null,null,null,"-",null,null,null,null,"-"]
[null,null,null,"07 02 99 "," wastes not otherwise specified","Tonnes","-",null,null,null,null,"-",null,null,null,null,"-"]
[null,null,null,"07 03 01* "," aqueous washing liquids and mother liquors","Tonnes","-",null,null,null,null,"-",null,null,null,null,"-"]
[null,null,null,"07 03 03* "," organic halogenated solvents, washing liquids and mother liquors","Tonnes","-",null,null,null,null,"-",null,null,null,null,"-"]
[null,null,null,"07 03 04* "," other organic solvents, washing liquids and mother liquors","Tonnes","-",null,null,null,null,"-",null,null,null,null,"-"]
[null,null,null,"07 03 07* "," halogenated still bottoms and reaction residues","Tonnes","-",null,null,null,null,"-",null,null,null,null,"-"]
[null,null,null,"07 03 08* "," other still bottoms and reaction residues","Tonnes","-",null,null,null,null,"-",null,null,null,null,"-"]
[null,null,null,"07 03 09* "," halogenated filter cakes and spent absorbents","Tonnes","-",null,null,null,null,"-",null,null,null,null,"-"]
[null,null,null,"07 03 10* "," other filter cakes and spent absorbents","Tonnes","-",null,null,null,null,"-",null,null,null,null,"-"]
[null,null,null,"07 03 11* "," sludges from on-site effluent treatment containing dangerous substances","Tonnes","-",null,null,null,null,"-",null,null,null,null,"-"]
[null,null,null,"07 03 12 "," sludges from on-site effluent treatment other than those mentioned in 07 03 11","Tonnes","-",null,null,null,null,"-",null,null,null,null,"-"]
[null,null,null,"07 03 99 "," wastes not otherwise specified","Tonnes","-",null,null,null,null,"-",null,null,null,null,"-"]
[null,null,null,"07 04 01* "," aqueous washing liquids and mother liquors","Tonnes","-",null,null,null,null,"-",null,null,null,null,"-"]
[null,null,null,"07 04 03* "," organic halogenated solvents, washing liquids and mother liquors","Tonnes","-",null,null,null,null,"-",null,null,null,null,"-"]
[null,null,null,"07 04 04* "," other organic solvents, washing liquids and mother liquors","Tonnes","-",null,null,null,null,"-",null,null,null,null,"-"]
[null,null,null,"07 04 07* "," halogenated still bottoms and reaction residues","Tonnes","-",null,null,null,null,"-",null,null,null,null,"-"]
[null,null,null,"07 04 08* "," other still bottoms and reaction residues","Tonnes","-",null,null,null,null,"-",null,null,null,null,"-"]
[null,null,null,"07 04 09* "," halogenated filter cakes and spent absorbents","Tonnes","-",null,null,null,null,"-",null,null,null,null,"-"]
[null,null,null,"07 04 10* "," other filter cakes and spent absorbents","Tonnes","-",null,null,null,null,"-",null,null,null,null,"-"]
[null,null,null,"07 04 11* "," sludges from on-site effluent treatment containing dangerous substances","Tonnes","-",null,null,null,null,"-",null,null,null,null,"-"]
[null,null,null,"07 04 12 "," sludges from on-site effluent treatment other than those mentioned in 07 04 11","Tonnes","-",null,null,null,null,"-",null,null,null,null,"-"]
[null,null,null,"07 04 13* "," solid wastes containing dangerous substances","Tonnes","-",null,null,null,null,"-",null,null,null,null,"-"]
[null,null,null,"07 04 99 "," wastes not otherwise specified","Tonnes","-",null,null,null,null,"-",null,null,null,null,"-"]
[null,null,null,"07 05 01* "," aqueous washing liquids and mother liquors","Tonnes","-",null,null,null,null,"-",null,null,null,null,"-"]
[null,null,null,"07 05 03* "," organic halogenated solvents, washing liquids and mother liquors","Tonnes","-",null,null,null,null,"-",null,null,null,null,"-"]
[null,null,null,"07 05 04* "," other organic solvents, washing liquids and mother liquors","Tonnes","-",null,null,null,null,"-",null,null,null,null,"-"]
[null,null,null,"07 05 07* "," halogenated still bottoms and reaction residues","Tonnes","-",null,null,null,null,"-",null,null,null,null,"-"]
[null,null,null,"07 05 08* "," other still bottoms and reaction residues","Tonnes","-",null,null,null,null,"-",null,null,null,null,"-"]
[null,null,null,"07 05 09* "," halogenated filter cakes and spent absorbents","Tonnes","-",null,null,null,null,"-",null,null,null,null,"-"]
[null,null,null,"07 05 10* "," other filter cakes and spent absorbents","Tonnes","-",null,null,null,null,"-",null,null,null,null,"-"]
[null,null,null,"07 05 11* "," sludges from on-site effluent treatment containing dangerous substances","Tonnes","-",null,null,null,null,"-",null,null,null,null,"-"]
[null,null,null,"07 05 12 "," sludges from on-site effluent treatment other than those mentioned in 07 05 11","Tonnes","-",null,null,null,null,"-",null,null,null,null,"-"]
[null,null,null,"07 05 13* "," solid wastes containing dangerous substances","Tonnes","-",null,null,null,null,"-",null,null,null,null,"-"]
[null,null,null,"07 05 14 "," solid wastes other than those mentioned in 07 05 13","Tonnes","-",null,null,null,null,"-",null,null,null,null,"-"]
[null,null,null,"07 05 99 "," wastes not otherwise specified","Tonnes","-",null,null,null,null,"-",null,null,null,null,"-"]
[null,null,null,"07 06 01* "," aqueous washing liquids and mother liquors","Tonnes","-",null,null,null,null,"-",null,null,null,null,"-"]
[null,null,null,"07 06 03* "," organic halogenated solvents, washing liquids and mother liquors","Tonnes","-",null,null,null,null,"-",null,null,null,null,"-"]
[null,null,null,"07 06 04* "," other organic solvents, washing liquids and mother liquors","Tonnes","-",null,null,null,null,"-",null,null,null,null,"-"]
[null,null,null,"07 06 07* "," halogenated still bottoms and reaction residues","Tonnes","-",null,null,null,null,"-",null,null,null,null,"-"]
[null,null,null,"07 06 08* "," other still bottoms and reaction residues","Tonnes","-",null,null,null,null,"-",null,null,null,null,"-"]
[null,null,null,"07 06 09* "," halogenated filter cakes and spent absorbents","Tonnes","-",null,null,null,null,"-",null,null,null,null,"-"]
[null,null,null,"07 06 10* "," other filter cakes and spent absorbents","Tonnes","-",null,null,null,null,"-",null,null,null,null,"-"]
[null,null,null,"07 06 11* "," sludges from on-site effluent treatment containing dangerous substances","Tonnes","-",null,null,null,null,"-",null,null,null,null,"-"]
[null,null,null,"07 06 12 "," sludges from on-site effluent treatment other than those mentioned in 07 06 11","Tonnes","-",null,null,null,null,"-",null,null,null,null,"-"]
[null,null,null,"07 06 99 "," wastes not otherwise specified","Tonnes","-",null,null,null,null,"-",null,null,null,null,"-"]
[null,null,null,"07 07 01* "," aqueous washing liquids and mother liquors","Tonnes","-",null,null,null,null,"-",null,null,null,null,"-"]
[null,null,null,"07 07 03* "," organic halogenated solvents, washing liquids and mother liquors","Tonnes","-",null,null,null,null,"-",null,null,null,null,"-"]
[null,null,null,"07 07 04* "," other organic solvents, washing liquids and mother liquors","Tonnes","-",null,null,null,null,"-",null,null,null,null,"-"]
[null,null,null,"07 07 07* "," halogenated still bottoms and reaction residues","Tonnes","-",null,null,null,null,"-",null,null,null,null,"-"]
[null,null,null,"07 07 08* "," other still bottoms and reaction residues","Tonnes","-",null,null,null,null,"-",null,null,null,null,"-"]
[null,null,null,"07 07 09* "," halogenated filter cakes and spent absorbents","Tonnes","-",null,null,null,null,"-",null,null,null,null,"-"]
[null,null,null,"07 07 10* "," other filter cakes and spent absorbents","Tonnes","-",null,null,null,null,"-",null,null,null,null,"-"]
[null,null,null,"07 07 11* "," sludges from on-site effluent treatment containing dangerous substances","Tonnes","-",null,null,null,null,"-",null,null,null,null,"-"]
[null,null,null,"07 07 12 "," sludges from on-site effluent treatment other than those mentioned in 07 07 11","Tonnes","-",null,null,null,null,"-",null,null,null,null,"-"]
[null,null,null,"07 07 99 "," wastes not otherwise specified","Tonnes","-",null,null,null,null,"-",null,null,null,null,"-"]
[null,null,null,"08","WASTES FROM THE MANUFACTURE, FORMULATION, SUPPLY AND USE (MFSU) OF COATINGS (PAINTS, VARNISHES AND VITREOUS ENAMELS), ADHESIVES, SEALANTS AND PRINTING INKS","Tonnes",{"$f":"IF(SUM(H287:K287)=0,\"-\",SUM(H287:K287))","v":"-"},{"$f":"IF(SUM(H288:H325)=0,\"-\",SUM(H288:H325))","v":"-"},{"$f":"IF(SUM(I288:I325)=0,\"-\",SUM(I288:I325))","v":"-"},"-","-",{"$f":"IF(SUM(M287:P287)=0,\"-\",SUM(M287:P287))","v":"-"},{"$f":"IF(SUM(M288:M325)=0,\"-\",SUM(M288:M325))","v":"-"},{"$f":"IF(SUM(N288:N325)=0,\"-\",SUM(N288:N325))","v":"-"},"-","-",{"$f":"IF(SUM(R287:U287)=0,\"-\",SUM(R287:U287))","v":"-"},{"$f":"IF(SUM(R288:R325)=0,\"-\",SUM(R288:R325))","v":"-"},{"$f":"IF(SUM(S288:S325)=0,\"-\",SUM(S288:S325))","v":"-"},"-","-"]
[null,null,null,"08 01 11* "," waste paint and varnish containing organic solvents or other dangerous substances","Tonnes","-",null,null,null,null,"-",null,null,null,null,"-"]
[null,null,null,"08 01 12 "," waste paint and varnish other than those mentioned in 08 01 11","Tonnes","-",null,null,null,null,"-",null,null,null,null,"-"]
[null,null,null,"08 01 13* "," sludges from paint or varnish containing organic solvents or other dangerous substances","Tonnes","-",null,null,null,null,"-",null,null,null,null,"-"]
[null,null,null,"08 01 14 "," sludges from paint or varnish other than those mentioned in 08 01 13","Tonnes","-",null,null,null,null,"-",null,null,null,null,"-"]
[null,null,null,"08 01 15* "," aqueous sludges containing paint or varnish containing organic solvents or other dangerous substances","Tonnes","-",null,null,null,null,"-",null,null,null,null,"-"]
[null,null,null,"08 01 16 "," aqueous sludges containing paint or varnish other than those mentioned in 08 01 15","Tonnes","-",null,null,null,null,"-",null,null,null,null,"-"]
[null,null,null,"08 01 17* "," wastes from paint or varnish removal containing organic solvents or other dangerous substances","Tonnes","-",null,null,null,null,"-",null,null,null,null,"-"]
[null,null,null,"08 01 18 "," wastes from paint or varnish removal other than those mentioned in 08 01 17","Tonnes","-",null,null,null,null,"-",null,null,null,null,"-"]
[null,null,null,"08 01 19* "," aqueous suspensions containing paint or varnish containing organic solvents or other dangerous substances","Tonnes","-",null,null,null,null,"-",null,null,null,null,"-"]
[null,null,null,"08 01 20 "," aqueous suspensions containing paint or varnish other than those mentioned in 08 01 19","Tonnes","-",null,null,null,null,"-",null,null,null,null,"-"]
[null,null,null,"08 01 21* "," waste paint or varnish remover","Tonnes","-",null,null,null,null,"-",null,null,null,null,"-"]
[null,null,null,"08 01 99 "," wastes not otherwise specified","Tonnes","-",null,null,null,null,"-",null,null,null,null,"-"]
[null,null,null,"08 02 01 "," waste coating powders","Tonnes","-",null,null,null,null,"-",null,null,null,null,"-"]
[null,null,null,"08 02 02 "," aqueous sludges containing ceramic materials","Tonnes","-",null,null,null,null,"-",null,null,null,null,"-"]
[null,null,null,"08 02 03 "," aqueous suspensions containing ceramic materials","Tonnes","-",null,null,null,null,"-",null,null,null,null,"-"]
[null,null,null,"08 02 99 "," wastes not otherwise specified","Tonnes","-",null,null,null,null,"-",null,null,null,null,"-"]
[null,null,null,"08 03 07 "," aqueous sludges containing ink","Tonnes","-",null,null,null,null,"-",null,null,null,null,"-"]
[null,null,null,"08 03 08 "," aqueous liquid waste containing ink","Tonnes","-",null,null,null,null,"-",null,null,null,null,"-"]
[null,null,null,"08 03 12* "," waste ink containing dangerous substances","Tonnes","-",null,null,null,null,"-",null,null,null,null,"-"]
[null,null,null,"08 03 13 "," waste ink other than those mentioned in 08 03 12","Tonnes","-",null,null,null,null,"-",null,null,null,null,"-"]
[null,null,null,"08 03 14* "," ink sludges containing dangerous substances","Tonnes","-",null,null,null,null,"-",null,null,null,null,"-"]
[null,null,null,"08 03 15 "," ink sludges other than those mentioned in 08 03 14","Tonnes","-",null,null,null,null,"-",null,null,null,null,"-"]
[null,null,null,"08 03 16* "," waste etching solutions","Tonnes","-",null,null,null,null,"-",null,null,null,null,"-"]
[null,null,null,"08 03 17* "," waste printing toner containing dangerous substances","Tonnes","-",null,null,null,null,"-",null,null,null,null,"-"]
[null,null,null,"08 03 18 "," waste printing toner other than those mentioned in 08 03 17","Tonnes","-",null,null,null,null,"-",null,null,null,null,"-"]
[null,null,null,"08 03 19* "," disperse oil","Tonnes","-",null,null,null,null,"-",null,null,null,null,"-"]
[null,null,null,"08 03 99 "," wastes not otherwise specified","Tonnes","-",null,null,null,null,"-",null,null,null,null,"-"]
[null,null,null,"08 04 09* "," waste adhesives and sealants containing organic solvents or other dangerous substances","Tonnes","-",null,null,null,null,"-",null,null,null,null,"-"]
[null,null,null,"08 04 10 "," waste adhesives and sealants other than those mentioned in 08 04 09","Tonnes","-",null,null,null,null,"-",null,null,null,null,"-"]
[null,null,null,"08 04 11* "," adhesive and sealant sludges containing organic solvents or other dangerous substances","Tonnes","-",null,null,null,null,"-",null,null,null,null,"-"]
[null,null,null,"08 04 12 "," adhesive and sealant sludges other than those mentioned in 08 04 11","Tonnes","-",null,null,null,null,"-",null,null,null,null,"-"]
[null,null,null,"08 04 13* "," aqueous sludges containing adhesives or sealants containing organic solvents or other dangerous substances","Tonnes","-",null,null,null,null,"-",null,null,null,null,"-"]
[null,null,null,"08 04 14 "," aqueous sludges containing adhesives or sealants other than those mentioned in 08 04 13","Tonnes","-",null,null,null,null,"-",null,null,null,null,"-"]
[null,null,null,"08 04 15* "," aqueous liquid waste containing adhesives or sealants containing organic solvents or other dangerous substances","Tonnes","-",null,null,null,null,"-",null,null,null,null,"-"]
[null,null,null,"08 04 16 "," aqueous liquid waste containing adhesives or sealants other than those mentioned in 08 04 15","Tonnes","-",null,null,null,null,"-",null,null,null,null,"-"]
[null,null,null,"08 04 17* "," rosin oil","Tonnes","-",null,null,null,null,"-",null,null,null,null,"-"]
[null,null,null,"08 04 99 "," wastes not otherwise specified","Tonnes","-",null,null,null,null,"-",null,null,null,null,"-"]
[null,null,null,"08 05 01* "," waste isocyanates","Tonnes","-",null,null,null,null,"-",null,null,null,null,"-"]
[null,null,null,"09","WASTES FROM THE PHOTOGRAPHIC INDUSTRY","Tonnes","-",{"$f":"IF(SUM(H327:H339)=0,\"-\",SUM(H327:H339))","v":"-"},{"$f":"IF(SUM(I327:I339)=0,\"-\",SUM(I327:I339))","v":"-"},"-","-","-",{"$f":"IF(SUM(M327:M339)=0,\"-\",SUM(M327:M339))","v":"-"},{"$f":"IF(SUM(N327:N339)=0,\"-\",SUM(N327:N339))","v":"-"},"-","-","-",{"$f":"IF(SUM(R327:R339)=0,\"-\",SUM(R327:R339))","v":"-"},{"$f":"IF(SUM(S327:S339)=0,\"-\",SUM(S327:S339))","v":"-"},"-","-"]
[null,null,null,"09 01 01* "," water-based developer and activator solutions","Tonnes","-",null,null,null,null,"-",null,null,null,null,"-"]
[null,null,null,"09 01 02* "," water-based offset plate developer solutions","Tonnes","-",null,null,null,null,"-",null,null,null,null,"-"]
[null,null,null,"09 01 03* "," solvent-based developer solutions","Tonnes","-",null,null,null,null,"-",null,null,null,null,"-"]
[null,null,null,"09 01 04* "," fixer solutions","Tonnes","-",null,null,null,null,"-",null,null,null,null,"-"]
[null,null,null,"09 01 05* "," bleach solutions and bleach fixer solutions","Tonnes","-",null,null,null,null,"-",null,null,null,null,"-"]
[null,null,null,"09 01 06* "," wastes containing silver from on-site treatment of photographic wastes","Tonnes","-",null,null,null,null,"-",null,null,null,null,"-"]
[null,null,null,"09 01 07 "," photographic film and paper containing silver or silver compounds","Tonnes","-",null,null,null,null,"-",null,null,null,null,"-"]
[null,null,null,"09 01 08 "," photographic film and paper free of silver or silver compounds","Tonnes","-",null,null,null,null,"-",null,null,null,null,"-"]
[null,null,null,"09 01 10 "," single-use cameras without batteries","Tonnes","-",null,null,null,null,"-",null,null,null,null,"-"]
[null,null,null,"09 01 11* "," single-use cameras containing batteries included in 16 06 01, 16 06 02 or 16 06 03","Tonnes","-",null,null,null,null,"-",null,null,null,null,"-"]
[null,null,null,"09 01 12 "," single-use cameras containing batteries other than those mentioned in 09 01 11","Tonnes","-",null,null,null,null,"-",null,null,null,null,"-"]
[null,null,null,"09 01 13* "," aqueous liquid waste from on-site reclamation of silver other than those mentioned in 09 01 06","Tonnes","-",null,null,null,null,"-",null,null,null,null,"-"]
[null,null,null,"09 01 99 "," wastes not otherwise specified","Tonnes","-",null,null,null,null,"-",null,null,null,null,"-"]
[null,null,null,"10","WASTES FROM THERMAL PROCESSES","Tonnes","-",{"$f":"IF(SUM(H341:H513)=0,\"-\",SUM(H341:H513))","v":"-"},{"$f":"IF(SUM(I341:I513)=0,\"-\",SUM(I341:I513))","v":"-"},"-","-","-",{"$f":"IF(SUM(M341:M513)=0,\"-\",SUM(M341:M513))","v":"-"},{"$f":"IF(SUM(N341:N513)=0,\"-\",SUM(N341:N513))","v":"-"},"-","-","-",{"$f":"IF(SUM(R341:R513)=0,\"-\",SUM(R341:R513))","v":"-"},{"$f":"IF(SUM(S341:S513)=0,\"-\",SUM(S341:S513))","v":"-"},"-",{"$f":"IF(SUM(U341:U513)=0,\"-\",SUM(U341:U513))","v":"-"}]
[null,null,null,"10 01 01 "," bottom ash, slag and boiler dust (excluding boiler dust mentioned in 10 01 04)","Tonnes","-",null,null,null,null,"-",null,null,null,null,"-"]
[null,null,null,"10 01 02 "," coal fly ash","Tonnes","-",null,null,null,null,"-",null,null,null,null,"-"]
[null,null,null,"10 01 03 "," fly ash from peat and untreated wood","Tonnes","-",null,null,null,null,"-",null,null,null,null,"-"]
[null,null,null,"10 01 04* "," oil fly ash and boiler dust","Tonnes","-",null,null,null,null,"-",null,null,null,null,"-"]
[null,null,null,"10 01 05  ","Calcium-based reaction wastes from flue-gas desulphurisation in solid form","Tonnes","-",null,null,null,null,"-",null,null,null,null,"-"]
[null,null,null,"10 01 07 "," calcium-based reaction wastes from flue-gas desulphurisation in sludge form","Tonnes","-",null,null,null,null,"-",null,null,null,null,"-"]
[null,null,null,"10 01 09* "," sulphuric acid","Tonnes","-",null,null,null,null,"-",null,null,null,null,"-"]
[null,null,null,"10 01 13* "," fly ash from emulsified hydrocarbons used as fuel","Tonnes","-",null,null,null,null,"-",null,null,null,null,"-"]
[null,null,null,"10 01 14* "," bottom ash, slag and boiler dust from co-incineration containing dangerous substances","Tonnes","-",null,null,null,null,"-",null,null,null,null,"-"]
[null,null,null,"10 01 15  ","Bottom ash, slag and boiler dust from co-incineration other than those mentioned in 10 01 14","Tonnes","-",null,null,null,null,"-",null,null,null,null,"-"]
[null,null,null,"10 01 16* "," fly ash from co-incineration containing dangerous substances","Tonnes",{"$f":"IF(SUM(H351:K351)=0,\"-\",SUM(H351:K351))","v":"-"},null,null,null,null,{"$f":"IF(SUM(M351:P351)=0,\"-\",SUM(M351:P351))","v":"-"},null,null,null,null,{"$f":"IF(SUM(R351:U351)=0,\"-\",SUM(R351:U351))","v":"-"}]
[null,null,null,"10 01 17 "," fly ash from co-incineration other than those mentioned in 10 01 16","Tonnes","-",null,null,null,null,"-",null,null,null,null,"-"]
[null,null,null,"10 01 18* "," wastes from gas cleaning containing dangerous substances","Tonnes","-",null,null,null,null,"-",null,null,null,null,"-"]
[null,null,null,"10 01 19 "," wastes from gas cleaning other than those mentioned in 10 01 05, 10 01 07 and 10 01 18","Tonnes","-",null,null,null,null,"-",null,null,null,null,"-"]
[null,null,null,"10 01 20* "," sludges from on-site effluent treatment containing dangerous substances","Tonnes","-",null,null,null,null,"-",null,null,null,null,"-"]
[null,null,null,"10 01 21 "," sludges from on-site effluent treatment other than those mentioned in 10 01 20","Tonnes","-",null,null,null,null,"-",null,null,null,null,"-"]
[null,null,null,"10 01 22* "," aqueous sludges from boiler cleansing containing dangerous substances","Tonnes","-",null,null,null,null,"-",null,null,null,null,"-"]
[null,null,null,"10 01 23 "," aqueous sludges from boiler cleansing other than those mentioned in 10 01 22","Tonnes","-",null,null,null,null,"-",null,null,null,null,"-"]
[null,null,null,"10 01 24 "," sands from fluidised beds","Tonnes","-",null,null,null,null,"-",null,null,null,null,"-"]
[null,null,null,"10 01 25 "," wastes from fuel storage and preparation of coal-fired power plants","Tonnes","-",null,null,null,null,"-",null,null,null,null,"-"]
[null,null,null,"10 01 26 "," wastes from cooling-water treatment","Tonnes","-",null,null,null,null,"-",null,null,null,null,"-"]
[null,null,null,"10 01 99 "," wastes not otherwise specified","Tonnes","-",null,null,null,null,"-",null,null,null,null,"-"]
[null,null,null,"10 02 01 "," wastes from the processing of slag","Tonnes","-",null,null,null,null,"-",null,null,null,null,"-"]
[null,null,null,"10 02 02 "," unprocessed slag","Tonnes","-",null,null,null,null,"-",null,null,null,null,"-"]
[null,null,null,"10 02 07* "," solid wastes from gas treatment containing dangerous substances","Tonnes","-",null,null,null,null,"-",null,null,null,null,"-"]
[null,null,null,"10 02 08 "," solid wastes from gas treatment other than those mentioned in 10 02 07","Tonnes","-",null,null,null,null,"-",null,null,null,null,"-"]
[null,null,null,"10 02 10 "," mill scales","Tonnes","-",null,null,null,null,"-",null,null,null,null,"-"]
[null,null,null,"10 02 11* "," wastes from cooling-water treatment containing oil","Tonnes","-",null,null,null,null,"-",null,null,null,null,"-"]
[null,null,null,"10 02 12 "," wastes from cooling-water treatment other than those mentioned in 10 02 11","Tonnes","-",null,null,null,null,"-",null,null,null,null,"-"]
[null,null,null,"10 02 13* "," sludges and filter cakes from gas treatment containing dangerous substances","Tonnes","-",null,null,null,null,"-",null,null,null,null,"-"]
[null,null,null,"10 02 14 "," sludges and filter cakes from gas treatment other than those mentioned in 10 02 13","Tonnes","-",null,null,null,null,"-",null,null,null,null,"-"]
[null,null,null,"10 02 15 "," other sludges and filter cakes","Tonnes","-",null,null,null,null,"-",null,null,null,null,"-"]
[null,null,null,"10 02 99 "," wastes not otherwise specified","Tonnes","-",null,null,null,null,"-",null,null,null,null,"-"]
[null,null,null,"10 03 02 "," anode scraps","Tonnes","-",null,null,null,null,"-",null,null,null,null,"-"]
[null,null,null,"10 03 04* "," primary production slags","Tonnes","-",null,null,null,null,"-",null,null,null,null,"-"]
[null,null,null,"10 03 05 "," waste alumina","Tonnes","-",null,null,null,null,"-",null,null,null,null,"-"]
[null,null,null,"10 03 08* "," salt slags from secondary production","Tonnes","-",null,null,null,null,"-",null,null,null,null,"-"]
[null,null,null,"10 03 09* "," black drosses from secondary production","Tonnes","-",null,null,null,null,"-",null,null,null,null,"-"]
[null,null,null,"10 03 15* "," skimmings that are flammable or emit, upon contact with water, flammable gases in dangerous quantities","Tonnes","-",null,null,null,null,"-",null,null,null,null,"-"]
[null,null,null,"10 03 16 "," skimmings other than those mentioned in 10 03 15","Tonnes","-",null,null,null,null,"-",null,null,null,null,"-"]
[null,null,null,"10 03 17* "," tar-containing wastes from anode manufacture","Tonnes","-",null,null,null,null,"-",null,null,null,null,"-"]
[null,null,null,"10 03 18 "," carbon-containing wastes from anode manufacture other than those mentioned in 10 03 17","Tonnes","-",null,null,null,null,"-",null,null,null,null,"-"]
[null,null,null,"10 03 19* "," flue-gas dust containing dangerous substances","Tonnes","-",null,null,null,null,"-",null,null,null,null,"-"]
[null,null,null,"10 03 20 "," flue-gas dust other than those mentioned in 10 03 19","Tonnes","-",null,null,null,null,"-",null,null,null,null,"-"]
[null,null,null,"10 03 21* "," other particulates and dust (including ball-mill dust) containing dangerous substances","Tonnes","-",null,null,null,null,"-",null,null,null,null,"-"]
[null,null,null,"10 03 22 "," other particulates and dust (including ball-mill dust) other than those mentioned in 10 03 21","Tonnes","-",null,null,null,null,"-",null,null,null,null,"-"]
[null,null,null,"10 03 23* "," solid wastes from gas treatment containing dangerous substances","Tonnes","-",null,null,null,null,"-",null,null,null,null,"-"]
[null,null,null,"10 03 24 "," solid wastes from gas treatment other than those mentioned in 10 03 23","Tonnes","-",null,null,null,null,"-",null,null,null,null,"-"]
[null,null,null,"10 03 25* "," sludges and filter cakes from gas treatment containing dangerous substances","Tonnes","-",null,null,null,null,"-",null,null,null,null,"-"]
[null,null,null,"10 03 26 "," sludges and filter cakes from gas treatment other than those mentioned in 10 03 25","Tonnes","-",null,null,null,null,"-",null,null,null,null,"-"]
[null,null,null,"10 03 27* "," wastes from cooling-water treatment containing oil","Tonnes","-",null,null,null,null,"-",null,null,null,null,"-"]
[null,null,null,"10 03 28 "," wastes from cooling-water treatment other than those mentioned in 10 03 27","Tonnes","-",null,null,null,null,"-",null,null,null,null,"-"]
[null,null,null,"10 03 29* "," wastes from treatment of salt slags and black drosses containing dangerous substances","Tonnes","-",null,null,null,null,"-",null,null,null,null,"-"]
[null,null,null,"10 03 30 "," wastes from treatment of salt slags and black drosses other than those mentioned in 10 03 29","Tonnes","-",null,null,null,null,"-",null,null,null,null,"-"]
[null,null,null,"10 03 99 "," wastes not otherwise specified","Tonnes","-",null,null,null,null,"-",null,null,null,null,"-"]
[null,null,null,"10 04 01* "," slags from primary and secondary production","Tonnes","-",null,null,null,null,"-",null,null,null,null,"-"]
[null,null,null,"10 04 02* "," dross and skimmings from primary and secondary production","Tonnes","-",null,null,null,null,"-",null,null,null,null,"-"]
[null,null,null,"10 04 03* "," calcium arsenate","Tonnes","-",null,null,null,null,"-",null,null,null,null,"-"]
[null,null,null,"10 04 04* "," flue-gas dust","Tonnes","-",null,null,null,null,"-",null,null,null,null,"-"]
[null,null,null,"10 04 05* "," other particulates and dust","Tonnes","-",null,null,null,null,"-",null,null,null,null,"-"]
[null,null,null,"10 04 06* "," solid wastes from gas treatment","Tonnes","-",null,null,null,null,"-",null,null,null,null,"-"]
[null,null,null,"10 04 07* "," sludges and filter cakes from gas treatment","Tonnes","-",null,null,null,null,"-",null,null,null,null,"-"]
[null,null,null,"10 04 09* "," wastes from cooling-water treatment containing oil","Tonnes","-",null,null,null,null,"-",null,null,null,null,"-"]
[null,null,null,"10 04 10 "," wastes from cooling-water treatment other than those mentioned in 10 04 09","Tonnes","-",null,null,null,null,"-",null,null,null,null,"-"]
[null,null,null,"10 04 99 "," wastes not otherwise specified","Tonnes","-",null,null,null,null,"-",null,null,null,null,"-"]
[null,null,null,"10 05 01 "," slags from primary and secondary production","Tonnes","-",null,null,null,null,"-",null,null,null,null,"-"]
[null,null,null,"10 05 03* "," flue-gas dust","Tonnes","-",null,null,null,null,"-",null,null,null,null,"-"]
[null,null,null,"10 05 04 "," other particulates and dust","Tonnes","-",null,null,null,null,"-",null,null,null,null,"-"]
[null,null,null,"10 05 05* "," solid waste from gas treatment","Tonnes","-",null,null,null,null,"-",null,null,null,null,"-"]
[null,null,null,"10 05 06* "," sludges and filter cakes from gas treatment","Tonnes","-",null,null,null,null,"-",null,null,null,null,"-"]
[null,null,null,"10 05 08* "," wastes from cooling-water treatment containing oil","Tonnes","-",null,null,null,null,"-",null,null,null,null,"-"]
[null,null,null,"10 05 09 "," wastes from cooling-water treatment other than those mentioned in 10 05 08","Tonnes","-",null,null,null,null,"-",null,null,null,null,"-"]
[null,null,null,"10 05 10* "," dross and skimmings that are flammable or emit, upon contact with water, flammable gases in dangerous quantities","Tonnes","-",null,null,null,null,"-",null,null,null,null,"-"]
[null,null,null,"10 05 11 "," dross and skimmings other than those mentioned in 10 05 10","Tonnes","-",null,null,null,null,"-",null,null,null,null,"-"]
[null,null,null,"10 05 99 "," wastes not otherwise specified","Tonnes",{"$f":"IF(SUM(H415:K415)=0,\"-\",SUM(H415:K415))","v":"-"},null,null,null,null,{"$f":"IF(SUM(M415:P415)=0,\"-\",SUM(M415:P415))","v":"-"},null,null,null,null,{"$f":"IF(SUM(R415:U415)=0,\"-\",SUM(R415:U415))","v":"-"}]
[null,null,null,"10 06 01 "," slags from primary and secondary production","Tonnes","-",null,null,null,null,"-",null,null,null,null,"-"]
[null,null,null,"10 06 02 "," dross and skimmings from primary and secondary production","Tonnes","-",null,null,null,null,"-",null,null,null,null,"-"]
[null,null,null,"10 06 03* "," flue-gas dust","Tonnes","-",null,null,null,null,"-",null,null,null,null,"-"]
[null,null,null,"10 06 04 "," other particulates and dust","Tonnes","-",null,null,null,null,"-",null,null,null,null,"-"]
[null,null,null,"10 06 06* "," solid wastes from gas treatment","Tonnes","-",null,null,null,null,"-",null,null,null,null,"-"]
[null,null,null,"10 06 07* "," sludges and filter cakes from gas treatment","Tonnes","-",null,null,null,null,"-",null,null,null,null,"-"]
[null,null,null,"10 06 09* "," wastes from cooling-water treatment containing oil","Tonnes","-",null,null,null,null,"-",null,null,null,null,"-"]
[null,null,null,"10 06 10 "," wastes from cooling-water treatment other than those mentioned in 10 06 09","Tonnes","-",null,null,null,null,"-",null,null,null,null,"-"]
[null,null,null,"10 06 99 "," wastes not otherwise specified","Tonnes","-",null,null,null,null,"-",null,null,null,null,"-"]
[null,null,null,"10 07 01 "," slags from primary and secondary production","Tonnes","-",null,null,null,null,"-",null,null,null,null,"-"]
[null,null,null,"10 07 02 "," dross and skimmings from primary and secondary production","Tonnes","-",null,null,null,null,"-",null,null,null,null,"-"]
[null,null,null,"10 07 03 "," solid wastes from gas treatment","Tonnes","-",null,null,null,null,"-",null,null,null,null,"-"]
[null,null,null,"10 07 04 "," other particulates and dust","Tonnes","-",null,null,null,null,"-",null,null,null,null,"-"]
[null,null,null,"10 07 05 "," sludges and filter cakes from gas treatment","Tonnes","-",null,null,null,null,"-",null,null,null,null,"-"]
[null,null,null,"10 07 07* "," wastes from cooling-water treatment containing oil","Tonnes","-",null,null,null,null,"-",null,null,null,null,"-"]
[null,null,null,"10 07 08 "," wastes from cooling-water treatment other than those mentioned in 10 07 07","Tonnes","-",null,null,null,null,"-",null,null,null,null,"-"]
[null,null,null,"10 07 99 "," wastes not otherwise specified","Tonnes","-",null,null,null,null,"-",null,null,null,null,"-"]
[null,null,null,"10 08 04 "," particulates and dust","Tonnes","-",null,null,null,null,"-",null,null,null,null,"-"]
[null,null,null,"10 08 08* "," salt slag from primary and secondary production","Tonnes","-",null,null,null,null,"-",null,null,null,null,"-"]
[null,null,null,"10 08 09 "," other slags","Tonnes","-",null,null,null,null,"-",null,null,null,null,"-"]
[null,null,null,"10 08 10* "," dross and skimmings that are flammable or emit, upon contact with water, flammable gases in dangerous quantities","Tonnes","-",null,null,null,null,"-",null,null,null,null,"-"]
[null,null,null,"10 08 11 "," dross and skimmings other than those mentioned in 10 08 10","Tonnes","-",null,null,null,null,"-",null,null,null,null,"-"]
[null,null,null,"10 08 12* "," tar-containing wastes from anode manufacture","Tonnes","-",null,null,null,null,"-",null,null,null,null,"-"]
[null,null,null,"10 08 13 "," carbon-containing wastes from anode manufacture other than those mentioned in 10 08 12","Tonnes","-",null,null,null,null,"-",null,null,null,null,"-"]
[null,null,null,"10 08 14 "," anode scrap","Tonnes","-",null,null,null,null,"-",null,null,null,null,"-"]
[null,null,null,"10 08 15* "," flue-gas dust containing dangerous substances","Tonnes","-",null,null,null,null,"-",null,null,null,null,"-"]
[null,null,null,"10 08 16 "," flue-gas dust other than those mentioned in 10 08 15","Tonnes","-",null,null,null,null,"-",null,null,null,null,"-"]
[null,null,null,"10 08 17* "," sludges and filter cakes from flue-gas treatment containing dangerous substances","Tonnes","-",null,null,null,null,"-",null,null,null,null,"-"]
[null,null,null,"10 08 18 "," sludges and filter cakes from flue-gas treatment other than those mentioned in 10 08 17","Tonnes","-",null,null,null,null,"-",null,null,null,null,"-"]
[null,null,null,"10 08 19* "," wastes from cooling-water treatment containing oil","Tonnes","-",null,null,null,null,"-",null,null,null,null,"-"]
[null,null,null,"10 08 20 "," wastes from cooling-water treatment other than those mentioned in 10 08 19","Tonnes","-",null,null,null,null,"-",null,null,null,null,"-"]
[null,null,null,"10 08 99 "," wastes not otherwise specified","Tonnes","-",null,null,null,null,"-",null,null,null,null,"-"]
[null,null,null,"10 09 03 "," furnace slag","Tonnes","-",null,null,null,null,"-",null,null,null,null,"-"]
[null,null,null,"10 09 05* "," casting cores and moulds which have not undergone pouring containing dangerous substances","Tonnes","-",null,null,null,null,"-",null,null,null,null,"-"]
[null,null,null,"10 09 06 "," casting cores and moulds which have not undergone pouring other than those mentioned in 10 09 05","Tonnes","-",null,null,null,null,"-",null,null,null,null,"-"]
[null,null,null,"10 09 07* "," casting cores and moulds which have undergone pouring containing dangerous substances","Tonnes","-",null,null,null,null,"-",null,null,null,null,"-"]
[null,null,null,"10 09 08 "," casting cores and moulds which have undergone pouring other than those mentioned in 10 09 07","Tonnes","-",null,null,null,null,"-",null,null,null,null,"-"]
[null,null,null,"10 09 09* "," flue-gas dust containing dangerous substances","Tonnes","-",null,null,null,null,"-",null,null,null,null,"-"]
[null,null,null,"10 09 10 "," flue-gas dust other than those mentioned in 10 09 09","Tonnes","-",null,null,null,null,"-",null,null,null,null,"-"]
[null,null,null,"10 09 11* "," other particulates containing dangerous substances","Tonnes","-",null,null,null,null,"-",null,null,null,null,"-"]
[null,null,null,"10 09 12 "," other particulates other than those mentioned in 10 09 11","Tonnes","-",null,null,null,null,"-",null,null,null,null,"-"]
[null,null,null,"10 09 13* "," waste binders containing dangerous substances","Tonnes","-",null,null,null,null,"-",null,null,null,null,"-"]
[null,null,null,"10 09 14 "," waste binders other than those mentioned in 10 09 13","Tonnes","-",null,null,null,null,"-",null,null,null,null,"-"]
[null,null,null,"10 09 15* "," waste crack-indicating agent containing dangerous substances","Tonnes","-",null,null,null,null,"-",null,null,null,null,"-"]
[null,null,null,"10 09 16 "," waste crack-indicating agent other than those mentioned in 10 09 15","Tonnes","-",null,null,null,null,"-",null,null,null,null,"-"]
[null,null,null,"10 09 99 "," wastes not otherwise specified","Tonnes","-",null,null,null,null,"-",null,null,null,null,"-"]
[null,null,null,"10 10 03 "," furnace slag","Tonnes","-",null,null,null,null,"-",null,null,null,null,"-"]
[null,null,null,"10 10 05* "," casting cores and moulds which have not undergone pouring, containing dangerous substances","Tonnes","-",null,null,null,null,"-",null,null,null,null,"-"]
[null,null,null,"10 10 06 "," casting cores and moulds which have not undergone pouring, other than those mentioned in 10 10 05","Tonnes","-",null,null,null,null,"-",null,null,null,null,"-"]
[null,null,null,"10 10 07* "," casting cores and moulds which have undergone pouring, containing dangerous substances","Tonnes","-",null,null,null,null,"-",null,null,null,null,"-"]
[null,null,null,"10 10 08 "," casting cores and moulds which have undergone pouring, other than those mentioned in 10 10 07","Tonnes","-",null,null,null,null,"-",null,null,null,null,"-"]
[null,null,null,"10 10 09* "," flue-gas dust containing dangerous substances","Tonnes","-",null,null,null,null,"-",null,null,null,null,"-"]
[null,null,null,"10 10 10 "," flue-gas dust other than those mentioned in 10 10 09","Tonnes","-",null,null,null,null,"-",null,null,null,null,"-"]
[null,null,null,"10 10 11* "," other particulates containing dangerous substances","Tonnes","-",null,null,null,null,"-",null,null,null,null,"-"]
[null,null,null,"10 10 12 "," other particulates other than those mentioned in 10 10 11","Tonnes","-",null,null,null,null,"-",null,null,null,null,"-"]
[null,null,null,"10 10 13* "," waste binders containing dangerous substances","Tonnes","-",null,null,null,null,"-",null,null,null,null,"-"]
[null,null,null,"10 10 14 "," waste binders other than those mentioned in 10 10 13","Tonnes","-",null,null,null,null,"-",null,null,null,null,"-"]
[null,null,null,"10 10 15* "," waste crack-indicating agent containing dangerous substances","Tonnes","-",null,null,null,null,"-",null,null,null,null,"-"]
[null,null,null,"10 10 16 "," waste crack-indicating agent other than those mentioned in 10 10 15","Tonnes","-",null,null,null,null,"-",null,null,null,null,"-"]
[null,null,null,"10 10 99 "," wastes not otherwise specified","Tonnes","-",null,null,null,null,"-",null,null,null,null,"-"]
[null,null,null,"10 11 03 "," waste glass-based fibrous materials","Tonnes","-",null,null,null,null,"-",null,null,null,null,"-"]
[null,null,null,"10 11 05 "," particulates and dust","Tonnes","-",null,null,null,null,"-",null,null,null,null,"-"]
[null,null,null,"10 11 09* "," waste preparation mixture before thermal processing, containing dangerous substances","Tonnes","-",null,null,null,null,"-",null,null,null,null,"-"]
[null,null,null,"10 11 10 "," waste preparation mixture before thermal processing, other than those mentioned in 10 11 09","Tonnes",{"$f":"IF(SUM(H479:K479)=0,\"-\",SUM(H479:K479))","v":"-"},null,null,null,null,{"$f":"IF(SUM(M479:P479)=0,\"-\",SUM(M479:P479))","v":"-"},null,null,null,null,{"$f":"IF(SUM(R479:U479)=0,\"-\",SUM(R479:U479))","v":"-"}]
[null,null,null,"10 11 11* "," waste glass in small particles and glass powder containing heavy metals (for example from cathode ray tubes)","Tonnes","-",null,null,null,null,"-",null,null,null,null,"-"]
[null,null,null,"10 11 12 "," waste glass other than those mentioned in 10 11 11","Tonnes","-",null,null,null,null,"-",null,null,null,null,"-"]
[null,null,null,"10 11 13* "," glass-polishing and -grinding sludge containing dangerous substances","Tonnes","-",null,null,null,null,"-",null,null,null,null,"-"]
[null,null,null,"10 11 14 "," glass-polishing and -grinding sludge other than those mentioned in 10 11 13","Tonnes","-",null,null,null,null,"-",null,null,null,null,"-"]
[null,null,null,"10 11 15* "," solid wastes from flue-gas treatment containing dangerous substances","Tonnes","-",null,null,null,null,"-",null,null,null,null,"-"]
[null,null,null,"10 11 16 "," solid wastes from flue-gas treatment other than those mentioned in 10 11 15","Tonnes","-",null,null,null,null,"-",null,null,null,null,"-"]
[null,null,null,"10 11 17* "," sludges and filter cakes from flue-gas treatment containing dangerous substances","Tonnes","-",null,null,null,null,"-",null,null,null,null,"-"]
[null,null,null,"10 11 18 "," sludges and filter cakes from flue-gas treatment other than those mentioned in 10 11 17","Tonnes","-",null,null,null,null,"-",null,null,null,null,"-"]
[null,null,null,"10 11 19* "," solid wastes from on-site effluent treatment containing dangerous substances","Tonnes","-",null,null,null,null,"-",null,null,null,null,"-"]
[null,null,null,"10 11 20 "," solid wastes from on-site effluent treatment other than those mentioned in 10 11 19","Tonnes","-",null,null,null,null,"-",null,null,null,null,"-"]
[null,null,null,"10 11 99 "," wastes not otherwise specified","Tonnes","-",null,null,null,null,"-",null,null,null,null,"-"]
[null,null,null,"10 12 01 "," waste preparation mixture before thermal processing","Tonnes","-",null,null,null,null,"-",null,null,null,null,"-"]
[null,null,null,"10 12 03 "," particulates and dust","Tonnes","-",null,null,null,null,"-",null,null,null,null,"-"]
[null,null,null,"10 12 05 "," sludges and filter cakes from gas treatment","Tonnes","-",null,null,null,null,"-",null,null,null,null,"-"]
[null,null,null,"10 12 06 "," discarded moulds","Tonnes","-",null,null,null,null,"-",null,null,null,null,"-"]
[null,null,null,"10 12 08 "," waste ceramics, bricks, tiles and construction products (after thermal processing)","Tonnes","-",null,null,null,null,"-",null,null,null,null,"-"]
[null,null,null,"10 12 09* "," solid wastes from gas treatment containing dangerous substances","Tonnes","-",null,null,null,null,"-",null,null,null,null,"-"]
[null,null,null,"10 12 10 "," solid wastes from gas treatment other than those mentioned in 10 12 09","Tonnes","-",null,null,null,null,"-",null,null,null,null,"-"]
[null,null,null,"10 12 11* "," wastes from glazing containing heavy metals","Tonnes","-",null,null,null,null,"-",null,null,null,null,"-"]
[null,null,null,"10 12 12 "," wastes from glazing other than those mentioned in 10 12 11","Tonnes","-",null,null,null,null,"-",null,null,null,null,"-"]
[null,null,null,"10 12 13 "," sludge from on-site effluent treatment","Tonnes","-",null,null,null,null,"-",null,null,null,null,"-"]
[null,null,null,"10 12 99 "," wastes not otherwise specified","Tonnes","-",null,null,null,null,"-",null,null,null,null,"-"]
[null,null,null,"10 13 01 "," waste preparation mixture before thermal processing","Tonnes","-",null,null,null,null,"-",null,null,null,null,"-"]
[null,null,null,"10 13 04 "," wastes from calcination and hydration of lime","Tonnes","-",null,null,null,null,"-",null,null,null,null,"-"]
[null,null,null,"10 13 06 "," particulates and dust (except 10 13 12 and 10 13 13)","Tonnes","-",null,null,null,null,"-",null,null,null,null,"-"]
[null,null,null,"10 13 07 "," sludges and filter cakes from gas treatment","Tonnes","-",null,null,null,null,"-",null,null,null,null,"-"]
[null,null,null,"10 13 09* "," wastes from asbestos-cement manufacture containing asbestos","Tonnes","-",null,null,null,null,"-",null,null,null,null,"-"]
[null,null,null,"10 13 10 "," wastes from asbestos-cement manufacture other than those mentioned in 10 13 09","Tonnes","-",null,null,null,null,"-",null,null,null,null,"-"]
[null,null,null,"10 13 11 "," wastes from cement-based composite materials other than those mentioned in 10 13 09 and 10 13 10","Tonnes","-",null,null,null,null,"-",null,null,null,null,"-"]
[null,null,null,"10 13 12* "," solid wastes from gas treatment containing dangerous substances","Tonnes","-",null,null,null,null,"-",null,null,null,null,"-"]
[null,null,null,"10 13 13 "," solid wastes from gas treatment other than those mentioned in 10 13 12","Tonnes","-",null,null,null,null,"-",null,null,null,null,"-"]
[null,null,null,"10 13 14 "," waste concrete and concrete sludge","Tonnes","-",null,null,null,null,"-",null,null,null,null,"-"]
[null,null,null,"10 13 99 "," wastes not otherwise specified","Tonnes","-",null,null,null,null,"-",null,null,null,null,"-"]
[null,null,null,"10 14 01* "," waste from gas cleaning containing mercury","Tonnes","-",null,null,null,null,"-",null,null,null,null,"-"]
[null,null,null,11,"WASTES FROM CHEMICAL SURFACE TREATMENT AND COATING OF METALS AND OTHER MATERIALS; NON-FERROUS HYDRO-METALLURGY","Tonnes","-",{"$f":"IF(SUM(H515:H541)=0,\"-\",SUM(H515:H541))","v":"-"},{"$f":"IF(SUM(I515:I541)=0,\"-\",SUM(I515:I541))","v":"-"},"-","-","-",{"$f":"IF(SUM(M515:M541)=0,\"-\",SUM(M515:M541))","v":"-"},{"$f":"IF(SUM(N515:N541)=0,\"-\",SUM(N515:N541))","v":"-"},"-","-","-",{"$f":"IF(SUM(R515:R541)=0,\"-\",SUM(R515:R541))","v":"-"},{"$f":"IF(SUM(S515:S541)=0,\"-\",SUM(S515:S541))","v":"-"},"-","-"]
[null,null,null,"11 01 05* "," pickling acids","Tonnes","-",null,null,null,null,"-",null,null,null,null,"-"]
[null,null,null,"11 01 06* "," acids not otherwise specified","Tonnes","-",null,null,null,null,"-",null,null,null,null,"-"]
[null,null,null,"11 01 07* "," pickling bases","Tonnes","-",null,null,null,null,"-",null,null,null,null,"-"]
[null,null,null,"11 01 08* "," phosphatising sludges","Tonnes","-",null,null,null,null,"-",null,null,null,null,"-"]
[null,null,null,"11 01 09* "," sludges and filter cakes containing dangerous substances","Tonnes","-",null,null,null,null,"-",null,null,null,null,"-"]
[null,null,null,"11 01 10 "," sludges and filter cakes other than those mentioned in 11 01 09","Tonnes","-",null,null,null,null,"-",null,null,null,null,"-"]
[null,null,null,"11 01 11* "," aqueous rinsing liquids containing dangerous substances","Tonnes","-",null,null,null,null,"-",null,null,null,null,"-"]
[null,null,null,"11 01 12 "," aqueous rinsing liquids other than those mentioned in 11 01 11","Tonnes","-",null,null,null,null,"-",null,null,null,null,"-"]
[null,null,null,"11 01 13* "," degreasing wastes containing dangerous substances","Tonnes","-",null,null,null,null,"-",null,null,null,null,"-"]
[null,null,null,"11 01 14 "," degreasing wastes other than those mentioned in 11 01 13","Tonnes","-",null,null,null,null,"-",null,null,null,null,"-"]
[null,null,null,"11 01 15* "," eluate and sludges from membrane systems or ion exchange systems containing dangerous substances","Tonnes","-",null,null,null,null,"-",null,null,null,null,"-"]
[null,null,null,"11 01 16* "," saturated or spent ion exchange resins","Tonnes","-",null,null,null,null,"-",null,null,null,null,"-"]
[null,null,null,"11 01 98* "," other wastes containing dangerous substances","Tonnes","-",null,null,null,null,"-",null,null,null,null,"-"]
[null,null,null,"11 01 99 "," wastes not otherwise specified","Tonnes","-",null,null,null,null,"-",null,null,null,null,"-"]
[null,null,null,"11 02 02* "," sludges from zinc hydrometallurgy (including jarosite, goethite)","Tonnes","-",null,null,null,null,"-",null,null,null,null,"-"]
[null,null,null,"11 02 03 "," wastes from the production of anodes for aqueous electrolytical processes","Tonnes","-",null,null,null,null,"-",null,null,null,null,"-"]
[null,null,null,"11 02 05* "," wastes from copper hydrometallurgical processes containing dangerous substances","Tonnes","-",null,null,null,null,"-",null,null,null,null,"-"]
[null,null,null,"11 02 06 "," wastes from copper hydrometallurgical processes other than those mentioned in 11 02 05","Tonnes","-",null,null,null,null,"-",null,null,null,null,"-"]
[null,null,null,"11 02 07* "," other wastes containing dangerous substances","Tonnes","-",null,null,null,null,"-",null,null,null,null,"-"]
[null,null,null,"11 02 99 "," wastes not otherwise specified","Tonnes","-",null,null,null,null,"-",null,null,null,null,"-"]
[null,null,null,"11 03 01* "," wastes containing cyanide","Tonnes","-",null,null,null,null,"-",null,null,null,null,"-"]
[null,null,null,"11 03 02* "," other wastes","Tonnes","-",null,null,null,null,"-",null,null,null,null,"-"]
[null,null,null,"11 05 01 "," hard zinc","Tonnes","-",null,null,null,null,"-",null,null,null,null,"-"]
[null,null,null,"11 05 02 "," zinc ash","Tonnes","-",null,null,null,null,"-",null,null,null,null,"-"]
[null,null,null,"11 05 03* "," solid wastes from gas treatment","Tonnes","-",null,null,null,null,"-",null,null,null,null,"-"]
[null,null,null,"11 05 04* "," spent flux","Tonnes","-",null,null,null,null,"-",null,null,null,null,"-"]
[null,null,null,"11 05 99 "," wastes not otherwise specified","Tonnes","-",null,null,null,null,"-",null,null,null,null,"-"]
[null,null,null,12,"WASTES FROM SHAPING AND PHYSICAL AND MECHANICAL SURFACE TREATMENT OF METALS AND PLASTICS","Tonnes","-",{"$f":"IF(SUM(H543:H565)=0,\"-\",SUM(H543:H565))","v":"-"},{"$f":"IF(SUM(I543:I565)=0,\"-\",SUM(I543:I565))","v":"-"},"-","-","-",{"$f":"IF(SUM(M543:M565)=0,\"-\",SUM(M543:M565))","v":"-"},{"$f":"IF(SUM(N543:N565)=0,\"-\",SUM(N543:N565))","v":"-"},"-","-","-",{"$f":"IF(SUM(R543:R565)=0,\"-\",SUM(R543:R565))","v":"-"},{"$f":"IF(SUM(S543:S565)=0,\"-\",SUM(S543:S565))","v":"-"},"-","-"]
[null,null,null,"12 01 01 "," ferrous metal filings and turnings","Tonnes",{"$f":"IF(SUM(H543:K543)=0,\"-\",SUM(H543:K543))","v":"-"},null,null,null,null,{"$f":"IF(SUM(M543:P543)=0,\"-\",SUM(M543:P543))","v":"-"},null,null,null,null,{"$f":"IF(SUM(R543:U543)=0,\"-\",SUM(R543:U543))","v":"-"}]
[null,null,null,"12 01 02 "," ferrous metal dust and particles","Tonnes","-",null,null,null,null,"-",null,null,null,null,"-"]
[null,null,null,"12 01 03 "," non-ferrous metal filings and turnings","Tonnes","-",null,null,null,null,"-",null,null,null,null,"-"]
[null,null,null,"12 01 04 "," non-ferrous metal dust and particles","Tonnes","-",null,null,null,null,"-",null,null,null,null,"-"]
[null,null,null,"12 01 05 "," plastics shavings and turnings","Tonnes","-",null,null,null,null,"-",null,null,null,null,"-"]
[null,null,null,"12 01 06* "," mineral-based machining oils containing halogens (except emulsions and solutions)","Tonnes","-",null,null,null,null,"-",null,null,null,null,"-"]
[null,null,null,"12 01 07* "," mineral-based machining oils free of halogens (except emulsions and solutions)","Tonnes","-",null,null,null,null,"-",null,null,null,null,"-"]
[null,null,null,"12 01 08* "," machining emulsions and solutions containing halogens","Tonnes","-",null,null,null,null,"-",null,null,null,null,"-"]
[null,null,null,"12 01 09* "," machining emulsions and solutions free of halogens","Tonnes","-",null,null,null,null,"-",null,null,null,null,"-"]
[null,null,null,"12 01 10* "," synthetic machining oils","Tonnes","-",null,null,null,null,"-",null,null,null,null,"-"]
[null,null,null,"12 01 12* "," spent waxes and fats","Tonnes","-",null,null,null,null,"-",null,null,null,null,"-"]
[null,null,null,"12 01 13 "," welding wastes","Tonnes","-",null,null,null,null,"-",null,null,null,null,"-"]
[null,null,null,"12 01 14* "," machining sludges containing dangerous substances","Tonnes","-",null,null,null,null,"-",null,null,null,null,"-"]
[null,null,null,"12 01 15 "," machining sludges other than those mentioned in 12 01 14","Tonnes","-",null,null,null,null,"-",null,null,null,null,"-"]
[null,null,null,"12 01 16* "," waste blasting material containing dangerous substances","Tonnes","-",null,null,null,null,"-",null,null,null,null,"-"]
[null,null,null,"12 01 17 "," waste blasting material other than those mentioned in 12 01 16","Tonnes","-",null,null,null,null,"-",null,null,null,null,"-"]
[null,null,null,"12 01 18* "," metal sludge (grinding, honing and lapping sludge) containing oil","Tonnes","-",null,null,null,null,"-",null,null,null,null,"-"]
[null,null,null,"12 01 19* "," readily biodegradable machining oil","Tonnes","-",null,null,null,null,"-",null,null,null,null,"-"]
[null,null,null,"12 01 20* "," spent grinding bodies and grinding materials containing dangerous substances","Tonnes","-",null,null,null,null,"-",null,null,null,null,"-"]
[null,null,null,"12 01 21 "," spent grinding bodies and grinding materials other than those mentioned in 12 01 20","Tonnes","-",null,null,null,null,"-",null,null,null,null,"-"]
[null,null,null,"12 01 99 "," wastes not otherwise specified","Tonnes","-",null,null,null,null,"-",null,null,null,null,"-"]
[null,null,null,"12 03 01* "," aqueous washing liquids","Tonnes","-",null,null,null,null,"-",null,null,null,null,"-"]
[null,null,null,"12 03 02* "," steam degreasing wastes","Tonnes","-",null,null,null,null,"-",null,null,null,null,"-"]
[null,null,null,13,"OIL WASTES AND WASTES OF LIQUID FUELS (except edible oils, and those in chapters 05, 12 and 19)","Tonnes","-",{"$f":"IF(SUM(H567:H600)=0,\"-\",SUM(H567:H600))","v":"-"},{"$f":"IF(SUM(I567:I600)=0,\"-\",SUM(I567:I600))","v":"-"},"-","-","-",{"$f":"IF(SUM(M567:M600)=0,\"-\",SUM(M567:M600))","v":"-"},{"$f":"IF(SUM(N567:N600)=0,\"-\",SUM(N567:N600))","v":"-"},"-","-","-",{"$f":"IF(SUM(R567:R600)=0,\"-\",SUM(R567:R600))","v":"-"},{"$f":"IF(SUM(S567:S600)=0,\"-\",SUM(S567:S600))","v":"-"},"-","-"]
[null,null,null,"13 01 01* "," hydraulic oils, containing PCBs (1)","Tonnes","-",null,null,null,null,"-",null,null,null,null,"-"]
[null,null,null,"13 01 04* "," chlorinated emulsions","Tonnes","-",null,null,null,null,"-",null,null,null,null,"-"]
[null,null,null,"13 01 05* "," non-chlorinated emulsions","Tonnes","-",null,null,null,null,"-",null,null,null,null,"-"]
[null,null,null,"13 01 09* "," mineral-based chlorinated hydraulic oils","Tonnes","-",null,null,null,null,"-",null,null,null,null,"-"]
[null,null,null,"13 01 10* "," mineral based non-chlorinated hydraulic oils","Tonnes","-",null,null,null,null,"-",null,null,null,null,"-"]
[null,null,null,"13 01 11* "," synthetic hydraulic oils","Tonnes","-",null,null,null,null,"-",null,null,null,null,"-"]
[null,null,null,"13 01 12* "," readily biodegradable hydraulic oils","Tonnes","-",null,null,null,null,"-",null,null,null,null,"-"]
[null,null,null,"13 01 13* "," other hydraulic oils","Tonnes","-",null,null,null,null,"-",null,null,null,null,"-"]
[null,null,null,"13 02 04* "," mineral-based chlorinated engine, gear and lubricating oils","Tonnes","-",null,null,null,null,"-",null,null,null,null,"-"]
[null,null,null,"13 02 05* "," mineral-based non-chlorinated engine, gear and lubricating oils","Tonnes","-",null,null,null,null,"-",null,null,null,null,"-"]
[null,null,null,"13 02 06* "," synthetic engine, gear and lubricating oils","Tonnes","-",null,null,null,null,"-",null,null,null,null,"-"]
[null,null,null,"13 02 07* "," readily biodegradable engine, gear and lubricating oils","Tonnes","-",null,null,null,null,"-",null,null,null,null,"-"]
[null,null,null,"13 02 08* "," other engine, gear and lubricating oils","Tonnes","-",null,null,null,null,"-",null,null,null,null,"-"]
[null,null,null,"13 03 01* "," insulating or heat transmission oils containing PCBs","Tonnes","-",null,null,null,null,"-",null,null,null,null,"-"]
[null,null,null,"13 03 06* "," mineral-based chlorinated insulating and heat transmission oils other than those mentioned in 13 03 01","Tonnes","-",null,null,null,null,"-",null,null,null,null,"-"]
[null,null,null,"13 03 07* "," mineral-based non-chlorinated insulating and heat transmission oils","Tonnes","-",null,null,null,null,"-",null,null,null,null,"-"]
[null,null,null,"13 03 08* "," synthetic insulating and heat transmission oils","Tonnes","-",null,null,null,null,"-",null,null,null,null,"-"]
[null,null,null,"13 03 09* "," readily biodegradable insulating and heat transmission oils","Tonnes","-",null,null,null,null,"-",null,null,null,null,"-"]
[null,null,null,"13 03 10* "," other insulating and heat transmission oils","Tonnes","-",null,null,null,null,"-",null,null,null,null,"-"]
[null,null,null,"13 04 01* "," bilge oils from inland navigation","Tonnes","-",null,null,null,null,"-",null,null,null,null,"-"]
[null,null,null,"13 04 02* "," bilge oils from jetty sewers","Tonnes","-",null,null,null,null,"-",null,null,null,null,"-"]
[null,null,null,"13 04 03* "," bilge oils from other navigation","Tonnes","-",null,null,null,null,"-",null,null,null,null,"-"]
[null,null,null,"13 05 01* "," solids from grit chambers and oil/water separators","Tonnes","-",null,null,null,null,"-",null,null,null,null,"-"]
[null,null,null,"13 05 02* "," sludges from oil/water separators","Tonnes","-",null,null,null,null,"-",null,null,null,null,"-"]
[null,null,null,"13 05 03* "," interceptor sludges","Tonnes","-",null,null,null,null,"-",null,null,null,null,"-"]
[null,null,null,"13 05 06* "," oil from oil/water separators","Tonnes","-",null,null,null,null,"-",null,null,null,null,"-"]
[null,null,null,"13 05 07* "," oily water from oil/water separators","Tonnes","-",null,null,null,null,"-",null,null,null,null,"-"]
[null,null,null,"13 05 08* "," mixtures of wastes from grit chambers and oil/water separators","Tonnes","-",null,null,null,null,"-",null,null,null,null,"-"]
[null,null,null,"13 07 01* "," fuel oil and diesel","Tonnes","-",null,null,null,null,"-",null,null,null,null,"-"]
[null,null,null,"13 07 02* "," petrol","Tonnes","-",null,null,null,null,"-",null,null,null,null,"-"]
[null,null,null,"13 07 03* "," other fuels (including mixtures)","Tonnes","-",null,null,null,null,"-",null,null,null,null,"-"]
[null,null,null,"13 08 01* "," desalter sludges or emulsions","Tonnes","-",null,null,null,null,"-",null,null,null,null,"-"]
[null,null,null,"13 08 02* "," other emulsions","Tonnes","-",null,null,null,null,"-",null,null,null,null,"-"]
[null,null,null,"13 08 99* "," wastes not otherwise specified","Tonnes","-",null,null,null,null,"-",null,null,null,null,"-"]
[null,null,null,14,"WASTE ORGANIC SOLVENTS, REFRIGERANTS AND PROPELLANTS (except 07 and 08)","Tonnes","-",{"$f":"IF(SUM(H602:H606)=0,\"-\",SUM(H602:H606))","v":"-"},{"$f":"IF(SUM(I602:I606)=0,\"-\",SUM(I602:I606))","v":"-"},"-","-","-",{"$f":"IF(SUM(M602:M606)=0,\"-\",SUM(M602:M606))","v":"-"},{"$f":"IF(SUM(N602:N606)=0,\"-\",SUM(N602:N606))","v":"-"},"-","-","-",{"$f":"IF(SUM(R602:R606)=0,\"-\",SUM(R602:R606))","v":"-"},{"$f":"IF(SUM(S602:S606)=0,\"-\",SUM(S602:S606))","v":"-"},"-","-"]
[null,null,null,"14 06 01* "," chlorofluorocarbons, HCFC, HFC","Tonnes","-",null,null,null,null,"-",null,null,null,null,"-"]
[null,null,null,"14 06 02* "," other halogenated solvents and solvent mixtures","Tonnes","-",null,null,null,null,"-",null,null,null,null,"-"]
[null,null,null,"14 06 03* "," other solvents and solvent mixtures","Tonnes","-",null,null,null,null,"-",null,null,null,null,"-"]
[null,null,null,"14 06 04* "," sludges or solid wastes containing halogenated solvents","Tonnes","-",null,null,null,null,"-",null,null,null,null,"-"]
[null,null,null,"14 06 05* "," sludges or solid wastes containing other solvents","Tonnes","-",null,null,null,null,"-",null,null,null,null,"-"]
[null,null,null,15,"WASTE PACKAGING; ABSORBENTS, WIPING CLOTHS, FILTER MATERIALS AND PROTECTIVE CLOTHING NOT OTHERWISE SPECIFIED","Tonnes",{"$f":"IF(SUM(H607:K607)=0,\"-\",SUM(H607:K607))","v":"-"},{"$f":"IF(SUM(H608:H619)=0,\"-\",SUM(H608:H619))","v":"-"},{"$f":"IF(SUM(I608:I619)=0,\"-\",SUM(I608:I619))","v":"-"},"-","-",{"$f":"IF(SUM(M607:P607)=0,\"-\",SUM(M607:P607))","v":"-"},{"$f":"IF(SUM(M608:M619)=0,\"-\",SUM(M608:M619))","v":"-"},{"$f":"IF(SUM(N608:N619)=0,\"-\",SUM(N608:N619))","v":"-"},"-","-",{"$f":"IF(SUM(R607:U607)=0,\"-\",SUM(R607:U607))","v":"-"},{"$f":"IF(SUM(R608:R619)=0,\"-\",SUM(R608:R619))","v":"-"},{"$f":"IF(SUM(S608:S619)=0,\"-\",SUM(S608:S619))","v":"-"},"-","-"]
[null,null,null,"15 01 01 "," paper and cardboard packaging","Tonnes","-",null,null,null,null,"-",null,null,null,null,"-"]
[null,null,null,"15 01 02 "," plastic packaging","Tonnes","-",null,null,null,null,"-",null,null,null,null,"-"]
[null,null,null,"15 01 03 "," wooden packaging","Tonnes","-",null,null,null,null,"-",null,null,null,null,"-"]
[null,null,null,"15 01 04  ","metallic packaging","Tonnes","-",null,null,null,null,"-",null,null,null,null,"-"]
[null,null,null,"15 01 05 "," composite packaging","Tonnes","-",null,null,null,null,"-",null,null,null,null,"-"]
[null,null,null,"15 01 06 "," mixed packaging","Tonnes","-",null,null,null,null,"-",null,null,null,null,"-"]
[null,null,null,"15 01 07 "," glass packaging","Tonnes","-",null,null,null,null,"-",null,null,null,null,"-"]
[null,null,null,"15 01 09 "," textile packaging","Tonnes","-",null,null,null,null,"-",null,null,null,null,"-"]
[null,null,null,"15 01 10* "," packaging containing residues of or contaminated by dangerous substances","Tonnes","-",null,null,null,null,"-",null,null,null,null,"-"]
[null,null,null,"15 01 11* "," metallic packaging containing a dangerous solid porous matrix (for example asbestos), including empty pressure containers","Tonnes","-",null,null,null,null,"-",null,null,null,null,"-"]
[null,null,null,"15 02 02* "," absorbents, filter materials (including oil filters not otherwise specified), wiping cloths, protective clothing contaminated by dangerous substances","Tonnes","-",null,null,null,null,"-",null,null,null,null,"-"]
[null,null,null,"15 02 03 "," absorbents, filter materials, wiping cloths and protective clothing other than those mentioned in 15 02 02","Tonnes","-",null,null,null,null,"-",null,null,null,null,"-"]
[null,null,null,16,"WASTES NOT OTHERWISE SPECIFIED IN THE LIST","Tonnes",{"$f":"IF(SUM(H620:K620)=0,\"-\",SUM(H620:K620))","v":"-"},"-",{"$f":"IF(SUM(I621:I691)=0,\"-\",SUM(I621:I691))","v":"-"},"-","-","-",{"$f":"IF(SUM(M621:M691)=0,\"-\",SUM(M621:M691))","v":"-"},{"$f":"IF(SUM(N621:N691)=0,\"-\",SUM(N621:N691))","v":"-"},"-","-","-",{"$f":"IF(SUM(R621:R691)=0,\"-\",SUM(R621:R691))","v":"-"},{"$f":"IF(SUM(S621:S691)=0,\"-\",SUM(S621:S691))","v":"-"},"-","-"]
[null,null,null,"16 01 03 "," end-of-life tyres","Tonnes","-",null,null,null,null,"-",null,null,null,null,"-"]
[null,null,null,"16 01 04 "," discarded vehicles; NB: This entry is not part of the proposal submitted for opinion to the Committee. The necessary changes to this entry will be made on the basis of the outcome of the procedure in Council on the proposal included in document COM(2000) 546","Tonnes","-",null,null,null,null,"-",null,null,null,null,"-"]
[null,null,null,"16 01 06 "," end-of-life vehicles, containing neither liquids nor other hazardous components","Tonnes","-",null,null,null,null,"-",null,null,null,null,"-"]
[null,null,null,"16 01 07* "," oil filters","Tonnes","-",null,null,null,null,"-",null,null,null,null,"-"]
[null,null,null,"16 01 08* "," components containing mercury","Tonnes","-",null,null,null,null,"-",null,null,null,null,"-"]
[null,null,null,"16 01 09* "," components containing PCBs","Tonnes","-",null,null,null,null,"-",null,null,null,null,"-"]
[null,null,null,"16 01 10* "," explosive components (for example air bags)","Tonnes","-",null,null,null,null,"-",null,null,null,null,"-"]
[null,null,null,"16 01 11* "," brake pads containing asbestos","Tonnes","-",null,null,null,null,"-",null,null,null,null,"-"]
[null,null,null,"16 01 12 "," brake pads other than those mentioned in 16 01 11","Tonnes","-",null,null,null,null,"-",null,null,null,null,"-"]
[null,null,null,"16 01 13* "," brake fluids","Tonnes","-",null,null,null,null,"-",null,null,null,null,"-"]
[null,null,null,"16 01 14* "," antifreeze fluids containing dangerous substances","Tonnes","-",null,null,null,null,"-",null,null,null,null,"-"]
[null,null,null,"16 01 15 "," antifreeze fluids other than those mentioned in 16 01 14","Tonnes","-",null,null,null,null,"-",null,null,null,null,"-"]
[null,null,null,"16 01 16 "," tanks for liquefied gas","Tonnes","-",null,null,null,null,"-",null,null,null,null,"-"]
[null,null,null,"16 01 17 "," ferrous metal","Tonnes","-",null,null,null,null,"-",null,null,null,null,"-"]
[null,null,null,"16 01 18 "," non-ferrous metal","Tonnes","-",null,null,null,null,"-",null,null,null,null,"-"]
[null,null,null,"16 01 19 "," plastic","Tonnes","-",null,null,null,null,"-",null,null,null,null,"-"]
[null,null,null,"16 01 20 "," glass","Tonnes","-",null,null,null,null,"-",null,null,null,null,"-"]
[null,null,null,"16 01 21* "," hazardous components other than those mentioned in 16 01 07 to 16 01 11 and 16 01 13 and 16 01 14","Tonnes","-",null,null,null,null,"-",null,null,null,null,"-"]
[null,null,null,"16 01 22 "," components not otherwise specified","Tonnes","-",null,null,null,null,"-",null,null,null,null,"-"]
[null,null,null,"16 01 99 "," wastes not otherwise specified","Tonnes","-",null,null,null,null,"-",null,null,null,null,"-"]
[null,null,null,"16 02 09* "," transformers and capacitors containing PCBs","Tonnes","-",null,null,null,null,"-",null,null,null,null,"-"]
[null,null,null,"16 02 10* "," discarded equipment containing or contaminated by PCBs other than those mentioned in 16 02 09","Tonnes","-",null,null,null,null,"-",null,null,null,null,"-"]
[null,null,null,"16 02 11* "," discarded equipment containing chlorofluorocarbons, HCFC, HFC","Tonnes","-",null,null,null,null,"-",null,null,null,null,"-"]
[null,null,null,"16 02 12* "," discarded equipment containing free asbestos","Tonnes","-",null,null,null,null,"-",null,null,null,null,"-"]
[null,null,null,"16 02 13* "," discarded equipment containing hazardous components (2) other than those mentioned in 16 02 09 to 16 02 12","Tonnes","-",null,null,null,null,"-",null,null,null,null,"-"]
[null,null,null,"16 02 14 "," discarded equipment other than those mentioned in 16 02 09 to 16 02 13","Tonnes","-",null,null,null,null,"-",null,null,null,null,"-"]
[null,null,null,"16 02 15* "," hazardous components removed from discarded equipment","Tonnes","-",null,null,null,null,"-",null,null,null,null,"-"]
[null,null,null,"16 02 16 "," components removed from discarded equipment other than those mentioned in 16 02 15","Tonnes","-",null,null,null,null,"-",null,null,null,null,"-"]
[null,null,null,"16 03 03* "," inorganic wastes containing dangerous substances","Tonnes","-",null,null,null,null,"-",null,null,null,null,"-"]
[null,null,null,"16 03 04 "," inorganic wastes other than those mentioned in 16 03 03","Tonnes","-",null,null,null,null,"-",null,null,null,null,"-"]
[null,null,null,"16 03 05* "," organic wastes containing dangerous substances","Tonnes","-",null,null,null,null,"-",null,null,null,null,"-"]
[null,null,null,"16 03 06 "," organic wastes other than those mentioned in 16 03 05","Tonnes","-",null,null,null,null,"-",null,null,null,null,"-"]
[null,null,null,"16 04 01* "," waste ammunition","Tonnes","-",null,null,null,null,"-",null,null,null,null,"-"]
[null,null,null,"16 04 02* "," fireworks wastes","Tonnes","-",null,null,null,null,"-",null,null,null,null,"-"]
[null,null,null,"16 04 03* "," other waste explosives","Tonnes","-",null,null,null,null,"-",null,null,null,null,"-"]
[null,null,null,"16 05 04* "," gases in pressure containers (including halons) containing dangerous substances","Tonnes","-",null,null,null,null,"-",null,null,null,null,"-"]
[null,null,null,"16 05 05 "," gases in pressure containers other than those mentioned in 16 05 04","Tonnes","-",null,null,null,null,"-",null,null,null,null,"-"]
[null,null,null,"16 05 06* "," laboratory chemicals, consisting of or containing dangerous substances, including mixtures of laboratory chemicals","Tonnes","-",null,null,null,null,"-",null,null,null,null,"-"]
[null,null,null,"16 05 07* "," discarded inorganic chemicals consisting of or containing dangerous substances","Tonnes","-",null,null,null,null,"-",null,null,null,null,"-"]
[null,null,null,"16 05 08* "," discarded organic chemicals consisting of or containing dangerous substances","Tonnes","-",null,null,null,null,"-",null,null,null,null,"-"]
[null,null,null,"16 05 09 "," discarded chemicals other than those mentioned in 16 05 06, 16 05 07 or 16 05 08","Tonnes","-",null,null,null,null,"-",null,null,null,null,"-"]
[null,null,null,"16 06 01* "," lead batteries","Tonnes","-",null,null,null,null,"-",null,null,null,null,"-"]
[null,null,null,"16 06 02* "," Ni-Cd batteries","Tonnes","-",null,null,null,null,"-",null,null,null,null,"-"]
[null,null,null,"16 06 03* "," mercury-containing batteries","Tonnes","-",null,null,null,null,"-",null,null,null,null,"-"]
[null,null,null,"16 06 04 "," alkaline batteries (except 16 06 03)","Tonnes","-",null,null,null,null,"-",null,null,null,null,"-"]
[null,null,null,"16 06 05 "," other batteries and accumulators","Tonnes","-",null,null,null,null,"-",null,null,null,null,"-"]
[null,null,null,"16 06 06* "," separately collected electrolyte from batteries and accumulators","Tonnes","-",null,null,null,null,"-",null,null,null,null,"-"]
[null,null,null,"16 07 08* "," wastes containing oil","Tonnes","-",null,null,null,null,"-",null,null,null,null,"-"]
[null,null,null,"16 07 09* "," wastes containing other dangerous substances","Tonnes","-",null,null,null,null,"-",null,null,null,null,"-"]
[null,null,null,"16 07 99 "," wastes not otherwise specified","Tonnes","-",null,null,null,null,"-",null,null,null,null,"-"]
[null,null,null,"16 08 01 "," spent catalysts containing gold, silver, rhenium, rhodium, palladium, iridium or platinum (except 16 08 07)","Tonnes",{"$f":"IF(SUM(H671:K671)=0,\"-\",SUM(H671:K671))","v":"-"},null,null,null,null,{"$f":"IF(SUM(M671:P671)=0,\"-\",SUM(M671:P671))","v":"-"},null,null,null,null,{"$f":"IF(SUM(R671:U671)=0,\"-\",SUM(R671:U671))","v":"-"}]
[null,null,null,"16 08 02* "," spent catalysts containing dangerous transition metals (3) or dangerous transition metal compounds","Tonnes","-",null,null,null,null,"-",null,null,null,null,"-"]
[null,null,null,"16 08 03 "," spent catalysts containing transition metals or transition metal compounds not otherwise specified","Tonnes","-",null,null,null,null,"-",null,null,null,null,"-"]
[null,null,null,"16 08 04 "," spent fluid catalytic cracking catalysts (except 16 08 07)","Tonnes","-",null,null,null,null,"-",null,null,null,null,"-"]
[null,null,null,"16 08 05* "," spent catalysts containing phosphoric acid","Tonnes","-",null,null,null,null,"-",null,null,null,null,"-"]
[null,null,null,"16 08 06* "," spent liquids used as catalysts","Tonnes","-",null,null,null,null,"-",null,null,null,null,"-"]
[null,null,null,"16 08 07* "," spent catalysts contaminated with dangerous substances","Tonnes","-",null,null,null,null,"-",null,null,null,null,"-"]
[null,null,null,"16 09 01* "," permanganates, for example potassium permanganate","Tonnes","-",null,null,null,null,"-",null,null,null,null,"-"]
[null,null,null,"16 09 02* "," chromates, for example potassium chromate, potassium or sodium dichromate","Tonnes","-",null,null,null,null,"-",null,null,null,null,"-"]
[null,null,null,"16 09 03* "," peroxides, for example hydrogen peroxide","Tonnes","-",null,null,null,null,"-",null,null,null,null,"-"]
[null,null,null,"16 09 04* "," oxidising substances, not otherwise specified","Tonnes","-",null,null,null,null,"-",null,null,null,null,"-"]
[null,null,null,"16 10 01* "," aqueous liquid wastes containing dangerous substances","Tonnes","-",null,null,null,null,"-",null,null,null,null,"-"]
[null,null,null,"16 10 02 "," aqueous liquid wastes other than those mentioned in 16 10 01","Tonnes","-",null,null,null,null,"-",null,null,null,null,"-"]
[null,null,null,"16 10 03* "," aqueous concentrates containing dangerous substances","Tonnes","-",null,null,null,null,"-",null,null,null,null,"-"]
[null,null,null,"16 10 04 "," aqueous concentrates other than those mentioned in 16 10 03","Tonnes","-",null,null,null,null,"-",null,null,null,null,"-"]
[null,null,null,"16 11 01* "," carbon-based linings and refractories from metallurgical processes containing dangerous substances","Tonnes","-",null,null,null,null,"-",null,null,null,null,"-"]
[null,null,null,"16 11 02 "," carbon-based linings and refractories from metallurgical processes others than those mentioned in 16 11 01,","Tonnes","-",null,null,null,null,"-",null,null,null,null,"-"]
[null,null,null,"16 11 03* "," other linings and refractories from metallurgical processes containing dangerous substances","Tonnes","-",null,null,null,null,"-",null,null,null,null,"-"]
[null,null,null,"16 11 04 "," other linings and refractories from metallurgical processes other than those mentioned in 16 11 03","Tonnes","-",null,null,null,null,"-",null,null,null,null,"-"]
[null,null,null,"16 11 05* "," linings and refractories from non-metallurgical processes containing dangerous substances","Tonnes","-",null,null,null,null,"-",null,null,null,null,"-"]
[null,null,null,"16 11 06 "," linings and refractories from non-metallurgical processes others than those mentioned in 16 11 05","Tonnes","-",null,null,null,null,"-",null,null,null,null,"-"]
[null,null,null,17,"CONSTRUCTION AND DEMOLITION WASTES (INCLUDING EXCAVATED SOIL FROM CONTAMINATED SITES)","Tonnes","-",{"$f":"IF(SUM(H693:H730)=0,\"-\",SUM(H693:H730))","v":"-"},{"$f":"IF(SUM(I693:I730)=0,\"-\",SUM(I693:I730))","v":"-"},"-","-","-",{"$f":"IF(SUM(M693:M730)=0,\"-\",SUM(M693:M730))","v":"-"},{"$f":"IF(SUM(N693:N730)=0,\"-\",SUM(N693:N730))","v":"-"},"-","-","-",{"$f":"IF(SUM(R693:R730)=0,\"-\",SUM(R693:R730))","v":"-"},{"$f":"IF(SUM(S693:S730)=0,\"-\",SUM(S693:S730))","v":"-"},"-","-"]
[null,null,null,"17 01 01 "," concrete","Tonnes","-",null,null,null,null,"-",null,null,null,null,"-"]
[null,null,null,"17 01 02 "," bricks","Tonnes","-",null,null,null,null,"-",null,null,null,null,"-"]
[null,null,null,"17 01 03 "," tiles and ceramics","Tonnes","-",null,null,null,null,"-",null,null,null,null,"-"]
[null,null,null,"17 01 06* "," mixtures of, or separate fractions of concrete, bricks, tiles and ceramics containing dangerous substances","Tonnes","-",null,null,null,null,"-",null,null,null,null,"-"]
[null,null,null,"17 01 07 "," mixtures of concrete, bricks, tiles and ceramics other than those mentioned in 17 01 06","Tonnes","-",null,null,null,null,"-",null,null,null,null,"-"]
[null,null,null,"17 02 01 "," wood","Tonnes","-",null,null,null,null,"-",null,null,null,null,"-"]
[null,null,null,"17 02 02 "," glass","Tonnes","-",null,null,null,null,"-",null,null,null,null,"-"]
[null,null,null,"17 02 03 "," plastic","Tonnes","-",null,null,null,null,"-",null,null,null,null,"-"]
[null,null,null,"17 02 04* "," glass, plastic and wood containing or contaminated with dangerous substances","Tonnes","-",null,null,null,null,"-",null,null,null,null,"-"]
[null,null,null,"17 03 01* "," bituminous mixtures containing coal tar","Tonnes","-",null,null,null,null,"-",null,null,null,null,"-"]
[null,null,null,"17 03 02 "," bituminous mixtures other than those mentioned in 17 03 01","Tonnes","-",null,null,null,null,"-",null,null,null,null,"-"]
[null,null,null,"17 03 03* "," coal tar and tarred products","Tonnes","-",null,null,null,null,"-",null,null,null,null,"-"]
[null,null,null,"17 04 01 "," copper, bronze, brass","Tonnes","-",null,null,null,null,"-",null,null,null,null,"-"]
[null,null,null,"17 04 02 "," aluminium","Tonnes","-",null,null,null,null,"-",null,null,null,null,"-"]
[null,null,null,"17 04 03 "," lead","Tonnes","-",null,null,null,null,"-",null,null,null,null,"-"]
[null,null,null,"17 04 04 "," zinc","Tonnes","-",null,null,null,null,"-",null,null,null,null,"-"]
[null,null,null,"17 04 05 "," iron and steel","Tonnes","-",null,null,null,null,"-",null,null,null,null,"-"]
[null,null,null,"17 04 06 "," tin","Tonnes","-",null,null,null,null,"-",null,null,null,null,"-"]
[null,null,null,"17 04 07 "," mixed metals","Tonnes","-",null,null,null,null,"-",null,null,null,null,"-"]
[null,null,null,"17 04 09* "," metal waste contaminated with dangerous substances","Tonnes","-",null,null,null,null,"-",null,null,null,null,"-"]
[null,null,null,"17 04 10* "," cables containing oil, coal tar and other dangerous substances","Tonnes","-",null,null,null,null,"-",null,null,null,null,"-"]
[null,null,null,"17 04 11 "," cables other than those mentioned in 17 04 10","Tonnes","-",null,null,null,null,"-",null,null,null,null,"-"]
[null,null,null,"17 05 03* "," soil and stones containing dangerous substances","Tonnes","-",null,null,null,null,"-",null,null,null,null,"-"]
[null,null,null,"17 05 04 "," soil and stones other than those mentioned in 17 05 03","Tonnes","-",null,null,null,null,"-",null,null,null,null,"-"]
[null,null,null,"17 05 05* "," dredging spoil containing dangerous substances","Tonnes","-",null,null,null,null,"-",null,null,null,null,"-"]
[null,null,null,"17 05 06 "," dredging spoil other than those mentioned in 17 05 05","Tonnes","-",null,null,null,null,"-",null,null,null,null,"-"]
[null,null,null,"17 05 07* "," track ballast containing dangerous substances","Tonnes","-",null,null,null,null,"-",null,null,null,null,"-"]
[null,null,null,"17 05 08 "," track ballast other than those mentioned in 17 05 07","Tonnes","-",null,null,null,null,"-",null,null,null,null,"-"]
[null,null,null,"17 06 01* "," insulation materials containing asbestos","Tonnes","-",null,null,null,null,"-",null,null,null,null,"-"]
[null,null,null,"17 06 03* "," other insulation materials consisting of or containing dangerous substances","Tonnes","-",null,null,null,null,"-",null,null,null,null,"-"]
[null,null,null,"17 06 04 "," insulation materials other than those mentioned in 17 06 01 and 17 06 03","Tonnes","-",null,null,null,null,"-",null,null,null,null,"-"]
[null,null,null,"17 06 05*"," construction materials containing asbestos","Tonnes","-",null,null,null,null,"-",null,null,null,null,"-"]
[null,null,null,"17 08 01* "," gypsum-based construction materials contaminated with dangerous substances","Tonnes","-",null,null,null,null,"-",null,null,null,null,"-"]
[null,null,null,"17 08 02 "," gypsum-based construction materials other than those mentioned in 17 08 01","Tonnes","-",null,null,null,null,"-",null,null,null,null,"-"]
[null,null,null,"17 09 01* "," construction and demolition wastes containing mercury","Tonnes","-",null,null,null,null,"-",null,null,null,null,"-"]
[null,null,null,"17 09 02* "," construction and demolition wastes containing PCB (for example PCB-containing sealants, PCB-containing resin-based floorings, PCB-containing sealed glazing units, PCB-containing capacitors)","Tonnes","-",null,null,null,null,"-",null,null,null,null,"-"]
[null,null,null,"17 09 03* "," other construction and demolition wastes (including mixed wastes) containing dangerous substances","Tonnes","-",null,null,null,null,"-",null,null,null,null,"-"]
[null,null,null,"17 09 04 "," mixed construction and demolition wastes other than those mentioned in 17 09 01, 17 09 02 and 17 09 03","Tonnes","-",null,null,null,null,"-",null,null,null,null,"-"]
[null,null,null,18,"WASTES FROM HUMAN OR ANIMAL HEALTH CARE AND/OR RELATED RESEARCH (except kitchen and restaurant wastes not arising from immediate health care)","Tonnes","-",{"$f":"IF(SUM(H732:H747)=0,\"-\",SUM(H732:H747))","v":"-"},{"$f":"IF(SUM(I732:I747)=0,\"-\",SUM(I732:I747))","v":"-"},"-","-","-",{"$f":"IF(SUM(M732:M747)=0,\"-\",SUM(M732:M747))","v":"-"},{"$f":"IF(SUM(N732:N747)=0,\"-\",SUM(N732:N747))","v":"-"},"-","-","-",{"$f":"IF(SUM(R732:R747)=0,\"-\",SUM(R732:R747))","v":"-"},{"$f":"IF(SUM(S732:S747)=0,\"-\",SUM(S732:S747))","v":"-"},"-","-"]
[null,null,null,"18 01 01 "," sharps (except 18 01 03)","Tonnes","-",null,null,null,null,"-",null,null,null,null,"-"]
[null,null,null,"18 01 02 "," body parts and organs including blood bags and blood preserves (except 18 01 03)","Tonnes","-",null,null,null,null,"-",null,null,null,null,"-"]
[null,null,null,"18 01 03* "," wastes whose collection and disposal is subject to special requirements in order to prevent infection","Tonnes","-",null,null,null,null,"-",null,null,null,null,"-"]
[null,null,null,"18 01 04 "," wastes whose collection and disposal is not subject to special requirements in order to prevent infection (for example dressings, plaster casts, linen, disposable clothing, diapers)","Tonnes",{"$f":"IF(SUM(H735:K735)=0,\"-\",SUM(H735:K735))","v":"-"},null,null,null,null,{"$f":"IF(SUM(M735:P735)=0,\"-\",SUM(M735:P735))","v":"-"},null,null,null,null,{"$f":"IF(SUM(R735:U735)=0,\"-\",SUM(R735:U735))","v":"-"}]
[null,null,null,"18 01 06* "," chemicals consisting of or containing dangerous substances","Tonnes","-",null,null,null,null,"-",null,null,null,null,"-"]
[null,null,null,"18 01 07 "," chemicals other than those mentioned in 18 01 06","Tonnes","-",null,null,null,null,"-",null,null,null,null,"-"]
[null,null,null,"18 01 08* "," cytotoxic and cytostatic medicines","Tonnes","-",null,null,null,null,"-",null,null,null,null,"-"]
[null,null,null,"18 01 09 "," medicines other than those mentioned in 18 01 08","Tonnes","-",null,null,null,null,"-",null,null,null,null,"-"]
[null,null,null,"18 01 10* "," amalgam waste from dental care","Tonnes","-",null,null,null,null,"-",null,null,null,null,"-"]
[null,null,null,"18 02 01 "," sharps (except 18 02 02)","Tonnes","-",null,null,null,null,"-",null,null,null,null,"-"]
[null,null,null,"18 02 02* "," wastes whose collection and disposal is subject to special requirements in order to prevent infection","Tonnes","-",null,null,null,null,"-",null,null,null,null,"-"]
[null,null,null,"18 02 03 "," wastes whose collection and disposal is not subject to special requirements in order to prevent infection","Tonnes","-",null,null,null,null,"-",null,null,null,null,"-"]
[null,null,null,"18 02 05* "," chemicals consisting of or containing dangerous substances","Tonnes","-",null,null,null,null,"-",null,null,null,null,"-"]
[null,null,null,"18 02 06 "," chemicals other than those mentioned in 18 02 05","Tonnes","-",null,null,null,null,"-",null,null,null,null,"-"]
[null,null,null,"18 02 07* "," cytotoxic and cytostatic medicines","Tonnes","-",null,null,null,null,"-",null,null,null,null,"-"]
[null,null,null,"18 02 08 "," medicines other than those mentioned in 18 02 07","Tonnes","-",null,null,null,null,"-",null,null,null,null,"-"]
[null,null,null,19,"WASTES FROM WASTE MANAGEMENT FACILITIES, OFF-SITE WASTE WATER TREATMENT PLANTS AND THE PREPARATION OF WATER INTENDED FOR HUMAN CONSUMPTION AND WATER FOR INDUSTRIAL USE","Tonnes","-",{"$f":"IF(SUM(H749:H846)=0,\"-\",SUM(H749:H846))","v":"-"},{"$f":"IF(SUM(I749:I846)=0,\"-\",SUM(I749:I846))","v":"-"},"-","-","-",{"$f":"IF(SUM(M749:M846)=0,\"-\",SUM(M749:M846))","v":"-"},{"$f":"IF(SUM(N749:N846)=0,\"-\",SUM(N749:N846))","v":"-"},"-","-","-",{"$f":"IF(SUM(R749:R846)=0,\"-\",SUM(R749:R846))","v":"-"},{"$f":"IF(SUM(S749:S846)=0,\"-\",SUM(S749:S846))","v":"-"},"-","-"]
[null,null,null,"19 01 02 "," ferrous materials removed from bottom ash","Tonnes","-",null,null,null,null,"-",null,null,null,null,"-"]
[null,null,null,"19 01 05* "," filter cake from gas treatment","Tonnes","-",null,null,null,null,"-",null,null,null,null,"-"]
[null,null,null,"19 01 06* "," aqueous liquid wastes from gas treatment and other aqueous liquid wastes","Tonnes","-",null,null,null,null,"-",null,null,null,null,"-"]
[null,null,null,"19 01 07* "," solid wastes from gas treatment","Tonnes","-",null,null,null,null,"-",null,null,null,null,"-"]
[null,null,null,"19 01 10* "," spent activated carbon from flue-gas treatment","Tonnes","-",null,null,null,null,"-",null,null,null,null,"-"]
[null,null,null,"19 01 11* "," bottom ash and slag containing dangerous substances","Tonnes","-",null,null,null,null,"-",null,null,null,null,"-"]
[null,null,null,"19 01 12 "," bottom ash and slag other than those mentioned in 19 01 11","Tonnes","-",null,null,null,null,"-",null,null,null,null,"-"]
[null,null,null,"19 01 13* "," fly ash containing dangerous substances","Tonnes","-",null,null,null,null,"-",null,null,null,null,"-"]
[null,null,null,"19 01 14 "," fly ash other than those mentioned in 19 01 13","Tonnes","-",null,null,null,null,"-",null,null,null,null,"-"]
[null,null,null,"19 01 15* "," boiler dust containing dangerous substances","Tonnes","-",null,null,null,null,"-",null,null,null,null,"-"]
[null,null,null,"19 01 16 "," boiler dust other than those mentioned in 19 01 15","Tonnes","-",null,null,null,null,"-",null,null,null,null,"-"]
[null,null,null,"19 01 17* "," pyrolysis wastes containing dangerous substances","Tonnes","-",null,null,null,null,"-",null,null,null,null,"-"]
[null,null,null,"19 01 18 "," pyrolysis wastes other than those mentioned in 19 01 17","Tonnes","-",null,null,null,null,"-",null,null,null,null,"-"]
[null,null,null,"19 01 19 "," sands from fluidised beds","Tonnes","-",null,null,null,null,"-",null,null,null,null,"-"]
[null,null,null,"19 01 99 "," wastes not otherwise specified","Tonnes","-",null,null,null,null,"-",null,null,null,null,"-"]
[null,null,null,"19 02 03 "," premixed wastes composed only of non-hazardous wastes","Tonnes","-",null,null,null,null,"-",null,null,null,null,"-"]
[null,null,null,"19 02 04* "," premixed wastes composed of at least one hazardous waste","Tonnes","-",null,null,null,null,"-",null,null,null,null,"-"]
[null,null,null,"19 02 05* "," sludges from physico/chemical treatment containing dangerous substances","Tonnes","-",null,null,null,null,"-",null,null,null,null,"-"]
[null,null,null,"19 02 06 "," sludges from physico/chemical treatment other than those mentioned in 19 02 05","Tonnes","-",null,null,null,null,"-",null,null,null,null,"-"]
[null,null,null,"19 02 07* "," oil and concentrates from separation","Tonnes","-",null,null,null,null,"-",null,null,null,null,"-"]
[null,null,null,"19 02 08* "," liquid combustible wastes containing dangerous substances","Tonnes","-",null,null,null,null,"-",null,null,null,null,"-"]
[null,null,null,"19 02 09* "," solid combustible wastes containing dangerous substances","Tonnes","-",null,null,null,null,"-",null,null,null,null,"-"]
[null,null,null,"19 02 10 "," combustible wastes other than those mentioned in 19 02 08 and 19 02 09","Tonnes","-",null,null,null,null,"-",null,null,null,null,"-"]
[null,null,null,"19 02 11* "," other wastes containing dangerous substances","Tonnes","-",null,null,null,null,"-",null,null,null,null,"-"]
[null,null,null,"19 02 99 "," wastes not otherwise specified","Tonnes","-",null,null,null,null,"-",null,null,null,null,"-"]
[null,null,null,"19 03 04* "," wastes marked as hazardous, partly (5) stabilised","Tonnes","-",null,null,null,null,"-",null,null,null,null,"-"]
[null,null,null,"19 03 05 "," stabilised wastes other than those mentioned in 19 03 04","Tonnes","-",null,null,null,null,"-",null,null,null,null,"-"]
[null,null,null,"19 03 06* "," wastes marked as hazardous, solidified","Tonnes","-",null,null,null,null,"-",null,null,null,null,"-"]
[null,null,null,"19 03 07 "," solidified wastes other than those mentioned in 19 03 06","Tonnes","-",null,null,null,null,"-",null,null,null,null,"-"]
[null,null,null,"19 04 01 "," vitrified waste","Tonnes","-",null,null,null,null,"-",null,null,null,null,"-"]
[null,null,null,"19 04 02* "," fly ash and other flue-gas treatment wastes","Tonnes","-",null,null,null,null,"-",null,null,null,null,"-"]
[null,null,null,"19 04 03* "," non-vitrified solid phase","Tonnes","-",null,null,null,null,"-",null,null,null,null,"-"]
[null,null,null,"19 04 04 "," aqueous liquid wastes from vitrified waste tempering","Tonnes","-",null,null,null,null,"-",null,null,null,null,"-"]
[null,null,null,"19 05 01 "," non-composted fraction of municipal and similar wastes","Tonnes","-",null,null,null,null,"-",null,null,null,null,"-"]
[null,null,null,"19 05 02 "," non-composted fraction of animal and vegetable waste","Tonnes","-",null,null,null,null,"-",null,null,null,null,"-"]
[null,null,null,"19 05 03 "," off-specification compost","Tonnes","-",null,null,null,null,"-",null,null,null,null,"-"]
[null,null,null,"19 05 99 "," wastes not otherwise specified","Tonnes","-",null,null,null,null,"-",null,null,null,null,"-"]
[null,null,null,"19 06 03 "," liquor from anaerobic treatment of municipal waste","Tonnes","-",null,null,null,null,"-",null,null,null,null,"-"]
[null,null,null,"19 06 04 "," digestate from anaerobic treatment of municipal waste","Tonnes","-",null,null,null,null,"-",null,null,null,null,"-"]
[null,null,null,"19 06 05 "," liquor from anaerobic treatment of animal and vegetable waste","Tonnes","-",null,null,null,null,"-",null,null,null,null,"-"]
[null,null,null,"19 06 06 "," digestate from anaerobic treatment of animal and vegetable waste","Tonnes","-",null,null,null,null,"-",null,null,null,null,"-"]
[null,null,null,"19 06 99 "," wastes not otherwise specified","Tonnes","-",null,null,null,null,"-",null,null,null,null,"-"]
[null,null,null,"19 07 02* "," landfill leachate containing dangerous substances","Tonnes","-",null,null,null,null,"-",null,null,null,null,"-"]
[null,null,null,"19 07 03 "," landfill leachate other than those mentioned in 19 07 02","Tonnes","-",null,null,null,null,"-",null,null,null,null,"-"]
[null,null,null,"19 08 01 "," screenings","Tonnes","-",null,null,null,null,"-",null,null,null,null,"-"]
[null,null,null,"19 08 02 "," waste from desanding","Tonnes","-",null,null,null,null,"-",null,null,null,null,"-"]
[null,null,null,"19 08 05 "," sludges from treatment of urban waste water","Tonnes","-",null,null,null,null,"-",null,null,null,null,"-"]
[null,null,null,"19 08 06* "," saturated or spent ion exchange resins","Tonnes","-",null,null,null,null,"-",null,null,null,null,"-"]
[null,null,null,"19 08 07* "," solutions and sludges from regeneration of ion exchangers","Tonnes","-",null,null,null,null,"-",null,null,null,null,"-"]
[null,null,null,"19 08 08* "," membrane system waste containing heavy metals","Tonnes","-",null,null,null,null,"-",null,null,null,null,"-"]
[null,null,null,"19 08 09* "," grease and oil mixture from oil/water separation containing edible oil and fats","Tonnes",{"$f":"IF(SUM(H799:K799)=0,\"-\",SUM(H799:K799))","v":"-"},null,null,null,null,{"$f":"IF(SUM(M799:P799)=0,\"-\",SUM(M799:P799))","v":"-"},null,null,null,null,{"$f":"IF(SUM(R799:U799)=0,\"-\",SUM(R799:U799))","v":"-"}]
[null,null,null,"19 08 10* "," grease and oil mixture from oil/water separation other than those mentioned in 19 08 09","Tonnes","-",null,null,null,null,"-",null,null,null,null,"-"]
[null,null,null,"19 08 11* "," sludges containing dangerous substances from biological treatment of industrial waste water","Tonnes","-",null,null,null,null,"-",null,null,null,null,"-"]
[null,null,null,"19 08 12 "," sludges from biological treatment of industrial waste water other than those mentioned in 19 08 11","Tonnes","-",null,null,null,null,"-",null,null,null,null,"-"]
[null,null,null,"19 08 13* "," sludges containing dangerous substances from other treatment of industrial waste water","Tonnes","-",null,null,null,null,"-",null,null,null,null,"-"]
[null,null,null,"19 08 14 "," sludges from other treatment of industrial waste water other than those mentioned in 19 08 13","Tonnes","-",null,null,null,null,"-",null,null,null,null,"-"]
[null,null,null,"19 08 99 "," wastes not otherwise specified","Tonnes","-",null,null,null,null,"-",null,null,null,null,"-"]
[null,null,null,"19 09 01 "," solid waste from primary filtration and screenings","Tonnes","-",null,null,null,null,"-",null,null,null,null,"-"]
[null,null,null,"19 09 02 "," sludges from water clarification","Tonnes","-",null,null,null,null,"-",null,null,null,null,"-"]
[null,null,null,"19 09 03 "," sludges from decarbonation","Tonnes","-",null,null,null,null,"-",null,null,null,null,"-"]
[null,null,null,"19 09 04 "," spent activated carbon","Tonnes","-",null,null,null,null,"-",null,null,null,null,"-"]
[null,null,null,"19 09 05 "," saturated or spent ion exchange resins","Tonnes","-",null,null,null,null,"-",null,null,null,null,"-"]
[null,null,null,"19 09 06 "," solutions and sludges from regeneration of ion exchangers","Tonnes","-",null,null,null,null,"-",null,null,null,null,"-"]
[null,null,null,"19 09 99 "," wastes not otherwise specified","Tonnes","-",null,null,null,null,"-",null,null,null,null,"-"]
[null,null,null,"19 10 01 "," iron and steel waste","Tonnes","-",null,null,null,null,"-",null,null,null,null,"-"]
[null,null,null,"19 10 02 "," non-ferrous waste","Tonnes","-",null,null,null,null,"-",null,null,null,null,"-"]
[null,null,null,"19 10 03* "," fluff-light fraction and dust containing dangerous substances","Tonnes","-",null,null,null,null,"-",null,null,null,null,"-"]
[null,null,null,"19 10 04 "," fluff-light fraction and dust other than those mentioned in 19 10 03","Tonnes","-",null,null,null,null,"-",null,null,null,null,"-"]
[null,null,null,"19 10 05* "," other fractions containing dangerous substances","Tonnes","-",null,null,null,null,"-",null,null,null,null,"-"]
[null,null,null,"19 10 06 "," other fractions other than those mentioned in 19 10 05","Tonnes","-",null,null,null,null,"-",null,null,null,null,"-"]
[null,null,null,"19 11 01* "," spent filter clays","Tonnes","-",null,null,null,null,"-",null,null,null,null,"-"]
[null,null,null,"19 11 02* "," acid tars","Tonnes","-",null,null,null,null,"-",null,null,null,null,"-"]
[null,null,null,"19 11 03* "," aqueous liquid wastes","Tonnes","-",null,null,null,null,"-",null,null,null,null,"-"]
[null,null,null,"19 11 04* "," wastes from cleaning of fuel with bases","Tonnes","-",null,null,null,null,"-",null,null,null,null,"-"]
[null,null,null,"19 11 05* "," sludges from on-site effluent treatment containing dangerous substances","Tonnes","-",null,null,null,null,"-",null,null,null,null,"-"]
[null,null,null," 19 11 06 "," sludges from on-site effluent treatment other than those mentioned in 19 11 05","Tonnes","-",null,null,null,null,"-",null,null,null,null,"-"]
[null,null,null,"19 11 07* "," wastes from flue-gas cleaning","Tonnes","-",null,null,null,null,"-",null,null,null,null,"-"]
[null,null,null,"19 11 99 "," wastes not otherwise specified","Tonnes","-",null,null,null,null,"-",null,null,null,null,"-"]
[null,null,null,"19 12 01 "," paper and cardboard","Tonnes","-",null,null,null,null,"-",null,null,null,null,"-"]
[null,null,null,"19 12 02 "," ferrous metal","Tonnes","-",null,null,null,null,"-",null,null,null,null,"-"]
[null,null,null,"19 12 03 "," non-ferrous metal","Tonnes","-",null,null,null,null,"-",null,null,null,null,"-"]
[null,null,null,"19 12 04 "," plastic and rubber","Tonnes","-",null,null,null,null,"-",null,null,null,null,"-"]
[null,null,null,"19 12 05 "," glass","Tonnes","-",null,null,null,null,"-",null,null,null,null,"-"]
[null,null,null,"19 12 06* "," wood containing dangerous substances","Tonnes","-",null,null,null,null,"-",null,null,null,null,"-"]
[null,null,null,"19 12 07 "," wood other than that mentioned in 19 12 06","Tonnes","-",null,null,null,null,"-",null,null,null,null,"-"]
[null,null,null,"19 12 08 "," textiles","Tonnes","-",null,null,null,null,"-",null,null,null,null,"-"]
[null,null,null,"19 12 09 "," minerals (for example sand, stones)","Tonnes","-",null,null,null,null,"-",null,null,null,null,"-"]
[null,null,null,"19 12 10 "," combustible waste (refuse derived fuel)","Tonnes","-",null,null,null,null,"-",null,null,null,null,"-"]
[null,null,null,"19 12 11* "," other wastes (including mixtures of materials) from mechanical treatment of waste containing dangerous substances","Tonnes","-",null,null,null,null,"-",null,null,null,null,"-"]
[null,null,null,"19 12 12 "," other wastes (including mixtures of materials) from mechanical treatment of wastes other than those mentioned in 19 12 11","Tonnes","-",null,null,null,null,"-",null,null,null,null,"-"]
[null,null,null,"19 13 01* "," solid wastes from soil remediation containing dangerous substances","Tonnes","-",null,null,null,null,"-",null,null,null,null,"-"]
[null,null,null,"19 13 02 "," solid wastes from soil remediation other than those mentioned in 19 13 01","Tonnes","-",null,null,null,null,"-",null,null,null,null,"-"]
[null,null,null,"19 13 03* "," sludges from soil remediation containing dangerous substances","Tonnes","-",null,null,null,null,"-",null,null,null,null,"-"]
[null,null,null,"19 13 04 "," sludges from soil remediation other than those mentioned in 19 13 03","Tonnes","-",null,null,null,null,"-",null,null,null,null,"-"]
[null,null,null,"19 13 05* "," sludges from groundwater remediation containing dangerous substances","Tonnes","-",null,null,null,null,"-",null,null,null,null,"-"]
[null,null,null,"19 13 06 "," sludges from groundwater remediation other than those mentioned in 19 13 05","Tonnes","-",null,null,null,null,"-",null,null,null,null,"-"]
[null,null,null,"19 13 07* "," aqueous liquid wastes and aqueous concentrates from groundwater remediation containing dangerous substances","Tonnes","-",null,null,null,null,"-",null,null,null,null,"-"]
[null,null,null,"19 13 08 "," aqueous liquid wastes and aqueous concentrates from groundwater remediation other than those mentioned in 19 13 07","Tonnes","-",null,null,null,null,"-",null,null,null,null,"-"]
[null,null,null,20,"MUNICIPAL WASTES (HOUSEHOLD WASTE AND SIMILAR COMMERCIAL, INDUSTRIAL AND INSTITUTIONAL WASTES) INCLUDING SEPARATELY COLLECTED FRACTIONS","Tonnes","-",{"$f":"IF(SUM(H848:H887)=0,\"-\",SUM(H848:H887))","v":"-"},{"$f":"IF(SUM(I848:I887)=0,\"-\",SUM(I848:I887))","v":"-"},"-","-","-",{"$f":"IF(SUM(M848:M887)=0,\"-\",SUM(M848:M887))","v":"-"},{"$f":"IF(SUM(N848:N887)=0,\"-\",SUM(N848:N887))","v":"-"},"-","-","-",{"$f":"IF(SUM(R848:R887)=0,\"-\",SUM(R848:R887))","v":"-"},{"$f":"IF(SUM(S848:S887)=0,\"-\",SUM(S848:S887))","v":"-"},"-","-"]
[null,null,null,"20 01 01 "," paper and cardboard","Tonnes","-",null,null,null,null,"-",null,null,null,null,"-"]
[null,null,null,"20 01 02 "," glass","Tonnes","-",null,null,null,null,"-",null,null,null,null,"-"]
[null,null,null,"20 01 08 "," biodegradable kitchen and canteen waste","Tonnes","-",null,null,null,null,"-",null,null,null,null,"-"]
[null,null,null,"20 01 10 "," clothes","Tonnes","-",null,null,null,null,"-",null,null,null,null,"-"]
[null,null,null,"20 01 11 "," textiles","Tonnes","-",null,null,null,null,"-",null,null,null,null,"-"]
[null,null,null,"20 01 13* "," solvents","Tonnes","-",null,null,null,null,"-",null,null,null,null,"-"]
[null,null,null,"20 01 14* "," acids","Tonnes","-",null,null,null,null,"-",null,null,null,null,"-"]
[null,null,null,"20 01 15* "," alkalines","Tonnes","-",null,null,null,null,"-",null,null,null,null,"-"]
[null,null,null,"20 01 17* "," photochemicals","Tonnes","-",null,null,null,null,"-",null,null,null,null,"-"]
[null,null,null,"20 01 19* "," pesticides","Tonnes","-",null,null,null,null,"-",null,null,null,null,"-"]
[null,null,null,"20 01 21* "," fluorescent tubes and other mercury-containing waste","Tonnes","-",null,null,null,null,"-",null,null,null,null,"-"]
[null,null,null,"20 01 23* "," discarded equipment containing chlorofluorocarbons","Tonnes","-",null,null,null,null,"-",null,null,null,null,"-"]
[null,null,null,"20 01 25 "," edible oil and fat","Tonnes","-",null,null,null,null,"-",null,null,null,null,"-"]
[null,null,null,"20 01 26* "," oil and fat other than those mentioned in 20 01 25","Tonnes","-",null,null,null,null,"-",null,null,null,null,"-"]
[null,null,null,"20 01 27* "," paint, inks, adhesives and resins containing dangerous substances","Tonnes","-",null,null,null,null,"-",null,null,null,null,"-"]
[null,null,null,"20 01 28 "," paint, inks, adhesives and resins other than those mentioned in 20 01 27","Tonnes",{"$f":"IF(SUM(H863:K863)=0,\"-\",SUM(H863:K863))","v":"-"},null,null,null,null,{"$f":"IF(SUM(M863:P863)=0,\"-\",SUM(M863:P863))","v":"-"},null,null,null,null,{"$f":"IF(SUM(R863:U863)=0,\"-\",SUM(R863:U863))","v":"-"}]
[null,null,null,"20 01 29* "," detergents containing dangerous substances","Tonnes","-",null,null,null,null,"-",null,null,null,null,"-"]
[null,null,null,"20 01 30 "," detergents other than those mentioned in 20 01 29","Tonnes","-",null,null,null,null,"-",null,null,null,null,"-"]
[null,null,null,"20 01 31* "," cytotoxic and cytostatic medicines","Tonnes","-",null,null,null,null,"-",null,null,null,null,"-"]
[null,null,null,"20 01 32 "," medicines other than those mentioned in 20 01 31","Tonnes","-",null,null,null,null,"-",null,null,null,null,"-"]
[null,null,null,"20 01 33* "," batteries and accumulators included in 16 06 01, 16 06 02 or 16 06 03 and unsorted batteries and accumulators containing these batteries","Tonnes","-",null,null,null,null,"-",null,null,null,null,"-"]
[null,null,null,"20 01 34 "," batteries and accumulators other than those mentioned in 20 01 33","Tonnes","-",null,null,null,null,"-",null,null,null,null,"-"]
[null,null,null,"20 01 35* "," discarded electrical and electronic equipment other than those mentioned in 20 01 21 and 20 01 23 containing hazardous components (6)","Tonnes","-",null,null,null,null,"-",null,null,null,null,"-"]
[null,null,null,"20 01 36 "," discarded electrical and electronic equipment other than those mentioned in 20 01 21, 20 01 23 and 20 01 35","Tonnes","-",null,null,null,null,"-",null,null,null,null,"-"]
[null,null,null,"20 01 37* "," wood containing dangerous substances","Tonnes","-",null,null,null,null,"-",null,null,null,null,"-"]
[null,null,null,"20 01 38 "," wood other than that mentioned in 20 01 37","Tonnes","-",null,null,null,null,"-",null,null,null,null,"-"]
[null,null,null,"20 01 39 "," plastics","Tonnes","-",null,null,null,null,"-",null,null,null,null,"-"]
[null,null,null,"20 01 40 "," metals","Tonnes","-",null,null,null,null,"-",null,null,null,null,"-"]
[null,null,null,"20 01 41 "," wastes from chimney sweeping","Tonnes","-",null,null,null,null,"-",null,null,null,null,"-"]
[null,null,null,"20 01 99 "," other fractions not otherwise specified","Tonnes","-",null,null,null,null,"-",null,null,null,null,"-"]
[null,null,null,"20 02 01 "," biodegradable waste","Tonnes","-",null,null,null,null,"-",null,null,null,null,"-"]
[null,null,null,"20 02 02 "," soil and stones","Tonnes","-",null,null,null,null,"-",null,null,null,null,"-"]
[null,null,null,"20 02 03 "," other non-biodegradable wastes","Tonnes","-",null,null,null,null,"-",null,null,null,null,"-"]
[null,null,null,"20 03 01 "," mixed municipal waste","Tonnes","-",null,null,null,null,"-",null,null,null,null,"-"]
[null,null,null,"20 03 02 ","waste from markets","Tonnes","-",null,null,null,null,"-",null,null,null,null,"-"]
[null,null,null,"20 03 03 ","street-cleaning residues","Tonnes","-",null,null,null,null,"-",null,null,null,null,"-"]
[null,null,null,"20 03 04 ","septic tank sludge","Tonnes","-",null,null,null,null,"-",null,null,null,null,"-"]
[null,null,null,"20 03 06 ","waste from sewage cleaning","Tonnes","-",null,null,null,null,"-",null,null,null,null,"-"]
[null,null,null,"20 03 07 ","bulky waste","Tonnes","-",null,null,null,null,"-",null,null,null,null,"-"]
[null,null,null,"20 03 99 ","municipal wastes not otherwise specified","Tonnes","-",null,null,null,null,"-",null,null,null,null,"-"]
[]
[]
[null,null,null,"Any other comments:"]
[]
[]
[null,null,null,"01","WASTES RESULTING FROM EXPLORATION, MINING, QUARRYING, AND PHYSICAL AND CHEMICAL TREATMENT OF MINERALS","Tonnes",{"$f":"IF(G30=0,\"-\",G30)","v":"-"},{"$f":"IF(H30=0,\"-\",H30)","v":"-"},"-","-","-","-","-","-","-","-","-","-","-","-","-"]
[null,null,null,"02","WASTES FROM AGRICULTURE, HORTICULTURE, AQUACULTURE, FORESTRY, HUNTING AND FISHING, FOOD PREPARATION AND PROCESSING","Tonnes",{"$f":"IF(G54=0,\"-\",G54)","v":"-"},{"$f":"IF(H54=0,\"-\",H54)","v":"-"},"-","-","-","-","-","-","-","-","-","-","-","-","-"]
[null,null,null,"03","WASTES FROM WOOD PROCESSING AND THE PRODUCTION OF PANELS AND FURNITURE, PULP, PAPER AND CARDBOARD","Tonnes",{"$f":"IF(G93=0,\"-\",G93)","v":"-"},{"$f":"IF(H93=0,\"-\",H93)","v":"-"},"-","-","-","-","-","-","-","-","-","-","-","-","-"]
[null,null,null,"04","WASTES FROM THE LEATHER, FUR AND TEXTILE INDUSTRIES","Tonnes",{"$f":"IF(G113=0,\"-\",G113)","v":"-"},{"$f":"IF(H113=0,\"-\",H113)","v":"-"},"-","-","-","-","-","-","-","-","-","-","-","-","-"]
[null,null,null,"05","WASTES FROM PETROLEUM REFINING, NATURAL GAS PURIFICATION AND PYROLYTIC TREATMENT OF COAL","Tonnes",{"$f":"IF(G135=0,\"-\",G135)","v":"-"},{"$f":"IF(H135=0,\"-\",H135)","v":"-"},"-","-","-","-","-","-","-","-","-","-","-","-","-"]
[null,null,null,"06","WASTES FROM INORGANIC CHEMICAL PROCESSES","Tonnes",{"$f":"IF(G160=0,\"-\",G160)","v":"-"},{"$f":"IF(H160=0,\"-\",H160)","v":"-"},"-","-","-","-","-","-","-","-","-","-","-","-","-"]
[null,null,null,"07","WASTES FROM ORGANIC CHEMICAL PROCESSES","Tonnes",{"$f":"IF(G209=0,\"-\",G209)","v":"-"},{"$f":"IF(H209=0,\"-\",H209)","v":"-"},"-","-","-","-","-","-","-","-","-","-","-","-","-"]
[null,null,null,"08","WASTES FROM THE MANUFACTURE, FORMULATION, SUPPLY AND USE (MFSU) OF COATINGS (PAINTS, VARNISHES AND VITREOUS ENAMELS), ADHESIVES, SEALANTS AND PRINTING INKS","Tonnes",{"$f":"IF(G287=0,\"-\",G287)","v":"-"},{"$f":"IF(H287=0,\"-\",H287)","v":"-"},"-","-","-","-","-","-","-","-","-","-","-","-","-"]
[null,null,null,"09","WASTES FROM THE PHOTOGRAPHIC INDUSTRY","Tonnes",{"$f":"IF(G326=0,\"-\",G326)","v":"-"},{"$f":"IF(H326=0,\"-\",H326)","v":"-"},"-","-","-","-","-","-","-","-","-","-","-","-","-"]
[null,null,null,"10","WASTES FROM THERMAL PROCESSES","Tonnes",{"$f":"IF(G340=0,\"-\",G340)","v":"-"},{"$f":"IF(H340=0,\"-\",H340)","v":"-"},"-","-","-","-","-","-","-","-","-","-","-","-","-"]
[null,null,null,11,"WASTES FROM CHEMICAL SURFACE TREATMENT AND COATING OF METALS AND OTHER MATERIALS; NON-FERROUS HYDRO-METALLURGY","Tonnes",{"$f":"IF(G514=0,\"-\",G514)","v":"-"},{"$f":"IF(H514=0,\"-\",H514)","v":"-"},"-","-","-","-","-","-","-","-","-","-","-","-","-"]
[null,null,null,12,"WASTES FROM SHAPING AND PHYSICAL AND MECHANICAL SURFACE TREATMENT OF METALS AND PLASTICS","Tonnes",{"$f":"IF(G542=0,\"-\",G542)","v":"-"},{"$f":"IF(H542=0,\"-\",H542)","v":"-"},"-","-","-","-","-","-","-","-","-","-","-","-","-"]
[null,null,null,13,"OIL WASTES AND WASTES OF LIQUID FUELS (except edible oils, and those in chapters 05, 12 and 19)","Tonnes",{"$f":"IF(G566=0,\"-\",G566)","v":"-"},{"$f":"IF(H566=0,\"-\",H566)","v":"-"},"-","-","-","-","-","-","-","-","-","-","-","-","-"]
[null,null,null,14,"WASTE ORGANIC SOLVENTS, REFRIGERANTS AND PROPELLANTS (except 07 and 08)","Tonnes",{"$f":"IF(G601=0,\"-\",G601)","v":"-"},{"$f":"IF(H601=0,\"-\",H601)","v":"-"},"-","-","-","-","-","-","-","-","-","-","-","-","-"]
[null,null,null,15,"WASTE PACKAGING; ABSORBENTS, WIPING CLOTHS, FILTER MATERIALS AND PROTECTIVE CLOTHING NOT OTHERWISE SPECIFIED","Tonnes",{"$f":"IF(G607=0,\"-\",G607)","v":"-"},{"$f":"IF(H607=0,\"-\",H607)","v":"-"},"-","-","-","-","-","-","-","-","-","-","-","-","-"]
[null,null,null,16,"WASTES NOT OTHERWISE SPECIFIED IN THE LIST","Tonnes",{"$f":"IF(G620=0,\"-\",G620)","v":"-"},{"$f":"IF(H620=0,\"-\",H620)","v":"-"},"-","-","-","-","-","-","-","-","-","-","-","-","-"]
[null,null,null,17,"CONSTRUCTION AND DEMOLITION WASTES (INCLUDING EXCAVATED SOIL FROM CONTAMINATED SITES)","Tonnes",{"$f":"IF(G692=0,\"-\",G692)","v":"-"},{"$f":"IF(H692=0,\"-\",H692)","v":"-"},"-","-","-","-","-","-","-","-","-","-","-","-","-"]
[null,null,null,18,"WASTES FROM HUMAN OR ANIMAL HEALTH CARE AND/OR RELATED RESEARCH (except kitchen and restaurant wastes not arising from immediate health care)","Tonnes",{"$f":"IF(G731=0,\"-\",G731)","v":"-"},{"$f":"IF(H731=0,\"-\",H731)","v":"-"},"-","-","-","-","-","-","-","-","-","-","-","-","-"]
[null,null,null,19,"WASTES FROM WASTE MANAGEMENT FACILITIES, OFF-SITE WASTE WATER TREATMENT PLANTS AND THE PREPARATION OF WATER INTENDED FOR HUMAN CONSUMPTION AND WATER FOR INDUSTRIAL USE","Tonnes",{"$f":"IF(G748=0,\"-\",G748)","v":"-"},{"$f":"IF(H748=0,\"-\",H748)","v":"-"},"-","-","-","-","-","-","-","-","-","-","-","-","-"]
[null,null,null,20,"MUNICIPAL WASTES (HOUSEHOLD WASTE AND SIMILAR COMMERCIAL, INDUSTRIAL AND INSTITUTIONAL WASTES) INCLUDING SEPARATELY COLLECTED FRACTIONS","Tonnes",{"$f":"IF(G847=0,\"-\",G847)","v":"-"},{"$f":"IF(H847=0,\"-\",H847)","v":"-"},"-","-","-","-","-","-","-","-","-","-","-","-","-"]
[]
[null,null,null,null,null,null,"Year -2",null,null,null,null,"Year -1",null,null,null,null,"Year 0"]
[null,null,null,null,null,null,"Year end date",null,null,null,null,"Year end date",null,null,null,null,"Year end date"]
[null,null,null,null,null,null,{"$f":"G27","v":""},null,null,null,null,{"$f":"L27","v":""},null,null,null,null,{"$f":"Q27","v":""}]
[]
[null,null,null,null,null,"Tonnes","Total","Reuse","Recycle","Energy recovery","Disposal","Total","Reuse","Recycle","Energy recovery","Disposal","Total","Reuse","Recycle","Energy recovery","Disposal"]
[null,null,null,null,null,"Total",{"$f":"IF(SUM(G893:G912)=0,\"-\",SUM(G893:G912))","v":"-"},{"$f":"IF(SUM(H893:H912)=0,\"-\",SUM(H893:H912))","v":"-"},"-","-","-","-","-","-","-","-","-","-","-","-","-"]

{"sheet":"Reduction","index":5,"n_rows":60,"n_cols":11,"rows_kept":60,"cut":false,"hidden":false,"merged":[[60,3,69,10],[14,4,16,4],[38,3,38,7]]}
[]
[]
[]
[null,null,null,"Carbon Trust Certification Limited"]
[null,null,null,"Organisational Waste Calculation - Reduction"]
[]
[]
[]
[]
[]
[null,null,null,"Input Required"]
[null,null,null,"Automatic calculation"]
[null,null,null,"Cells to be completed by assessor"]
[]
[null,null,null,null,"Units",{"$f":"'Waste calculation'!G21","v":"Year -2"},{"$f":"'Waste calculation'!$L$21","v":"Year -1"},{"$f":"'Waste calculation'!$Q$21","v":"Year 0"}]
[null,null,null,null,null,"Year end date","Year end date","Year end date"]
[null,null,null,null,null,{"$f":"IF('Waste calculation'!$G$23=\"\",\"\",$G$23)","v":""},{"$f":"IF('Waste calculation'!$L$23=\"\",\"\",$L$23)","v":""},{"$f":"IF('Waste calculation'!$Q$23=\"\",\"\",$Q$23)","v":""}]
[]
[null,null,null,"Waste total and benchmarks (unadjusted)"]
[null,null,null,"Total waste","Tonnes",{"$f":"'Waste calculation'!G915","v":"-"},{"$f":"'Waste calculation'!L915","v":"-"},{"$f":"'Waste calculation'!Q915","v":"-"}]
[]
[null,null,null,"Benchmark denominator (specify below)",null,null,null,null,null,"Comments","Assessor comments:"]
[]
[null,null,null,"Turnover","£mn"]
[]
[null,null,null,"Adjustments"]
[null,null,null,"To ensure each year is measuring the same boundary of organisation, please record any adjustments for "]
[null,null,null,"    any structural changes (e.g., divestments, acquisitions, outsourcing NOT organic growth), or upstream/downstream arisings "]
[null,null,null,"Any adjustments will be SUBTRACTED from the totals"]
[null,null,null,"   - please record any adjustments that should be subtracted as a positive number"]
[null,null,null,"   - please record any adjustments that should be added as a negative number"]
[]
[null,null,null,"Adjustments to arisings for structural changes","Tonnes",{"$f":"'Waste adjustments'!G919","v":"-"},{"$f":"'Waste adjustments'!L919","v":"-"},{"$f":"'Waste adjustments'!Q919","v":"-"}]
[null,null,null,"Adjustments to benchmark for structural changes",{"$f":"IF(E23=0,\"\",E23)","v":""},{"$f":"IF(ISBLANK('Waste adjustments'!H21),\"-\",'Waste adjustments'!H21)","v":"-"},{"$f":"IF(ISBLANK('Waste adjustments'!I21),\"-\",'Waste adjustments'!I21)","v":"-"},{"$f":"IF(ISBLANK('Waste adjustments'!J21),\"-\",'Waste adjustments'!J21)","v":"-"}]
[null,null,null,"Adjustments to turnover for structural changes",{"$f":"E24","v":"£mn"},{"$f":"IF(ISBLANK('Waste adjustments'!H22),\"-\",'Waste adjustments'!H22)","v":"-"},{"$f":"IF(ISBLANK('Waste adjustments'!I22),\"-\",'Waste adjustments'!I22)","v":"-"},{"$f":"IF(ISBLANK('Waste adjustments'!J22),\"-\",'Waste adjustments'!J22)","v":"-"}]
[null,null,null,"Inflation",null,"n/a",4.3200000000000002E-2,2.6499999999999999E-2]
[null,null,null,null,null,1,{"$f":"F37*(1+G36)","v":1.0431999999999999},{"$f":"G37*(1+H36)","v":1.0708447999999999}]
[null,null,null,"Turnover adjusted for inflation and structural changes",{"$f":"E24","v":"£mn"},{"$f":"IF(F24=0,\"-\",IF(F35=\"-\",F24/F37,(F24-F35)/F37))","v":"-"},{"$f":"IF(G24=0,\"-\",IF(G35=\"-\",G24/G37,(G24-G35)/G37))","v":"-"},{"$f":"IF(H24=0,\"-\",IF(H35=\"-\",H24/H37,(H24-H35)/H37))","v":"-"}]
[null,null,null,"Note: Default inflation figures are annual UK CPI figures\nNote: Adjusted turnover is based on year -2 as base year"]
[]
[null,null,null,"Footprint relative to benchmarks"]
[null,null,null,"Absolute waste arisings","Tonnes",{"$f":"IF(SUM(F20)=0,\"-\",(F20-SUM(F33)))","v":"-"},{"$f":"IF(SUM(G20)=0,\"-\",(G20-SUM(G33)))","v":"-"},{"$f":"IF(SUM(H20)=0,\"-\",(H20-SUM(H33)))","v":"-"}]
[null,null,null,"Relative benchmark",{"$f":"IF(E23=\"\",\"\",E42&\" / \"&IF(RIGHT(E23)=\"s\",LEFT(E23,LEN(E23)-1),E23))","v":""},{"$f":"IF(ISERROR(F42/F23),\"-\",IF(F34=\"-\",F42/F23,F42/(F23-F34)))","v":"-"},{"$f":"IF(ISERROR(G42/G23),\"-\",IF(G34=\"-\",G42/G23,G42/(G23-G34)))","v":"-"},{"$f":"IF(ISERROR(H42/H23),\"-\",IF(H34=\"-\",H42/H23,H42/(H23-H34)))","v":"-"}]
[null,null,null,"Turnover benchmark",{"$f":"IF(E24=\"\",\"\",E42&\" / \"&E24)","v":"Tonnes / £mn"},{"$f":"IF(ISERROR(F42/F38),\"-\",F42/F38)","v":"-"},{"$f":"IF(ISERROR(G42/G38),\"-\",G42/G38)","v":"-"},{"$f":"IF(ISERROR(H42/H38),\"-\",H42/H38)","v":"-"}]
[]
[]
[null,null,null,"Requirement calculation",null,"Annual reduction requirement","Reduction required if using 3 years of data ","Reduction required if using 2 years of data"]
[null,null,null,"Absolute waste arisings",null,0,{"$f":"F48","v":0},{"$f":"F48","v":0}]
[null,null,null,"Relative benchmark",null,1.4E-2,{"$f":"1-(1*(1-F49)^2)/AVERAGE(1,1*(1-F49))","v":2.0950654582074568E-2},{"$f":"F49","v":1.4E-2}]
[null,null,null,"Turnover benchmark",null,1.4E-2,{"$f":"1-(1*(1-F50)^2)/AVERAGE(1,1*(1-F50))","v":2.0950654582074568E-2},{"$f":"F50","v":1.4E-2}]
[]
[null,null,null,"Reduction calculation",null,"Reduction requirement","Historical data","Base year data",null,"Assessment ","Reduction/improvement %"]
[null,null,null,"Absolute waste arisings",null,{"$f":"IF(Reduction!F42>0,G48,H48)","v":0},{"$f":"IF(F42=\"-\",G42,AVERAGE(F42,G42))","v":"-"},{"$f":"Reduction!H42","v":"-"},null,{"$f":"IF(K53=\"-\",\"-\",IF(K53>F53,\"PASS\",\"FAIL\"))","v":"-"},{"$f":"IF(ISERROR(H53/G53),\"-\",1-H53/G53)","v":"-"}]
[null,null,null,"Relative benchmark",null,{"$f":"IF(Reduction!F43=\"-\",H49,G49)","v":1.4E-2},{"$f":"IF(F43=\"-\",G43,AVERAGE(F43,G43))","v":"-"},{"$f":"Reduction!H43","v":"-"},null,{"$f":"IF(K54=\"-\",\"-\",IF(K54>F54,\"PASS\",\"FAIL\"))","v":"-"},{"$f":"IF(ISERROR(H54/G54),\"-\",1-H54/G54)","v":"-"}]
[null,null,null,"Turnover benchmark",null,{"$f":"IF(Reduction!F44=\"-\",H50,G50)","v":1.4E-2},{"$f":"IF(F44=\"-\",G44,AVERAGE(F44,G44))","v":"-"},{"$f":"Reduction!H44","v":"-"},null,{"$f":"IF(K55=\"-\",\"-\",IF(K55>F55,\"PASS\",\"FAIL\"))","v":"-"},"-"]
[null,null,null,"Hierarchy movement",null,0,{"$f":"'Waste hierarchy calculation'!D24","v":"-"},{"$f":"'Waste hierarchy calculation'!E24","v":"-"},null,{"$f":"IF(K56=\"-\",\"-\",IF(K56>F56,\"PASS\",\"FAIL\"))","v":"-"},"-"]
[]
[]
[null,null,null,"Other comments"]
[null,null,null,"Please provide details of key assumptions, estimates, issues etc."]

{"sheet":"Data sources","index":6,"n_rows":64,"n_cols":7,"rows_kept":64,"cut":false,"hidden":false,"merged":[[64,3,77,6],[63,3,63,5],[13,3,13,6]]}
[]
[]
[]
[null,null,null,"Carbon Trust Certification Limited"]
[null,null,null,"Organisational Waste Calculation - Data Sources and Checking"]
[]
[]
[]
[]
[]
[null,null,null,"Input Required"]
[null,null,null,"Cells to be completed by assessor"]
[]
[null,null,null,"Please list the data sources that have been used in completing this spreadsheet. This should include the source file name (if applicable), what data is included in that file, and the contact at the customer's organisation that supplied this data. Where possible, source files should be submitted as part of the evidence pack."]
[]
[null,null,null,"Please insert more rows if required"]
[]
[null,null,null,"File name","Data included","Data supplied by"]
[]
[]
[]
[]
[]
[]
[]
[]
[]
[]
[]
[]
[]
[]
[]
[]
[]
[]
[]
[]
[]
[]
[]
[]
[]
[]
[]
[]
[]
[]
[]
[]
[]
[null,null,null,"For assessor use only:"]
[]
[null,null,null,"Site visits"]
[null,null,null,"Please list the site visits made as part of this assessment"]
[null,null,null,"Site name","Site address","Site description","Date visited"]
[]
[]
[]
[]
[]
[]
[null,null,null,"Checks on data"]
[null,null,null,"Please describe what checks have been done to confirm the quality of the data"]

{"sheet":"Summary of Results","index":7,"n_rows":22,"n_cols":8,"rows_kept":22,"cut":false,"hidden":false,"merged":[]}
[]
[]
[]
[null,null,null,"Carbon Trust Certification Limited"]
[null,null,null,"Organisational Footprint Calculation - Summary of Results"]
[]
[]
[]
[]
[]
[null,null,null,"FOOTPRINT"]
[]
[null,null,null,null,{"$f":"Reduction!F15","v":"Year -2"},{"$f":"Reduction!G15","v":"Year -1"},{"$f":"Reduction!H15","v":"Year 0"}]
[null,null,null,"Absolute waste arisings (tonnes)",{"$f":"Reduction!F20","v":"-"},{"$f":"Reduction!G20","v":"-"},{"$f":"Reduction!H20","v":"-"}]
[]
[null,null,null,"REDUCTION / HIERARCHY IMPROVEMENT"]
[]
[null,null,null,null,"Historical Data","Current Data","Reduction/improvement %","Result"]
[null,null,null,"Absolute waste arisings (tonnes)",{"$f":"Reduction!G53","v":"-"},{"$f":"Reduction!H53","v":"-"},{"$f":"Reduction!K53","v":"-"},{"$f":"Reduction!J53","v":"-"}]
[null,null,null,"Relative benchmark",{"$f":"Reduction!G54","v":"-"},{"$f":"Reduction!H54","v":"-"},{"$f":"Reduction!K54","v":"-"},{"$f":"Reduction!J54","v":"-"}]
[null,null,null,"Turnover benchmark",{"$f":"Reduction!G55","v":"-"},{"$f":"Reduction!H55","v":"-"},{"$f":"Reduction!K55","v":"-"},{"$f":"Reduction!J55","v":"-"}]
[null,null,null,"Hierarchy movement",{"$f":"'Waste hierarchy calculation'!D24","v":"-"},{"$f":"'Waste hierarchy calculation'!E24","v":"-"},{"$f":"'Waste hierarchy calculation'!G24","v":"-"},{"$f":"Reduction!J56","v":"-"}]

{"sheet":"Checklist","index":8,"n_rows":23,"n_cols":7,"rows_kept":23,"cut":false,"hidden":false,"merged":[[13,6,14,6]]}
[]
[]
[]
[null,null,null,"Carbon Trust Certification Limited"]
[null,null,null,"Organisational Footprint Calculation - Assessor Checklist"]
[]
[]
[]
[]
[]
[null,null,null,"Issue",null,null,"Action"]
[]
[null,null,null,"Are there any unusual years in the data?","No",null,{"$f":"IF(E13=\"yes\",\"Explain why in 'any other comments' box on 'Footprint Calculation' sheet\",\"-\")","v":"-"}]
[null,null,null,"Are there any estimated numbers in the data?","No",null,{"$f":"IF(E14=\"yes\",\"If a number is estimated, indicate this in the comments box on the same row and provide rationale\",\"-\")","v":"-"}]
[]
[null,null,null,"Has the organisation acquired any businesses over the last 3 years?","No",null,{"$f":"IF(E16=\"yes\",\"Use Adjustments sheet to split out emissions from acquired businesses\",\"-\")","v":"-"}]
[null,null,null,"Has the organisation divested any businesses over the last 3 years?","No",null,{"$f":"IF(E17=\"yes\",\"Use Adjustments sheet to split out emissions from divested businesses\",\"-\")","v":"-"}]
[]
[null,null,null,"Does the organisation outsource any significant operations, and has the proportion of outsourced business changed over the last 3 years?","No",null,{"$f":"IF(E19=\"yes\",\"If part of emissions reduction may be due to increase in outsourcing, use the adjustments sheet to split this out\",\"-\")","v":"-"}]
[]
[null,null,null,"Does  the organisation generate food waste?","No",null,{"$f":"IF(E21=\"yes\",\"Please notify CT\",\"-\")","v":"-"}]
[]
[null,null,null,"Have you asked all these questions?","Yes",null,{"$f":"IF(E23=\"yes\",\"-\",\"Data may be incomplete\")","v":"-"}]

{"sheet":"Assessor footprint","index":9,"n_rows":49,"n_cols":11,"rows_kept":49,"cut":false,"hidden":false,"merged":[[17,4,17,5],[18,4,18,5],[19,4,19,5],[20,4,20,5],[25,4,25,5],[21,4,21,5],[22,4,22,5],[23,4,23,5],[24,4,24,5]]}
[]
[]
[]
[null,null,null,"Carbon Trust Certification Limited"]
[null,null,null,"Organisational Footprint Calculation - Assessor Travel Footprint"]
[]
[]
[]
[]
[]
[null,null,null,"Cells to be completed by assessor"]
[null,null,null,"Automatic calculation"]
[]
[null,null,null,"For assessor use only:"]
[null,null,null,null,"Assessors: Please calculate the footprint for your travel related to this assessment"]
[]
[]
[null,null,null,null,"Description",null,"Mode of Transport","Units (e.g. miles/km/litres)","Use (Number of miles/km/litres)","Emission factor (kgCO2e / unit)","Footprint (kgCO2)"]
[null,null,null,"Example","2 visits to Hull office ",null,"petrol car","miles",77,{"$f":"G48","v":0.25167209600000001},{"$f":"I19*J19","v":19.378751392000002}]
[null,null,null,1,null,null,null,null,null,null,{"$f":"IF(I20=\"\",\"\",I20*J20)","v":""}]
[null,null,null,2,null,null,null,null,null,null,""]
[null,null,null,3,null,null,null,null,null,null,""]
[null,null,null,4,null,null,null,null,null,null,""]
[null,null,null,5,null,null,null,null,null,null,""]
[null,null,null,6,null,null,null,null,null,null,""]
[null,null,null,7,null,null,null,null,null,null,""]
[]
[null,null,null,null,null,null,null,null,null,"Total footprint",{"$f":"SUM(K20:K26)","v":0}]
[null,null,null,null,"Emission factors"]
[]
[null,null,null,null,"Petrol (per litre)",{"$f":"'Emissions Factors'!G20","v":2.2143999999999999}]
[null,null,null,null,"Diesel (per litre)",{"$f":"'Emissions Factors'!G19","v":2.6008}]
[]
[null,null,null,null,null,"Per km","Per mile"]
[null,null,null,null,"Train",{"$f":"'Emissions Factors'!G84","v":4.904E-2},{"$f":"F35*1.6093","v":7.8920071999999994E-2}]
[null,null,null,null,"Tube",{"$f":"'Emissions Factors'!G86","v":6.361E-2},{"$f":"F36*1.6093","v":0.102367573}]
[null,null,null,null,"Bus",{"$f":"'Emissions Factors'!G83","v":0.111620737},{"$f":"F37*1.6093","v":0.17963125205409999}]
[null,null,null,null,"Taxi",{"$f":"'Emissions Factors'!G82","v":0.20208000000000001},{"$f":"F38*1.6093","v":0.32520734400000001}]
[]
[null,null,null,null,"Miles per gallon to emission factor conversion:"]
[]
[null,null,null,null,"For car travel, if the actual fuel economy is known emission factors can be calculated below."]
[null,null,null,null,"If not known, please select the appropriate factor from the \"Emission Factors\" sheet."]
[]
[null,null,null,null,"mpg",40]
[]
[null,null,null,null,null,"Per km","Per mile"]
[null,null,null,null,"Emission factor - Petrol",{"$f":"G48/1.6093","v":0.15638606599142485},{"$f":"1/$F$45*4.5461*F31","v":0.25167209600000001}]
[null,null,null,null,"Emission factor - Diesel",{"$f":"G49/1.6093","v":0.18367453054122909},{"$f":"1/$F$45*4.5461*F32","v":0.29558742199999999}]

{"sheet":"Emissions Factors","index":10,"n_rows":127,"n_cols":11,"rows_kept":127,"cut":false,"hidden":false,"merged":[[52,4,53,4],[99,4,99,7],[79,4,79,6],[87,4,87,7],[56,4,57,4],[88,4,88,5],[89,4,89,7],[95,4,95,7]]}
[]
[]
[]
[null,null,null,"Carbon Trust Certification Limited"]
[null,null,null,"Organisational Footprint Calculation - Emissions Factors"]
[]
[]
[]
[]
[]
[null,null,null,"Emissions factors - owned transport"]
[null,null,null,"Should be measured by the most accurate possible method. "]
[null,null,null,"For cars, the order of preference is as follows:"]
[null,null,null,"  1. Use actual amount of fuel purchased"]
[null,null,null,"  2. Base estimates on type of vehicles"]
[null,null,null,"  3. Use an average figure for all cars"]
[]
[null,null,null,null,"Emissions by litres of fuel used"]
[null,null,null,"1.","Diesel","litres",{"$f":"G53","v":2.6008}]
[null,null,null,null,"Petrol","litres",{"$f":"G57","v":2.2143999999999999}]
[null,null,null,null,"LPG","litres",{"$f":"G69","v":1.4928999999999999}]
[]
[null,null,null,"2.","Emissions by car type"]
[null,null,null,null,null,null,"Petrol","Diesel","Unknown"]
[null,null,null,null,"Mini","km",0.14357,0.10505,0.14299999999999999]
[null,null,null,null,"Supermini","km",0.16341,0.13741999999999999,0.15981000000000001]
[null,null,null,null,"Lower Medium","km",0.1948,0.15548000000000001,0.17867]
[null,null,null,null,"Upper","km",0.22486,0.17224,0.19314999999999999]
[null,null,null,null,"Executive","km",0.26074999999999998,0.19536000000000001,0.22158]
[null,null,null,null,"Luxury","km",0.34564,0.23601,0.30488999999999999]
[null,null,null,null,"Sports","km",0.25014999999999998,0.16467999999999999,0.24348]
[null,null,null,null,"4x4","km",0.27681,0.24190999999999999,0.25153999999999999]
[null,null,null,null,"MPV","km",0.21621000000000001,0.19253999999999999,0.20202000000000001]
[]
[null,null,null,"3.","Average emission factors for all cars"]
[null,null,null,null,null,null,"Petrol","Diesel","Unknown","Hybrid","LPG"]
[null,null,null,null,"Average","km",0.19811000000000001,0.18321999999999999,0.19023000000000001,0.13103000000000001,0.21212]
[]
[null,null,null,"For travel by other vehicles (including motorcycles and goods vehicles):"]
[null,null,null,"  1. Use actual fuel consumed if possible."]
[null,null,null,"  2. If not, please see DEFRA's emissions factors here:",null,null,null,"DEFRA 2013 emissions factors"]
[]
[null,null,null,"Emissions factors - fuel combustion and electricity"]
[null,null,null,null,"Fuel Type","Unit","kgCO2e Scope 1"]
[null,null,null,null,"Gas","m3",2.0194000000000001]
[null,null,null,null,"a.k.a. Natural Gas","kWh",0.18404000000000001]
[]
[null,null,null,null,"Oil","tonnes",3427.2]
[null,null,null,null,"a.k.a. Gas Oil","litres",2.9342999999999999]
[null,null,null,null,null,"kWh",0.27176]
[]
[null,null,null,null,"Diesel","tonnes",3100.1]
[null,null,null,null,"(average biofuel blend)","litres",2.6008]
[null,null,null,null,null,"kWh",0.24512]
[]
[null,null,null,null,"Petrol","tonnes",3005.8]
[null,null,null,null,"(average biofuel blend)","litres",2.2143999999999999]
[null,null,null,null,null,"kWh",0.23394000000000001]
[]
[null,null,null,null,"Electricity (UK)","kWh",0.44547999999999999]
[null,null,null,null,"Consumed","MWh",{"$f":"G60*G77","v":445.47999999999996}]
[]
[null,null,null,null,"Electricity (Ireland)","kWh",0.45804]
[null,null,null,null,"Consumed","MWh",{"$f":"G63*G77","v":458.04}]
[]
[null,null,null,null,"Electricity (Italy)","kWh",0.40631]
[null,null,null,null,"Consumed","MWh",{"$f":"G66*G77","v":406.31}]
[]
[null,null,null,null,"LPG","litres",1.4928999999999999]
[null,null,null,null,null,"kWh",0.21451999999999999]
[]
[null,null,null,"Conversion factors"]
[]
[null,null,null,null,"From","To","Multiply By"]
[null,null,null,null,"miles","km",1.60934]
[null,null,null,null,"passenger miles","passenger km",{"$f":"G75","v":1.60934}]
[null,null,null,null,"MWh","kWh",1000]
[]
[null,null,null,"Emission Factors - Business Travel "]
[null,null,null,null,"Business Travel by Ground"]
[null,null,null,null,"Hire Car (Average)","km",{"$f":"I37","v":0.19023000000000001}]
[null,null,null,null,"Taxi (Regular)","km",0.20208000000000001]
[null,null,null,null,"Bus (Average)","passenger km",0.111620737]
[null,null,null,null,"Rail (National Rail)","passenger km",4.904E-2]
[null,null,null,null,"Rail (Eurostar)","passenger km",1.235E-2]
[null,null,null,null,"London Underground","passenger km",6.361E-2]
[]
[null,null,null,null,"Business Travel by Air"]
[null,null,null,null,null,null,"Without RF","With RF"]
[null,null,null,null,"Long haul:"]
[null,null,null,null,"First Class","passenger km",0.34976879999999999,0.66147]
[null,null,null,null,"Business Class","passenger km",0.25358399999999998,0.479574]
[null,null,null,null,"Premium Economy","passenger km",0.13990320000000001,0.26458199999999998]
[null,null,null,null,"Economy","passenger km",8.7436799999999995E-2,0.16536200000000001]
[null,null,null,null,"Average","passenger km",0.11978279999999999,0.22652800000000001]
[null,null,null,null,"Short haul:"]
[null,null,null,null,"Business Class","passenger km",0.14546519999999999,0.27510099999999998]
[null,null,null,null,"Economy","passenger km",9.6984000000000001E-2,0.18340400000000001]
[null,null,null,null,"Average","passenger km",0.10176839999999999,0.19245699999999999]
[null,null,null,null,"Domestic:"]
[null,null,null,null,"Average","passenger km",0.17275679999999999,0.32661499999999999]
[]
[]
[]
[null,null,null,"Emission Factors - Fugitive Emissions"]
[null,null,null,null,"Fuel Type","Unit","kgCO2e Scope 1"]
[null,null,null,null,"HFC - 22/R22","tonnes",{"$f":"G108*1000","v":1810000.0000000002}]
[null,null,null,null,null,"kg",1810.0000000000002]
[]
[null,null,null,null,"HFE - 134a","tonnes",{"$f":"G111*1000","v":1300000}]
[null,null,null,null,null,"kg",1300]
[]
[null,null,null,null,"HFE - 143a","tonnes",{"$f":"G114*1000","v":3800000}]
[null,null,null,null,null,"kg",3800]
[]
[null,null,null,null,"R404A","tonnes",{"$f":"G117*1000","v":3260000}]
[null,null,null,null,null,"kg",3260]
[]
[null,null,null,null,"R407A","tonnes",{"$f":"G120*1000","v":1770000}]
[null,null,null,null,null,"kg",1770]
[]
[null,null,null,null,"R407C","tonnes",{"$f":"G123*1000","v":1526000}]
[null,null,null,null,null,"kg",1526]
[]
[null,null,null,null,"R410A","tonnes",{"$f":"G126*1000","v":1724999.9999999998}]
[null,null,null,null,null,"kg",1724.9999999999998]
[null,null,null,null,null,null,null,null,null,null,"v1_0"]